Client,Service Area,Expenditure Catergory,Expenditure Code,Paid Date,Trans No,Amount,Type of Expenditure,Supplier Name
Oxford City Council,General Fund,Void Tenant Choice,B1186,01/02/2001,40000078 - 2,200,Revenue,B & Q PLC
Oxford City Council,General Fund,Plastering,B1188,01/02/2001,40000079 - 2,91.16,Revenue,B & Q PLC
Oxford City Council,General Fund,Plastering,B1188,01/02/2001,40000081 - 2,90.6,Revenue,B & Q PLC
Oxford City Council,General Fund,Plastering,B1188,01/02/2001,40000083 - 2,91.16,Revenue,B & Q PLC
Oxford City Council,General Fund,Remedial Work - Redecoration Voucher,B1187,01/02/2001,40000085 - 2,60,Revenue,B & Q PLC
Oxford City Council,General Fund,Plastering,B1188,01/02/2001,40000086 - 2,91.16,Revenue,B & Q PLC
Oxford City Council,General Fund,Plastering,B1188,01/02/2001,40000087 - 2,91.16,Revenue,B & Q PLC
Oxford City Council,General Fund,Void Tenant Choice,B1186,01/02/2001,40000090 - 2,170.21,Revenue,B & Q PLC
Oxford City Council,General Fund,Remedial Work - Redecoration Voucher,B1187,01/02/2001,40000092 - 2,38.53,Revenue,B & Q PLC
Oxford City Council,General Fund,Waste Disposal & Skip Hire,D3420,02/02/2001,40000099 - 2,92,Revenue,SHEEHAN HAULAGE & PLANT HIRE LTD
Oxford City Council,General Fund,Day to Day Repairs - Occupied,B1180,01/02/2001,40000106 - 2,37.5,Revenue,PHS GROUP (LAUNDRYSERV)
Oxford City Council,General Fund,Books & Publications,D3302,02/02/2001,40000108 - 2,14.95,Revenue,YORK PUBLISHING SERVICES
Oxford City Council,General Fund,Temporary Bureau Staffing,A0108,02/02/2001,40000140 - 3,256.2,Revenue,
Oxford City Council,General Fund,AR Refunds (Sundries & Periodics),Z400404,15/01/2019,46300849 - 1,"1,743.82",Revenue,SUNDRY/PERIODIC DEBTOR REFUNDS
Oxford City Council,General Fund,AR Refunds (Sundries & Periodics),Z400404,15/01/2019,46300850 - 0,"1,000.00",Revenue,SUNDRY/PERIODIC DEBTOR REFUNDS
Oxford City Council,General Fund,AR Refunds (Sundries & Periodics),Z400404,22/01/2019,46300975 - 0,"1,319.68",Revenue,SUNDRY/PERIODIC DEBTOR REFUNDS
Oxford City Council,General Fund,AR Refunds (Sundries & Periodics),Z400404,22/01/2019,46300976 - 1,"3,003.00",Revenue,SUNDRY/PERIODIC DEBTOR REFUNDS
Oxford City Council,General Fund,AR Refunds (Sundries & Periodics),Z400404,22/01/2019,46300977 - 0,"2,958.10",Revenue,SUNDRY/PERIODIC DEBTOR REFUNDS
Oxford City Council,General Fund,C.I.T.Awaiting Payment,Z970590,12/02/2019,46301150 - 1,539.8,Revenue,HMRC
Oxford City Council,General Fund,AR Refunds (Sundries & Periodics),Z400404,19/02/2019,46301180 - 0,650,Revenue,SUNDRY/PERIODIC DEBTOR REFUNDS
Oxford City Council,General Fund,AR Refunds (Sundries & Periodics),Z400404,15/02/2019,46301182 - 0,"2,202.08",Revenue,SUNDRY/PERIODIC DEBTOR REFUNDS
Oxford City Council,General Fund,AR Refunds (Sundries & Periodics),Z400404,26/02/2019,46301301 - 1,"1,476.00",Revenue,GENERAL EXPENSES
Oxford City Council,General Fund,AR Refunds (Sundries & Periodics),Z400404,05/03/2019,46301336 - 0,500,Revenue,SUNDRY/PERIODIC DEBTOR REFUNDS
Oxford City Council,General Fund,AR Refunds (Sundries & Periodics),Z400404,05/03/2019,46301337 - 1,"1,000.00",Revenue,SUNDRY/PERIODIC DEBTOR REFUNDS
Oxford City Council,General Fund,AR Refunds (Sundries & Periodics),Z400404,12/03/2019,46301421 - 0,"1,314.00",Revenue,SUNDRY/PERIODIC DEBTOR REFUNDS
Oxford City Council,General Fund,C.I.T.Awaiting Payment,Z970590,19/03/2019,46301583 - 1,"1,832.00",Revenue,HMRC
Oxford City Council,General Fund,AR Refunds (Sundries & Periodics),Z400404,22/03/2019,46301748 - 0,"1,894.00",Revenue,SUNDRY/PERIODIC DEBTOR REFUNDS
Oxford City Council,General Fund,AR Refunds (Sundries & Periodics),Z400404,26/03/2019,46301749 - 1,968,Revenue,SUNDRY/PERIODIC DEBTOR REFUNDS
Oxford City Council,General Fund,AR Refunds (Sundries & Periodics),Z400404,02/04/2019,46302083 - 1,500,Revenue,SUNDRY/PERIODIC DEBTOR REFUNDS
Oxford City Council,General Fund,AR Refunds (Sundries & Periodics),Z400404,02/04/2019,46302084 - 0,"1,000.00",Revenue,SUNDRY/PERIODIC DEBTOR REFUNDS
Oxford City Council,General Fund,AR Refunds (Sundries & Periodics),Z400404,02/04/2019,46302085 - 1,500,Revenue,SUNDRY/PERIODIC DEBTOR REFUNDS
Oxford City Council,General Fund,AR Refunds (Sundries & Periodics),Z400404,16/04/2019,46302185 - 0,577.38,Revenue,SUNDRY/PERIODIC DEBTOR REFUNDS
Oxford City Council,General Fund,C.I.T.Awaiting Payment,Z970590,16/04/2019,46302199 - 1,"1,972.00",Revenue,HMRC
Oxford City Council,General Fund,AR Refunds (Sundries & Periodics),Z400404,30/04/2019,46302363 - 1,"2,500.00",Revenue,SUNDRY/PERIODIC DEBTOR REFUNDS
Oxford City Council,General Fund,C.I.T.Awaiting Payment,Z970590,14/05/2019,46302614 - 1,"4,535.00",Revenue,HMRC
Oxford City Council,General Fund,AR Refunds (Sundries & Periodics),Z400404,29/05/2019,46302818 - 0,"1,507.15",Revenue,SUNDRY/PERIODIC DEBTOR REFUNDS
Oxford City Council,General Fund,AR Refunds (Sundries & Periodics),Z400404,11/06/2019,46303038 - 1,650,Revenue,GENERAL EXPENSES
Oxford City Council,General Fund,AR Refunds (Sundries & Periodics),Z400404,25/06/2019,46303323 - 1,500,Revenue,SUNDRY/PERIODIC DEBTOR REFUNDS
Oxford City Council,General Fund,AR Refunds (Sundries & Periodics),Z400404,25/06/2019,46303324 - 0,500,Revenue,SUNDRY/PERIODIC DEBTOR REFUNDS
Oxford City Council,General Fund,AR Refunds (Sundries & Periodics),Z400404,02/07/2019,46303385 - 0,"2,137.38",Revenue,SUNDRY/PERIODIC DEBTOR REFUNDS
Oxford City Council,General Fund,AR Refunds (Sundries & Periodics),Z400404,16/07/2019,46303507 - 1,535,Revenue,SUNDRY/PERIODIC DEBTOR REFUNDS
Oxford City Council,General Fund,AR Refunds (Sundries & Periodics),Z400404,16/07/2019,46303603 - 1,500,Revenue,SUNDRY/PERIODIC DEBTOR REFUNDS
Oxford City Council,General Fund,AR Refunds (Sundries & Periodics),Z400404,16/07/2019,46303605 - 1,500,Revenue,SUNDRY/PERIODIC DEBTOR REFUNDS
Oxford City Council,General Fund,AR Refunds (Sundries & Periodics),Z400404,06/08/2019,46303940 - 1,"1,000.00",Revenue,SUNDRY/PERIODIC DEBTOR REFUNDS
Oxford City Council,General Fund,C.I.T.Awaiting Payment,Z970590,13/08/2019,46304012 - 1,"7,699.00",Revenue,HMRC
Oxford City Council,General Fund,AR Refunds (Sundries & Periodics),Z400404,20/08/2019,46304078 - 0,500,Revenue,SUNDRY/PERIODIC DEBTOR REFUNDS
Oxford City Council,General Fund,AR Refunds (Sundries & Periodics),Z400404,20/08/2019,46304079 - 1,500,Revenue,SUNDRY/PERIODIC DEBTOR REFUNDS
Oxford City Council,General Fund,AR Refunds (Sundries & Periodics),Z400404,20/08/2019,46304080 - 0,500,Revenue,SUNDRY/PERIODIC DEBTOR REFUNDS
Oxford City Council,General Fund,AR Refunds (Sundries & Periodics),Z400404,20/08/2019,46304082 - 0,500,Revenue,SUNDRY/PERIODIC DEBTOR REFUNDS
Oxford City Council,General Fund,AR Refunds (Sundries & Periodics),Z400404,10/09/2019,46304285 - 0,"2,000.00",Revenue,SUNDRY/PERIODIC DEBTOR REFUNDS
Oxford City Council,General Fund,AR Refunds (Sundries & Periodics),Z400404,10/09/2019,46304286 - 1,"1,154.63",Revenue,SUNDRY/PERIODIC DEBTOR REFUNDS
Oxford City Council,General Fund,C.I.T.Awaiting Payment,Z970590,17/09/2019,46304329 - 1,"1,410.00",Revenue,HMRC
Oxford City Council,General Fund,AR Refunds (Sundries & Periodics),Z400404,01/10/2019,46304427 - 1,500,Revenue,SUNDRY/PERIODIC DEBTOR REFUNDS
Oxford City Council,General Fund,AR Refunds (Sundries & Periodics),Z400404,01/10/2019,46304428 - 0,500,Revenue,SUNDRY/PERIODIC DEBTOR REFUNDS
Oxford City Council,General Fund,AR Refunds (Sundries & Periodics),Z400404,01/10/2019,46304429 - 1,500,Revenue,SUNDRY/PERIODIC DEBTOR REFUNDS
Oxford City Council,General Fund,AR Refunds (Sundries & Periodics),Z400404,01/10/2019,46304430 - 0,500,Revenue,SUNDRY/PERIODIC DEBTOR REFUNDS
Oxford City Council,General Fund,C.I.T.Awaiting Payment,Z970590,15/10/2019,46304735 - 1,"1,699.80",Revenue,HMRC
Oxford City Council,General Fund,AR Refunds (Sundries & Periodics),Z400404,18/10/2019,46304777 - 0,500,Revenue,SUNDRY/PERIODIC DEBTOR REFUNDS
Oxford City Council,General Fund,AR Refunds (Sundries & Periodics),Z400404,22/10/2019,46304778 - 1,500,Revenue,SUNDRY/PERIODIC DEBTOR REFUNDS
Oxford City Council,General Fund,AR Refunds (Sundries & Periodics),Z400404,22/10/2019,46304785 - 0,500,Revenue,SUNDRY/PERIODIC DEBTOR REFUNDS
Oxford City Council,General Fund,AR Refunds (Sundries & Periodics),Z400404,29/10/2019,46304814 - 0,"2,500.00",Revenue,SUNDRY/PERIODIC DEBTOR REFUNDS
Oxford City Council,General Fund,AR Refunds (Sundries & Periodics),Z400404,29/10/2019,46304816 - 0,500,Revenue,SUNDRY/PERIODIC DEBTOR REFUNDS
Oxford City Council,General Fund,AR Refunds (Sundries & Periodics),Z400404,29/10/2019,46304817 - 1,500,Revenue,SUNDRY/PERIODIC DEBTOR REFUNDS
Oxford City Council,General Fund,AR Refunds (Sundries & Periodics),Z400404,25/10/2019,46304818 - 0,500,Revenue,SUNDRY/PERIODIC DEBTOR REFUNDS
Oxford City Council,General Fund,AR Refunds (Sundries & Periodics),Z400404,29/10/2019,46304819 - 1,504,Revenue,SUNDRY/PERIODIC DEBTOR REFUNDS
Oxford City Council,General Fund,AR Refunds (Sundries & Periodics),Z400404,25/10/2019,46304820 - 0,500,Revenue,SUNDRY/PERIODIC DEBTOR REFUNDS
Oxford City Council,General Fund,AR Refunds (Sundries & Periodics),Z400404,05/11/2019,46304960 - 0,500,Revenue,SUNDRY/PERIODIC DEBTOR REFUNDS
Oxford City Council,General Fund,AR Refunds (Sundries & Periodics),Z400404,05/11/2019,46304961 - 1,640,Revenue,SUNDRY/PERIODIC DEBTOR REFUNDS
Oxford City Council,General Fund,AR Refunds (Sundries & Periodics),Z400404,12/11/2019,46305019 - 0,"1,750.00",Revenue,SUNDRY/PERIODIC DEBTOR REFUNDS
Oxford City Council,General Fund,C.I.T.Awaiting Payment,Z970590,19/11/2019,46305077 - 1,"2,099.00",Revenue,HMRC
Oxford City Council,General Fund,AR Refunds (Sundries & Periodics),Z400404,24/12/2019,46305540 - 0,500,Revenue,SUNDRY/PERIODIC DEBTOR REFUNDS
Oxford City Council,General Fund,AR Refunds (Sundries & Periodics),Z400404,24/12/2019,46305541 - 1,"1,374.00",Revenue,SUNDRY/PERIODIC DEBTOR REFUNDS
Oxford City Council,General Fund,AR Refunds (Sundries & Periodics),Z400404,24/12/2019,46305542 - 0,500,Revenue,SUNDRY/PERIODIC DEBTOR REFUNDS
Oxford City Council,General Fund,AR Refunds (Sundries & Periodics),Z400404,20/12/2019,46305543 - 1,"1,000.00",Revenue,SUNDRY/PERIODIC DEBTOR REFUNDS
Oxford City Council,Assistant Chief Executive,General Contracted Services,D3401,26/03/2019,1058219 - 0,"9,950.00",Revenue,OXFORDSHIRE MIND
Oxford City Council,Assistant Chief Executive,Advertising & Publicity,D3802,29/01/2019,1058765 - 0,"1,305.16",Revenue,KINGDOM SIGNS (ARTISAN LITHO LTD T/A)
Oxford City Council,Assistant Chief Executive,Other Miscellaneous Expenses,D3811,08/01/2019,1059159 - 0,"1,250.00",Revenue,GOOD FOOD OXFORD
Oxford City Council,Assistant Chief Executive,Advertising & Publicity,D3802,12/02/2019,1059581 - 0,"1,000.00",Revenue,ONE POINT OH LIMITED
Oxford City Council,Assistant Chief Executive,Licences (Non-Transport),D3804,29/01/2019,1059659 - 0,"1,182.00",Revenue,NLA MEDIA ACCESS LIMITED
Oxford City Council,Assistant Chief Executive,Advertising & Publicity,D3802,19/02/2019,1060094 - 0,"1,176.00",Revenue,ARIA PHOTOGRAPHY
Oxford City Council,Assistant Chief Executive,Licences (Non-Transport),D3804,05/03/2019,1060594 - 0,"5,000.00",Revenue,ONE TEAM LOGIC LTD
Oxford City Council,Assistant Chief Executive,General Contracted Services,D3401,19/03/2019,1061076 - 0,"2,085.12",Revenue,FUSION-OXFORD'S COMMUNITY ARTS AGENCY LIMITED
Oxford City Council,Assistant Chief Executive,General Contracted Services,D3401,26/03/2019,1061262 - 0,"4,041.00",Revenue,CONNECTION SUPPORT
Oxford City Council,Assistant Chief Executive,General Contracted Services,D3401,14/05/2019,1061311 - 0,"4,041.00",Revenue,CONNECTION SUPPORT
Oxford City Council,Assistant Chief Executive,General Contracted Services,D3401,09/04/2019,1061393 - 0,"2,000.00",Revenue,OXFORDSHIRE COMMUNITY FOUNDATION
Oxford City Council,Assistant Chief Executive,Consultants Fees,D3411,24/04/2019,1061517 - 0,"25,500.00",Revenue,MARKET & OPINION RESEARCH INTERNATIONAL LTD T/A IPSOS MORI
Oxford City Council,Assistant Chief Executive,Subscriptions,D3703,30/04/2019,1061960 - 0,"10,000.00",Revenue,OXFORDSHIRE COUNTY COUNCIL
Oxford City Council,Assistant Chief Executive,Licences (Non-Transport),D3804,08/05/2019,1062121 - 0,"2,150.48",Revenue,THE COPYRIGHT LICENSING AGENCY
Oxford City Council,Assistant Chief Executive,Consultants Fees,D3411,21/05/2019,1062273 - 0,"6,000.00",Revenue,AETHER
Oxford City Council,Assistant Chief Executive,General Contracted Services,D3401,25/06/2019,1062853 - 0,"4,041.00",Revenue,CONNECTION SUPPORT
Oxford City Council,Assistant Chief Executive,Advertising & Publicity,D3802,09/07/2019,1062869 - 0,"1,500.00",Revenue,OXFORD PRESERVATION TRUST
Oxford City Council,Assistant Chief Executive,General Contracted Services,D3401,25/06/2019,1062870 - 0,"4,041.00",Revenue,CONNECTION SUPPORT
Oxford City Council,Assistant Chief Executive,General Contracted Services,D3401,02/07/2019,1062940 - 0,"28,750.00",Revenue,THE CAMPAIGN COMPANY
Oxford City Council,Assistant Chief Executive,General Contracted Services,D3401,02/07/2019,1062988 - 0,"21,864.00",Revenue,ASPIRE COMMUNITY ENTERPRISE LTD
Oxford City Council,Assistant Chief Executive,Grants,D3701,09/07/2019,1063167 - 0,"19,750.00",Revenue,"EMBS Community College Ltd.,"
Oxford City Council,Assistant Chief Executive,General Contracted Services,D3401,30/07/2019,1063321 - 0,"4,041.00",Revenue,CONNECTION SUPPORT
Oxford City Council,Assistant Chief Executive,Grants,D3701,30/07/2019,1063687 - 0,"52,173.00",Revenue,REFUGEE RESOURCE
Oxford City Council,Assistant Chief Executive,Subscriptions,D3703,06/08/2019,1063798 - 0,"4,800.00",Revenue,ACCESS INTELLIGENCE MEDIA & COMMUNICATIONS LTD
Oxford City Council,Assistant Chief Executive,General Contracted Services,D3401,01/10/2019,1063849 - 0,"8,082.00",Revenue,CONNECTION SUPPORT
Oxford City Council,Assistant Chief Executive,General Contracted Services,D3401,01/10/2019,1063853 - 0,"4,041.00",Revenue,CONNECTION SUPPORT
Oxford City Council,Assistant Chief Executive,General Contracted Services,D3401,01/10/2019,1064268 - 0,"4,041.00",Revenue,CONNECTION SUPPORT
Oxford City Council,Assistant Chief Executive,Advertising & Publicity,D3802,15/10/2019,1064481 - 0,450,Revenue,CLEAR AND CREATIVE COMMUNICATIONS
Oxford City Council,Assistant Chief Executive,General Contracted Services,D3401,10/09/2019,1064496 - 0,"2,538.00",Revenue,"WORD360 LTD.,"
Oxford City Council,Assistant Chief Executive,Software Maintenance/Running Costs,D3513,08/10/2019,1064678 - 0,"5,200.00",Revenue,Jadu Creative Limited
Oxford City Council,Assistant Chief Executive,General Contracted Services,D3401,01/10/2019,1064754 - 0,906.25,Revenue,THE KING'S CENTRE
Oxford City Council,Assistant Chief Executive,General Contracted Services,D3401,22/10/2019,1064827 - 0,"4,041.00",Revenue,CONNECTION SUPPORT
Oxford City Council,Assistant Chief Executive,General Contracted Services,D3401,01/10/2019,1064831 - 0,"3,000.00",Revenue,
Oxford City Council,Assistant Chief Executive,Advertising & Publicity,D3802,15/10/2019,1065068 - 0,791,Revenue,ARTISAN INTELLEGENT PRINT SOLUTIONS
Oxford City Council,Assistant Chief Executive,General Contracted Services,D3401,05/11/2019,1065243 - 0,"3,000.00",Revenue,
Oxford City Council,Assistant Chief Executive,Advertising & Publicity,D3802,15/10/2019,1065274 - 0,795,Revenue,KINGDOM SIGNS (ARTISAN LITHO LTD T/A)
Oxford City Council,Assistant Chief Executive,Temporary Bureau Staffing,A0108,15/10/2019,1065279 - 0,910.25,Revenue,REED SPECIALIST RECRUITMENT LTD
Oxford City Council,Assistant Chief Executive,General Contracted Services,D3401,26/11/2019,1065280 - 0,"5,500.00",Revenue,BEDFORD BOROUGH COUNCIL
Oxford City Council,Assistant Chief Executive,Advertising & Publicity,D3802,29/10/2019,1065401 - 0,"1,510.00",Revenue,
Oxford City Council,Assistant Chief Executive,General Contracted Services,D3401,19/11/2019,1065595 - 0,"14,250.00",Revenue,THE CAMPAIGN COMPANY
Oxford City Council,Assistant Chief Executive,General Contracted Services,D3401,12/11/2019,1065597 - 0,"4,041.00",Revenue,CONNECTION SUPPORT
Oxford City Council,Assistant Chief Executive,Advertising & Publicity,D3802,05/11/2019,1065723 - 0,870,Revenue,
Oxford City Council,Assistant Chief Executive,Licences (Non-Transport),D3804,03/12/2019,1065954 - 0,"5,000.00",Revenue,OXFORD CONSULTANTS FOR SOCIAL INCLUSION LTD
Oxford City Council,Assistant Chief Executive,General Contracted Services,D3401,17/12/2019,1066066 - 0,"4,041.00",Revenue,CONNECTION SUPPORT
Oxford City Council,Assistant Chief Executive,General Contracted Services,D3401,26/11/2019,1066168 - 1,"2,021.38",Revenue,THE KING'S CENTRE
Oxford City Council,Assistant Chief Executive,Grants,D3701,26/11/2019,1066227 - 0,"9,875.00",Revenue,"EMBS Community College Ltd.,"
Oxford City Council,Assistant Chief Executive,Advertising & Publicity,D3802,10/12/2019,1066525 - 0,970,Revenue,CARBON COLOUR COMPANY LTD
Oxford City Council,Assistant Chief Executive,General Contracted Services,D3401,10/12/2019,1066562 - 0,"5,000.00",Revenue,
Oxford City Council,Assistant Chief Executive,Conferences/Seminars,A0636,24/12/2019,1066745 - 0,"8,890.00",Revenue,UNIVERSITY OF OXFORD
Oxford City Council,Assistant Chief Executive,Advertising & Publicity,D3802,24/12/2019,1066747 - 0,"2,000.00",Revenue,EXTERION MEDIA LIMITED
Oxford City Council,Assistant Chief Executive,Conferences/Seminars,A0636,24/12/2019,1066750 - 0,"7,713.20",Revenue,UNIVERSITY OF OXFORD
Oxford City Council,Assistant Chief Executive,Temporary Bureau Staffing,A0108,15/01/2019,46300852 - 16,"3,171.19",Revenue,REED SPECIALIST RECRUITMENT LTD
Oxford City Council,Assistant Chief Executive,Temporary Bureau Staffing,A0108,12/02/2019,46301116 - 17,"3,084.93",Revenue,REED SPECIALIST RECRUITMENT LTD
Oxford City Council,Assistant Chief Executive,Temporary Bureau Staffing,A0108,12/03/2019,46301402 - 15,"1,430.11",Revenue,REED SPECIALIST RECRUITMENT LTD
Oxford City Council,Assistant Chief Executive,General Contracted Services,D3401,24/04/2019,46302339 - 1,"32,708.00",Revenue,OXFORDSHIRE COUNTY COUNCIL
Oxford City Council,Assistant Chief Executive,Advertising & Publicity,D3802,02/07/2019,46303342 - 1,"3,000.00",Revenue,GRANT PAYMENTS
Oxford City Council,Assistant Chief Executive,Temporary Bureau Staffing,A0108,16/07/2019,46303505 - 24,"2,689.95",Revenue,REED SPECIALIST RECRUITMENT LTD
Oxford City Council,Assistant Chief Executive,Temporary Bureau Staffing,A0108,13/08/2019,46303956 - 23,"3,905.88",Revenue,REED SPECIALIST RECRUITMENT LTD
Oxford City Council,Assistant Chief Executive,Temporary Bureau Staffing,A0108,10/09/2019,46304230 - 23,"3,322.11",Revenue,REED SPECIALIST RECRUITMENT LTD
Oxford City Council,Assistant Chief Executive,Advertising & Publicity,D3802,29/10/2019,46304811 - 1,"1,000.00",Revenue,GENERAL EXPENSES
Oxford City Council,Assistant Chief Executive,Advertising & Publicity,D3802,03/12/2019,46305260 - 1,833.33,Revenue,GENERAL EXPENSES
Oxford City Council,Assistant Chief Executive,Advertising & Publicity,D3802,24/12/2019,46305504 - 1,"1,000.00",Revenue,GENERAL EXPENSES
Oxford City Council,Business Improvement,General Stationery Supplies,D3301,31/01/2019,1043717 - 0,"2,080.64",Revenue,LYRECO UK LTD
Oxford City Council,Business Improvement,Management Development,A0637,08/01/2019,1058932 - 0,959.4,Revenue,LEADERSHIP CENTRE
Oxford City Council,Business Improvement,Management Development,A0637,08/01/2019,1058933 - 0,959.1,Revenue,LEADERSHIP CENTRE
Oxford City Council,Business Improvement,General Contracted Services,D3401,08/01/2019,1058965 - 0,604.93,Revenue,"WORD360 LTD.,"
Oxford City Council,Business Improvement,Software Maintenance/Running Costs,D3513,08/01/2019,1058985 - 0,"5,500.00",Revenue,"Archant Community Media Ltd.,"
Oxford City Council,Business Improvement,Main Contractor,Y021,15/01/2019,1059009 - 0,"5,830.00",Capital,NETCALL TECHNOLOGY LTD
Oxford City Council,Business Improvement,Postage & Carriage,D3501,08/01/2019,1059053 - 0,"1,264.65",Revenue,CRITIQOM LTD
Oxford City Council,Business Improvement,Contract Printing (External),D3303,08/01/2019,1059074 - 0,"1,427.00",Revenue,MAYFIELD PRESS LTD
Oxford City Council,Business Improvement,Contract Printing (External),D3303,15/01/2019,1059100 - 0,429,Revenue,BANBURY LITHO LIMITED
Oxford City Council,Business Improvement,General Contracted Services,D3401,15/01/2019,1059103 - 0,"8,887.50",Revenue,Advanced t/a Kirona Solutions Ltd.
Oxford City Council,Business Improvement,General Contracted Services,D3401,15/01/2019,1059104 - 0,"1,000.00",Revenue,Advanced t/a Kirona Solutions Ltd.
Oxford City Council,Business Improvement,General Contracted Services,D3401,15/01/2019,1059105 - 0,"3,555.00",Revenue,Advanced t/a Kirona Solutions Ltd.
Oxford City Council,Business Improvement,Software Maintenance/Running Costs,D3513,08/01/2019,1059169 - 1,"5,557.87",Revenue,EXPERIAN LTD
Oxford City Council,Business Improvement,Software Maintenance/Running Costs,D3513,08/01/2019,1059191 - 0,"20,445.00",Revenue,PLANET IT LTD
Oxford City Council,Business Improvement,Short Courses,A0622,22/01/2019,1059195 - 0,"2,500.00",Revenue,THE INSTITUTE OF CUSTOMER SERVICE
Oxford City Council,Business Improvement,Consultants Fees,D3411,08/01/2019,1059197 - 0,"1,078.73",Revenue,PEOPLE ASSET MANAGEMENT LTD
Oxford City Council,Business Improvement,Network Rental,D3531,15/01/2019,1059205 - 1,738.6,Revenue,VODAFONE LTD
Oxford City Council,Business Improvement,Software Maintenance/Running Costs,D3513,08/01/2019,1059210 - 0,"6,000.00",Revenue,SIRIUS OPEN SOURCE LTD
Oxford City Council,Business Improvement,General Stationery Supplies,D3301,29/01/2019,1059232 - 0,"1,170.47",Revenue,LYRECO UK LTD
Oxford City Council,Business Improvement,Postage & Carriage,D3501,15/01/2019,1059243 - 0,687.47,Revenue,CRITIQOM LTD
Oxford City Council,Business Improvement,General Contracted Services,D3401,29/01/2019,1059260 - 0,"1,900.00",Revenue,SCC (SPECIALIST COMPUTER CENTRES PLC)
Oxford City Council,Business Improvement,Network Rental,D3531,15/01/2019,1059265 - 1,"22,665.81",Revenue,BT PAYMENT SERVICES
Oxford City Council,Business Improvement,Postage & Carriage,D3501,29/01/2019,1059267 - 0,462.2,Revenue,CRITIQOM LTD
Oxford City Council,Business Improvement,General Contracted Services,D3401,15/01/2019,1059288 - 0,"2,403.81",Revenue,SCC (SPECIALIST COMPUTER CENTRES PLC)
Oxford City Council,Business Improvement,Consultants Fees,D3411,15/01/2019,1059289 - 0,"1,599.50",Revenue,PEOPLE ASSET MANAGEMENT LTD
Oxford City Council,Business Improvement,Contract Printing (External),D3303,15/01/2019,1059300 - 0,536,Revenue,BANBURY LITHO LIMITED
Oxford City Council,Business Improvement,Main Contractor,Y021,15/01/2019,1059312 - 0,750,Capital,AAREON UK LTD
Oxford City Council,Business Improvement,Network Rental,D3531,29/01/2019,1059319 - 1,"2,945.96",Revenue,BT GLOBAL SERVICES
Oxford City Council,Business Improvement,Network Rental,D3531,15/01/2019,1059353 - 1,727.56,Revenue,VODAFONE LTD
Oxford City Council,Business Improvement,Temporary Bureau Staffing,A0108,05/02/2019,1059418 - 0,"4,180.00",Revenue,SOLUTIONIZE GLOBAL LTD
Oxford City Council,Business Improvement,Police Checks,D3429,15/01/2019,1059431 - 0,523,Revenue,CANTIUM BUSINESS SOLUTIONS LTD
Oxford City Council,Business Improvement,General Contracted Services,D3401,29/01/2019,1059436 - 0,"49,370.91",Revenue,SCC (SPECIALIST COMPUTER CENTRES PLC)
Oxford City Council,Business Improvement,Software Maintenance/Running Costs,D3513,29/01/2019,1059437 - 1,784,Revenue,BT GLOBAL SERVICES
Oxford City Council,Business Improvement,Main Contractor,Y021,22/01/2019,1059491 - 1,"4,722.17",Capital,OXFORD DIRECT SERVICES LTD
Oxford City Council,Business Improvement,General Stationery Supplies,D3301,22/01/2019,1059562 - 0,"2,318.93",Revenue,LYRECO UK LTD
Oxford City Council,Business Improvement,Postage & Carriage,D3501,05/02/2019,1059569 - 0,"1,651.82",Revenue,CRITIQOM LTD
Oxford City Council,Business Improvement,Postage & Carriage,D3501,05/02/2019,1059570 - 0,"10,975.50",Revenue,CRITIQOM LTD
Oxford City Council,Business Improvement,Software Maintenance/Running Costs,D3513,05/02/2019,1059577 - 0,"3,000.00",Revenue,SIRIUS OPEN SOURCE LTD
Oxford City Council,Business Improvement,Training Supplies,A0646,22/01/2019,1059590 - 0,"2,375.00",Revenue,FLUID BRANDING LTD
Oxford City Council,Business Improvement,General Contracted Services,D3401,12/02/2019,1059593 - 0,488.99,Revenue,"WORD360 LTD.,"
Oxford City Council,Business Improvement,Software Maintenance/Running Costs,D3513,05/02/2019,1059606 - 0,878,Revenue,DOTTED EYES LTD
Oxford City Council,Business Improvement,Software Maintenance/Running Costs,D3513,22/01/2019,1059648 - 0,"2,706.35",Revenue,NORTHGATE PUBLIC SERVICES (UK) LTD
Oxford City Council,Business Improvement,Contract Printing (External),D3303,02/04/2019,1059657 - 0,"1,414.91",Revenue,CRITIQOM LTD
Oxford City Council,Business Improvement,External Telephone Charges,D3503,29/01/2019,1059664 - 1,"22,665.81",Revenue,BT GLOBAL SERVICES
Oxford City Council,Business Improvement,Software Maintenance/Running Costs,D3513,29/01/2019,1059683 - 0,600,Revenue,NORTHGATE PUBLIC SERVICES (UK) LTD
Oxford City Council,Business Improvement,Software Maintenance/Running Costs,D3513,29/01/2019,1059685 - 0,450,Revenue,NORTHGATE PUBLIC SERVICES (UK) LTD
Oxford City Council,Business Improvement,Main Contractor,Y021,29/01/2019,1059690 - 0,"1,700.00",Capital,AAREON UK LTD
Oxford City Council,Business Improvement,General Stationery Supplies,D3301,12/02/2019,1059699 - 0,787,Revenue,Encore Envelopes Ltd
Oxford City Council,Business Improvement,Software Maintenance/Running Costs,D3513,12/02/2019,1059703 - 0,"2,563.82",Revenue,NORTHGATE PUBLIC SERVICES (UK) LTD
Oxford City Council,Business Improvement,Software Purchase,D3511,12/02/2019,1059712 - 0,"25,842.70",Revenue,ESRI (UK) LTD
Oxford City Council,Business Improvement,Contract Printing (External),D3303,19/03/2019,1059725 - 0,"1,940.00",Revenue,FINE PRINT (SERVICES) LTD
Oxford City Council,Business Improvement,Software Maintenance/Running Costs,D3513,29/01/2019,1059743 - 0,"1,380.00",Revenue,INTEGRA ASSOCIATES
Oxford City Council,Business Improvement,Travel Scheme Discount,C2505,05/02/2019,1059758 - 1,"1,888.70",Revenue,OXFORD BUS COMPANY LTD
Oxford City Council,Business Improvement,Postage & Carriage,D3501,12/02/2019,1059777 - 0,760.49,Revenue,CRITIQOM LTD
Oxford City Council,Business Improvement,Software Maintenance/Running Costs,D3513,12/02/2019,1059790 - 0,"8,194.00",Revenue,EXPERIAN LTD
Oxford City Council,Business Improvement,Main Contractor,Y021,26/02/2019,1059828 - 0,850,Capital,AAREON UK LTD
Oxford City Council,Business Improvement,Main Contractor,Y021,26/02/2019,1059829 - 0,"1,700.00",Capital,AAREON UK LTD
Oxford City Council,Business Improvement,Software Maintenance/Running Costs,D3513,26/02/2019,1059834 - 0,"4,755.00",Revenue,R & A SOFTWARE SYSTEMS T/A RA INFORM SYSTEMS
Oxford City Council,Business Improvement,Main Contractor,Y021,05/02/2019,1059861 - 0,"4,362.00",Capital,BT BUSINESS DIRECT
Oxford City Council,Business Improvement,Minor Purchases,Y030,05/02/2019,1059866 - 1,"3,430.00",Capital,OXFORD DIRECT SERVICES LTD
Oxford City Council,Business Improvement,Consultants Fees,D3411,19/02/2019,1059883 - 0,"1,330.00",Revenue,PEOPLE ASSET MANAGEMENT LTD
Oxford City Council,Business Improvement,Postage & Carriage,D3501,19/02/2019,1059912 - 0,749.27,Revenue,CRITIQOM LTD
Oxford City Council,Business Improvement,Contract Printing (External),D3303,19/02/2019,1059923 - 0,681,Revenue,MAYFIELD PRESS LTD
Oxford City Council,Business Improvement,General Stationery Supplies,D3301,26/02/2019,1059944 - 0,"1,763.45",Revenue,LYRECO UK LTD
Oxford City Council,Business Improvement,General Contracted Services,D3401,26/02/2019,1059964 - 0,"1,900.00",Revenue,SCC (SPECIALIST COMPUTER CENTRES PLC)
Oxford City Council,Business Improvement,Main Contractor,Y021,12/02/2019,1059992 - 0,"1,355.00",Capital,BT BUSINESS DIRECT
Oxford City Council,Business Improvement,Main Contractor,Y021,12/02/2019,1059993 - 0,"1,325.00",Capital,BT BUSINESS DIRECT
Oxford City Council,Business Improvement,Consultants Fees,D3411,19/02/2019,1059997 - 0,555,Revenue,PEOPLE ASSET MANAGEMENT LTD
Oxford City Council,Business Improvement,Main Contractor,Y021,26/02/2019,1060005 - 0,850,Capital,AAREON UK LTD
Oxford City Council,Business Improvement,Main Contractor,Y021,26/02/2019,1060006 - 0,850,Capital,AAREON UK LTD
Oxford City Council,Business Improvement,Main Contractor,Y021,26/02/2019,1060007 - 0,850,Capital,AAREON UK LTD
Oxford City Council,Business Improvement,Main Contractor,Y021,26/02/2019,1060008 - 0,850,Capital,AAREON UK LTD
Oxford City Council,Business Improvement,Main Contractor,Y021,26/02/2019,1060009 - 0,750,Capital,AAREON UK LTD
Oxford City Council,Business Improvement,Compliance Training (H&S),A0630,26/02/2019,1060015 - 0,"5,904.77",Revenue,MIND (NATIONAL ASSOCIATION FOR MENTAL HEALTH)
Oxford City Council,Business Improvement,Police Checks,D3429,12/02/2019,1060029 - 0,"1,185.50",Revenue,CANTIUM BUSINESS SOLUTIONS LTD
Oxford City Council,Business Improvement,Hardware Rental,D3521,12/02/2019,1060066 - 0,919.85,Revenue,Quadient Finance UK Ltd
Oxford City Council,Business Improvement,Main Contractor,Y021,19/02/2019,1060083 - 1,"4,722.17",Capital,OXFORD DIRECT SERVICES LTD
Oxford City Council,Business Improvement,Corporate Development Programme,A0631,05/03/2019,1060103 - 0,"4,625.00",Revenue,INCLUSIVE EMPLOYERS LIMITED
Oxford City Council,Business Improvement,Other,C2502,19/02/2019,1060175 - 1,"2,187.05",Revenue,OXFORD BUS COMPANY LTD
Oxford City Council,Business Improvement,Software Maintenance/Running Costs,D3513,26/03/2019,1060185 - 1,"1,030.95",Revenue,BYTES SOFTWARE SERVICES LTD
Oxford City Council,Business Improvement,Temporary Bureau Staffing,A0108,12/03/2019,1060232 - 0,"4,840.00",Revenue,SOLUTIONIZE GLOBAL LTD
Oxford City Council,Business Improvement,Software Maintenance/Running Costs,D3513,26/02/2019,1060257 - 0,"1,634.89",Revenue,ORACLE CORPORATION UK LTD
Oxford City Council,Business Improvement,Software Maintenance/Running Costs,D3513,26/02/2019,1060259 - 0,"3,269.75",Revenue,ORACLE CORPORATION UK LTD
Oxford City Council,Business Improvement,Software Maintenance/Running Costs,D3513,26/02/2019,1060296 - 0,"8,613.33",Revenue,TRUSTED TERMINAL LTD (TRADING AS TRUST ID)
Oxford City Council,Business Improvement,Short Courses,A0622,26/02/2019,1060301 - 0,"2,175.00",Revenue,BYTES SOFTWARE SERVICES LTD
Oxford City Council,Business Improvement,Main Contractor,Y021,26/02/2019,1060399 - 0,"7,500.00",Capital,AAREON UK LTD
Oxford City Council,Business Improvement,Postage & Carriage,D3501,26/02/2019,1060438 - 0,601.75,Revenue,CRITIQOM LTD
Oxford City Council,Business Improvement,Postage & Carriage,D3501,05/03/2019,1060440 - 0,925.69,Revenue,CRITIQOM LTD
Oxford City Council,Business Improvement,Consultants Fees,D3411,05/03/2019,1060492 - 0,"1,650.00",Revenue,PEOPLE ASSET MANAGEMENT LTD
Oxford City Council,Business Improvement,General Contracted Services,D3401,26/02/2019,1060498 - 0,"32,435.45",Revenue,SCC (SPECIALIST COMPUTER CENTRES PLC)
Oxford City Council,Business Improvement,General Contracted Services,D3401,26/02/2019,1060499 - 0,"49,370.91",Revenue,SCC (SPECIALIST COMPUTER CENTRES PLC)
Oxford City Council,Business Improvement,Hardware Rental,D3521,05/03/2019,1060504 - 0,666.38,Revenue,SHARP BUSINESS SYSTEMS UK PLC
Oxford City Council,Business Improvement,Photocopying/Paper Supplies,D3306,05/03/2019,1060504 - 1,"1,269.21",Revenue,SHARP BUSINESS SYSTEMS UK PLC
Oxford City Council,Business Improvement,Hardware Rental,D3521,05/03/2019,1060505 - 0,257.6,Revenue,SHARP BUSINESS SYSTEMS UK PLC
Oxford City Council,Business Improvement,Photocopying/Paper Supplies,D3306,05/03/2019,1060505 - 1,334.53,Revenue,SHARP BUSINESS SYSTEMS UK PLC
Oxford City Council,Business Improvement,Network Rental,D3531,26/02/2019,1060509 - 1,764.12,Revenue,VODAFONE LTD
Oxford City Council,Business Improvement,Network Rental,D3531,26/02/2019,1060512 - 1,"4,352.38",Revenue,VODAFONE LTD
Oxford City Council,Business Improvement,Network Rental,D3531,26/02/2019,1060513 - 1,"4,352.38",Revenue,VODAFONE LTD
Oxford City Council,Business Improvement,External Telephone Charges,D3503,26/02/2019,1060527 - 1,"29,561.44",Revenue,BT PAYMENT SERVICES
Oxford City Council,Business Improvement,External Telephone Charges,D3503,26/02/2019,1060528 - 1,"51,259.57",Revenue,BT PAYMENT SERVICES
Oxford City Council,Business Improvement,Software Maintenance/Running Costs,D3513,19/03/2019,1060538 - 0,"9,370.00",Revenue,NORTHGATE PUBLIC SERVICES (UK) LTD
Oxford City Council,Business Improvement,Software Maintenance/Running Costs,D3513,19/03/2019,1060539 - 0,"3,680.00",Revenue,NORTHGATE PUBLIC SERVICES (UK) LTD
Oxford City Council,Business Improvement,Compliance Training (H&S),A0630,12/03/2019,1060541 - 0,"1,744.73",Revenue,HEALTH ASSURED LIMITED
Oxford City Council,Business Improvement,Postage & Carriage,D3501,12/03/2019,1060553 - 0,994.62,Revenue,CRITIQOM LTD
Oxford City Council,Business Improvement,Software Maintenance/Running Costs,D3513,19/03/2019,1060555 - 0,"39,802.89",Revenue,UNIT 4 BUSINESS SOFTWARE LTD.
Oxford City Council,Business Improvement,Software Maintenance/Running Costs,D3513,05/03/2019,1060574 - 0,676,Revenue,INTEGRA ASSOCIATES
Oxford City Council,Business Improvement,Main Contractor,Y021,05/03/2019,1060575 - 0,540,Capital,INTEGRA ASSOCIATES
Oxford City Council,Business Improvement,Software Maintenance/Running Costs,D3513,05/03/2019,1060577 - 0,"1,380.00",Revenue,INTEGRA ASSOCIATES
Oxford City Council,Business Improvement,Main Contractor,Y021,19/03/2019,1060605 - 0,712.5,Capital,Advanced t/a Kirona Solutions Ltd.
Oxford City Council,Business Improvement,Short Courses,A0622,05/03/2019,1060622 - 0,620,Revenue,PROFESSIONAL PLANNING FORUM
Oxford City Council,Business Improvement,Consultants Fees,D3411,05/03/2019,1060632 - 0,"30,919.50",Revenue,TORCHBOX LTD
Oxford City Council,Business Improvement,Network Rental,D3531,05/03/2019,1060676 - 1,"3,264.03",Revenue,VODAFONE LTD
Oxford City Council,Business Improvement,Main Contractor,Y021,12/03/2019,1060725 - 0,"2,975.00",Capital,AAREON UK LTD
Oxford City Council,Business Improvement,Main Contractor,Y021,12/03/2019,1060726 - 0,"3,825.00",Capital,AAREON UK LTD
Oxford City Council,Business Improvement,Main Contractor,Y021,12/03/2019,1060727 - 0,850,Capital,AAREON UK LTD
Oxford City Council,Business Improvement,General Contracted Services,D3401,19/03/2019,1060741 - 0,"7,321.14",Revenue,NG BAILEY IT SERVICES LTD
Oxford City Council,Business Improvement,Consultants Fees,D3411,26/03/2019,1060745 - 0,"1,885.00",Revenue,PEOPLE ASSET MANAGEMENT LTD
Oxford City Council,Business Improvement,Software Maintenance/Running Costs,D3513,26/03/2019,1060755 - 0,"40,412.23",Revenue,NORTHGATE PUBLIC SERVICES (UK) LTD
Oxford City Council,Business Improvement,Consultants Fees,D3411,26/03/2019,1060757 - 0,"4,270.00",Revenue,PEOPLE ASSET MANAGEMENT LTD
Oxford City Council,Business Improvement,Network Rental,D3531,12/03/2019,1060812 - 1,805.62,Revenue,VODAFONE LTD
Oxford City Council,Business Improvement,Software Maintenance/Running Costs,D3513,26/03/2019,1060813 - 0,"6,818.10",Revenue,EXEGESIS SDM LTD
Oxford City Council,Business Improvement,Software Maintenance/Running Costs,D3513,26/03/2019,1060814 - 0,"7,757.27",Revenue,EXEGESIS SDM LTD
Oxford City Council,Business Improvement,Software Maintenance/Running Costs,D3513,26/03/2019,1060815 - 0,"2,670.00",Revenue,CHRONOLOGIC LTD
Oxford City Council,Business Improvement,Postage & Carriage,D3501,19/03/2019,1060829 - 0,681.52,Revenue,CRITIQOM LTD
Oxford City Council,Business Improvement,Servitor,D3508,12/03/2019,1060830 - 0,"21,442.06",Revenue,CIVICA UK LTD
Oxford City Council,Business Improvement,Main Contractor,Y021,08/05/2019,1060834 - 0,"3,825.00",Capital,ESTEEM SYSTEMS  LTD
Oxford City Council,Business Improvement,Short Courses,A0622,12/03/2019,1060839 - 0,566,Revenue,BYTES SOFTWARE SERVICES LTD
Oxford City Council,Business Improvement,General Contracted Services,D3401,26/03/2019,1060854 - 0,"1,900.00",Revenue,SCC (SPECIALIST COMPUTER CENTRES PLC)
Oxford City Council,Business Improvement,Photocopying/Paper Supplies,D3306,12/03/2019,1060863 - 1,"14,206.85",Revenue,SHARP BUSINESS SYSTEMS UK PLC
Oxford City Council,Business Improvement,General Stationery Supplies,D3301,26/03/2019,1060864 - 0,"1,711.95",Revenue,LYRECO UK LTD
Oxford City Council,Business Improvement,General Contracted Services,D3401,26/03/2019,1060866 - 0,"49,370.91",Revenue,SCC (SPECIALIST COMPUTER CENTRES PLC)
Oxford City Council,Business Improvement,Short Courses,A0622,19/03/2019,1060885 - 0,"1,950.00",Revenue,BYTES SOFTWARE SERVICES LTD
Oxford City Council,Business Improvement,Main Contractor,Y021,19/03/2019,1060886 - 0,"2,946.31",Capital,BYTES SOFTWARE SERVICES LTD
Oxford City Council,Business Improvement,Other,C2502,26/03/2019,1060888 - 1,"5,340.80",Revenue,OXFORD BUS COMPANY LTD
Oxford City Council,Business Improvement,Contract Printing (External),D3303,26/03/2019,1060959 - 0,444,Revenue,MAYFIELD PRESS LTD
Oxford City Council,Business Improvement,Contract Printing (External),D3303,02/04/2019,1060960 - 0,455,Revenue,MAYFIELD PRESS LTD
Oxford City Council,Business Improvement,Main Contractor,Y021,19/03/2019,1060965 - 0,850,Capital,AAREON UK LTD
Oxford City Council,Business Improvement,Main Contractor,Y021,19/03/2019,1060966 - 0,850,Capital,AAREON UK LTD
Oxford City Council,Business Improvement,Main Contractor,Y021,19/03/2019,1060967 - 0,750,Capital,AAREON UK LTD
Oxford City Council,Business Improvement,Main Contractor,Y021,19/03/2019,1060970 - 0,850,Capital,AAREON UK LTD
Oxford City Council,Business Improvement,Main Contractor,Y021,19/03/2019,1060971 - 0,850,Capital,AAREON UK LTD
Oxford City Council,Business Improvement,Temporary Bureau Staffing,A0108,02/04/2019,1060976 - 0,"4,400.00",Revenue,SOLUTIONIZE GLOBAL LTD
Oxford City Council,Business Improvement,Servitor,D3508,26/03/2019,1060979 - 0,"90,785.27",Revenue,CIVICA UK LTD
Oxford City Council,Business Improvement,External Telephone Charges,D3503,15/01/2019,1060994 - 1,"51,259.57",Revenue,BT PAYMENT SERVICES
Oxford City Council,Business Improvement,Short Courses,A0622,19/03/2019,1061007 - 1,463.4,Revenue,BYTES SOFTWARE SERVICES LTD
Oxford City Council,Business Improvement,Short Courses,A0622,19/03/2019,1061008 - 0,566,Revenue,BYTES SOFTWARE SERVICES LTD
Oxford City Council,Business Improvement,Short Courses,A0622,19/03/2019,1061010 - 0,"1,950.00",Revenue,BYTES SOFTWARE SERVICES LTD
Oxford City Council,Business Improvement,Main Contractor,Y021,19/03/2019,1061014 - 1,"4,722.17",Capital,OXFORD DIRECT SERVICES LTD
Oxford City Council,Business Improvement,Software Maintenance/Running Costs,D3513,26/03/2019,1061025 - 0,"4,710.00",Revenue,WORKBOOKS ONLINE LTD
Oxford City Council,Business Improvement,Postage & Carriage,D3501,02/04/2019,1061060 - 0,"1,116.53",Revenue,CRITIQOM LTD
Oxford City Council,Business Improvement,Short Courses,A0622,26/03/2019,1061063 - 0,"5,606.70",Revenue,SPACE2THINK LTD
Oxford City Council,Business Improvement,Servitor,D3508,26/03/2019,1061090 - 0,"1,034.00",Revenue,CIVICA UK LTD
Oxford City Council,Business Improvement,Software Maintenance/Running Costs,D3513,09/04/2019,1061204 - 0,"12,454.41",Revenue,CAE TECHNOLOGY SERVICES LTD
Oxford City Council,Business Improvement,Main Contractor,Y021,02/04/2019,1061244 - 0,850,Capital,AAREON UK LTD
Oxford City Council,Business Improvement,Main Contractor,Y021,02/04/2019,1061245 - 0,850,Capital,AAREON UK LTD
Oxford City Council,Business Improvement,Main Contractor,Y021,02/04/2019,1061246 - 0,850,Capital,AAREON UK LTD
Oxford City Council,Business Improvement,Software Maintenance/Running Costs,D3513,02/04/2019,1061252 - 0,676,Revenue,INTEGRA ASSOCIATES
Oxford City Council,Business Improvement,Software Maintenance/Running Costs,D3513,02/04/2019,1061253 - 0,"1,380.00",Revenue,INTEGRA ASSOCIATES
Oxford City Council,Business Improvement,Network Rental,D3531,02/04/2019,1061288 - 1,"4,352.38",Revenue,VODAFONE LTD
Oxford City Council,Business Improvement,Software Maintenance/Running Costs,D3513,24/04/2019,1061344 - 0,"10,345.00",Revenue,CLOUD 9 TECHNOLOGIES
Oxford City Council,Business Improvement,Main Contractor,Y021,02/04/2019,1061354 - 0,"1,800.00",Capital,AAREON UK LTD
Oxford City Council,Business Improvement,Software Purchase,D3511,09/04/2019,1061364 - 0,"1,300.00",Revenue,CAPITA BUSINESS SERVICES LTD
Oxford City Council,Business Improvement,Main Contractor,Y021,24/04/2019,1061385 - 0,"3,771.70",Capital,TECHBUYER LTD
Oxford City Council,Business Improvement,Postage & Carriage,D3501,09/04/2019,1061397 - 0,668.04,Revenue,CRITIQOM LTD
Oxford City Council,Business Improvement,Contract Printing (External),D3303,24/04/2019,1061420 - 0,"1,940.00",Revenue,FINE PRINT (SERVICES) LTD
Oxford City Council,Business Improvement,Main Contractor,Y021,02/04/2019,1061426 - 0,850,Capital,AAREON UK LTD
Oxford City Council,Business Improvement,Instructors & Coaching Fees,D3413,16/04/2019,1061430 - 0,978,Revenue,MIDLAND HR
Oxford City Council,Business Improvement,General Contracted Services,D3401,24/04/2019,1061431 - 0,"1,700.00",Revenue,ALEMBA LIMITED
Oxford City Council,Business Improvement,Software Maintenance/Running Costs,D3513,09/04/2019,1061468 - 0,"7,727.54",Revenue,XN LEISURE SYSTEMS LTD
Oxford City Council,Business Improvement,Consultants Fees,D3411,02/04/2019,1061487 - 0,500,Revenue,
Oxford City Council,Business Improvement,Consultants Fees,D3411,02/04/2019,1061488 - 0,"1,000.00",Revenue,MIDLAND HR
Oxford City Council,Business Improvement,Main Contractor,Y021,24/04/2019,1061514 - 0,963.75,Capital,TECHBUYER LTD
Oxford City Council,Business Improvement,Main Contractor,Y021,24/04/2019,1061541 - 0,650,Capital,SCC (SPECIALIST COMPUTER CENTRES PLC)
Oxford City Council,Business Improvement,General Contracted Services,D3401,24/04/2019,1061542 - 0,"1,900.00",Revenue,SCC (SPECIALIST COMPUTER CENTRES PLC)
Oxford City Council,Business Improvement,Software Maintenance/Running Costs,D3513,30/04/2019,1061551 - 0,"1,300.00",Revenue,NORTHGATE PUBLIC SERVICES (UK) LTD
Oxford City Council,Business Improvement,Software Maintenance/Running Costs,D3513,09/04/2019,1061558 - 0,"8,354.16",Revenue,PLANET IT LTD
Oxford City Council,Business Improvement,Main Contractor,Y021,09/04/2019,1061588 - 0,850,Capital,AAREON UK LTD
Oxford City Council,Business Improvement,Main Contractor,Y021,09/04/2019,1061593 - 0,"1,500.00",Capital,AAREON UK LTD
Oxford City Council,Business Improvement,Main Contractor,Y021,09/04/2019,1061594 - 0,850,Capital,AAREON UK LTD
Oxford City Council,Business Improvement,Consultants Fees,D3411,09/04/2019,1061599 - 0,705,Revenue,PEOPLE ASSET MANAGEMENT LTD
Oxford City Council,Business Improvement,Network Rental,D3531,09/04/2019,1061601 - 1,794.29,Revenue,VODAFONE LTD
Oxford City Council,Business Improvement,Network Rental,D3531,09/04/2019,1061603 - 1,"3,264.03",Revenue,VODAFONE LTD
Oxford City Council,Business Improvement,Postage & Carriage,D3501,16/04/2019,1061627 - 0,"1,031.94",Revenue,CRITIQOM LTD
Oxford City Council,Business Improvement,Network Rental,D3531,16/04/2019,1061639 - 1,"4,352.38",Revenue,VODAFONE LTD
Oxford City Council,Business Improvement,Temporary Bureau Staffing,A0108,30/04/2019,1061640 - 0,"4,620.00",Revenue,SOLUTIONIZE GLOBAL LTD
Oxford City Council,Business Improvement,Software Purchase,D3511,30/04/2019,1061641 - 0,"8,250.00",Revenue,MODERN MINDSET LTD
Oxford City Council,Business Improvement,Miscellaneous Fees,Y173,08/05/2019,1061676 - 0,"4,782.33",Capital,OXFORD DIRECT SERVICES LTD
Oxford City Council,Business Improvement,Main Contractor,Y021,16/04/2019,1061689 - 0,650,Capital,AAREON UK LTD
Oxford City Council,Business Improvement,Short Courses,A0622,16/04/2019,1061698 - 0,529,Revenue,BYTES SOFTWARE SERVICES LTD
Oxford City Council,Business Improvement,Software Maintenance/Running Costs,D3513,24/04/2019,1061707 - 0,"75,701.38",Revenue,CAPITA BUSINESS SERVICES LTD
Oxford City Council,Business Improvement,General Contracted Services,D3401,29/05/2019,1061711 - 0,"2,900.00",Revenue,SCC (SPECIALIST COMPUTER CENTRES PLC)
Oxford City Council,Business Improvement,Corporate Development Programme,A0631,30/04/2019,1061712 - 0,"14,700.00",Revenue,ADVANCE CHANGE LTD
Oxford City Council,Business Improvement,Software Maintenance/Running Costs,D3513,24/04/2019,1061725 - 0,"5,645.70",Revenue,Jadu Creative Limited
Oxford City Council,Business Improvement,General Contracted Services,D3401,29/05/2019,1061734 - 0,"49,370.91",Revenue,SCC (SPECIALIST COMPUTER CENTRES PLC)
Oxford City Council,Business Improvement,Photocopying/Paper Supplies,D3306,08/05/2019,1061743 - 1,488.77,Revenue,SHARP BUSINESS SYSTEMS UK PLC
Oxford City Council,Business Improvement,Postage & Carriage,D3501,24/04/2019,1061750 - 0,718.53,Revenue,CRITIQOM LTD
Oxford City Council,Business Improvement,Consultants Fees,D3411,24/04/2019,1061751 - 0,586.7,Revenue,TORCHBOX LTD
Oxford City Council,Business Improvement,General Stationery Supplies,D3301,08/05/2019,1061754 - 0,"1,470.00",Revenue,HOUND ENVELOPES LTD
Oxford City Council,Business Improvement,General Stationery Supplies,D3301,30/04/2019,1061759 - 0,"1,581.25",Revenue,LYRECO UK LTD
Oxford City Council,Business Improvement,Consultants Fees,D3411,24/04/2019,1061773 - 0,710,Revenue,PEOPLE ASSET MANAGEMENT LTD
Oxford City Council,Business Improvement,Consultants Fees,D3411,24/04/2019,1061774 - 0,"1,665.00",Revenue,PEOPLE ASSET MANAGEMENT LTD
Oxford City Council,Business Improvement,Photocopying/Paper Supplies,D3306,08/05/2019,1061776 - 1,"15,978.95",Revenue,SHARP BUSINESS SYSTEMS UK PLC
Oxford City Council,Business Improvement,External Telephone Charges,D3503,30/07/2019,1061779 - 1,"22,628.60",Revenue,BT GLOBAL SERVICES
Oxford City Council,Business Improvement,Software Maintenance/Running Costs,D3513,08/05/2019,1061794 - 0,"3,075.00",Revenue,INOVEM LTD
Oxford City Council,Business Improvement,Postage & Carriage,D3501,30/04/2019,1061849 - 0,942.43,Revenue,CRITIQOM LTD
Oxford City Council,Business Improvement,Main Contractor,Y021,24/04/2019,1061850 - 0,850,Capital,AAREON UK LTD
Oxford City Council,Business Improvement,Main Contractor,Y021,24/04/2019,1061851 - 0,850,Capital,AAREON UK LTD
Oxford City Council,Business Improvement,Main Contractor,Y021,24/04/2019,1061852 - 0,850,Capital,AAREON UK LTD
Oxford City Council,Business Improvement,Software Maintenance/Running Costs,D3513,30/04/2019,1061868 - 0,728,Revenue,INTEGRA ASSOCIATES
Oxford City Council,Business Improvement,Software Maintenance/Running Costs,D3513,30/04/2019,1061869 - 0,"1,380.00",Revenue,INTEGRA ASSOCIATES
Oxford City Council,Business Improvement,Consultants Fees,D3411,30/04/2019,1061882 - 0,850,Revenue,PEOPLE ASSET MANAGEMENT LTD
Oxford City Council,Business Improvement,Miscellaneous Fees,Y173,24/04/2019,1061892 - 0,"8,400.00",Capital,BARTEC AUTO ID LTD
Oxford City Council,Business Improvement,General Contracted Services,D3401,14/05/2019,1061894 - 1,"36,090.41",Revenue,SCC (SPECIALIST COMPUTER CENTRES PLC)
Oxford City Council,Business Improvement,Main Contractor,Y021,14/05/2019,1061897 - 0,"2,225.00",Capital,AAREON UK LTD
Oxford City Council,Business Improvement,Main Contractor,Y021,21/05/2019,1061916 - 0,"9,400.00",Capital,BARTEC AUTO ID LTD
Oxford City Council,Business Improvement,General Stationery Supplies,D3301,21/05/2019,1061923 - 0,"2,295.75",Revenue,STANLEY HANDLING LTD
Oxford City Council,Business Improvement,General Stationery Supplies,D3301,14/05/2019,1061936 - 0,472.94,Revenue,HOUND ENVELOPES LTD
Oxford City Council,Business Improvement,Software Maintenance/Running Costs,D3513,14/05/2019,1061937 - 0,"3,465.00",Revenue,CADLINE LTD
Oxford City Council,Business Improvement,Main Contractor,Y021,14/05/2019,1061939 - 0,850,Capital,AAREON UK LTD
Oxford City Council,Business Improvement,Software Maintenance/Running Costs,D3513,05/04/2019,1061940 - 0,"75,000.00",Revenue,IDOX SOFTWARE LTD
Oxford City Council,Business Improvement,Corporate Development Programme,A0631,30/04/2019,1061943 - 0,"1,500.00",Revenue,"ENACT SOLUTIONS LTD.,"
Oxford City Council,Business Improvement,Servitor,D3508,14/05/2019,1061958 - 0,"1,200.00",Revenue,CIVICA UK LTD
Oxford City Council,Business Improvement,Consultants Fees,D3411,30/04/2019,1061967 - 0,"1,385.00",Revenue,PEOPLE ASSET MANAGEMENT LTD
Oxford City Council,Business Improvement,Network Rental,D3531,30/04/2019,1061972 - 1,"4,352.38",Revenue,VODAFONE LTD
Oxford City Council,Business Improvement,External Telephone Charges,D3503,30/04/2019,1061980 - 1,"90,251.32",Revenue,BT PAYMENT SERVICES
Oxford City Council,Business Improvement,Contract Printing (External),D3303,14/05/2019,1061990 - 0,914.9,Revenue,CRITIQOM LTD
Oxford City Council,Business Improvement,Main Contractor,Y021,21/05/2019,1061998 - 1,"10,761.20",Capital,XMA LIMITED
Oxford City Council,Business Improvement,Contract Printing (External),D3303,02/07/2019,1062030 - 0,430,Revenue,BCQ GROUP LTD
Oxford City Council,Business Improvement,Software Maintenance/Running Costs,D3513,14/05/2019,1062034 - 0,"14,533.00",Revenue,INTEC FOR BUSINESS LTD
Oxford City Council,Business Improvement,Short Courses,A0622,14/05/2019,1062051 - 0,"2,175.00",Revenue,BYTES SOFTWARE SERVICES LTD
Oxford City Council,Business Improvement,Consultants Fees,D3411,08/05/2019,1062052 - 0,"30,919.50",Revenue,TORCHBOX LTD
Oxford City Council,Business Improvement,Main Contractor,Y021,14/05/2019,1062053 - 0,"204,035.38",Capital,BYTES SOFTWARE SERVICES LTD
Oxford City Council,Business Improvement,General Stationery Supplies,D3301,21/05/2019,1062054 - 0,799.5,Revenue,Encore Envelopes Ltd
Oxford City Council,Business Improvement,General Contracted Services,D3401,21/05/2019,1062068 - 0,"3,562.50",Revenue,Advanced t/a Kirona Solutions Ltd.
Oxford City Council,Business Improvement,Consultants Fees,D3411,08/05/2019,1062069 - 0,"2,163.50",Revenue,PEOPLE ASSET MANAGEMENT LTD
Oxford City Council,Business Improvement,Contract Printing (External),D3303,08/05/2019,1062117 - 0,533.31,Revenue,CRITIQOM LTD
Oxford City Council,Business Improvement,Contract Printing (External),D3303,08/05/2019,1062118 - 0,"2,865.19",Revenue,CRITIQOM LTD
Oxford City Council,Business Improvement,Other,C2502,08/05/2019,1062127 - 1,"5,345.20",Revenue,OXFORD BUS COMPANY LTD
Oxford City Council,Business Improvement,General Contracted Services,D3401,08/05/2019,1062128 - 1,750,Revenue,ROL SOLUTIONS LTD T/A ROL
Oxford City Council,Business Improvement,General Contracted Services,D3401,08/05/2019,1062129 - 1,950,Revenue,ROL SOLUTIONS LTD T/A ROL
Oxford City Council,Business Improvement,Contract Printing (External),D3303,29/05/2019,1062186 - 0,"1,203.76",Revenue,CRITIQOM LTD
Oxford City Council,Business Improvement,Main Contractor,Y021,14/05/2019,1062187 - 0,750,Capital,AAREON UK LTD
Oxford City Council,Business Improvement,Main Contractor,Y021,14/05/2019,1062189 - 0,850,Capital,AAREON UK LTD
Oxford City Council,Business Improvement,General Contracted Services,D3401,14/05/2019,1062196 - 0,695,Revenue,LOW VOLTAGE UK
Oxford City Council,Business Improvement,General Contracted Services,D3401,21/05/2019,1062218 - 0,"2,325.00",Revenue,MENTAL HEALTH FIRST AID ENGLAND CIC
Oxford City Council,Business Improvement,Main Contractor,Y021,29/05/2019,1062228 - 0,"2,975.00",Capital,ESTEEM SYSTEMS  LTD
Oxford City Council,Business Improvement,General Contracted Services,D3401,29/05/2019,1062232 - 0,533.67,Revenue,"WORD360 LTD.,"
Oxford City Council,Business Improvement,Staff Advertising,A0702,14/05/2019,1062256 - 0,"5,656.32",Revenue,NINESHARP LTD
Oxford City Council,Business Improvement,Software Purchase,D3511,04/06/2019,1062268 - 0,"5,893.37",Revenue,CAPITA BUSINESS SERVICES LTD
Oxford City Council,Business Improvement,Miscellaneous Fees,Y173,11/06/2019,1062280 - 0,"4,782.33",Capital,OXFORD DIRECT SERVICES LTD
Oxford City Council,Business Improvement,Short Courses,A0622,21/05/2019,1062300 - 0,"1,980.00",Revenue,BYTES SOFTWARE SERVICES LTD
Oxford City Council,Business Improvement,Software Maintenance/Running Costs,D3513,11/06/2019,1062309 - 0,"1,695.00",Revenue,SOCITM LIMITED
Oxford City Council,Business Improvement,Temporary Bureau Staffing,A0108,11/06/2019,1062311 - 0,"4,400.00",Revenue,SOLUTIONIZE GLOBAL LTD
Oxford City Council,Business Improvement,Software Maintenance/Running Costs,D3513,11/06/2019,1062313 - 0,"2,205.00",Revenue,DATASTOX LIMITED
Oxford City Council,Business Improvement,Short Courses,A0622,29/05/2019,1062315 - 0,"2,325.00",Revenue,MENTAL HEALTH FIRST AID ENGLAND CIC
Oxford City Council,Business Improvement,Main Contractor,Y021,04/06/2019,1062323 - 0,950,Capital,CIVICA UK LTD
Oxford City Council,Business Improvement,Contract Printing (External),D3303,21/05/2019,1062332 - 0,"1,584.07",Revenue,CRITIQOM LTD
Oxford City Council,Business Improvement,Contract Printing (External),D3303,11/06/2019,1062333 - 0,"9,211.47",Revenue,CRITIQOM LTD
Oxford City Council,Business Improvement,Contract Printing (External),D3303,29/05/2019,1062335 - 0,706.44,Revenue,CRITIQOM LTD
Oxford City Council,Business Improvement,Main Contractor,Y021,21/05/2019,1062338 - 0,"22,000.00",Capital,AAREON UK LTD
Oxford City Council,Business Improvement,Main Contractor,Y021,21/05/2019,1062339 - 0,"3,300.00",Capital,AAREON UK LTD
Oxford City Council,Business Improvement,Main Contractor,Y021,21/05/2019,1062340 - 0,"1,100.00",Capital,AAREON UK LTD
Oxford City Council,Business Improvement,Main Contractor,Y021,21/05/2019,1062341 - 0,"1,100.00",Capital,AAREON UK LTD
Oxford City Council,Business Improvement,Main Contractor,Y021,21/05/2019,1062342 - 0,"1,100.00",Capital,AAREON UK LTD
Oxford City Council,Business Improvement,Main Contractor,Y021,21/05/2019,1062343 - 0,"1,100.00",Capital,AAREON UK LTD
Oxford City Council,Business Improvement,Corporate Development Programme,A0631,29/05/2019,1062345 - 0,"6,009.00",Revenue,7FUTURES LTD
Oxford City Council,Business Improvement,Software Maintenance/Running Costs,D3513,21/05/2019,1062367 - 0,"75,000.00",Revenue,IDOX SOFTWARE LTD
Oxford City Council,Business Improvement,General Contracted Services,D3401,04/06/2019,1062368 - 0,"1,900.00",Revenue,SCC (SPECIALIST COMPUTER CENTRES PLC)
Oxford City Council,Business Improvement,Contract Printing (External),D3303,04/06/2019,1062390 - 0,"1,397.67",Revenue,CRITIQOM LTD
Oxford City Council,Business Improvement,Hardware Rental,D3521,11/06/2019,1062413 - 0,257.6,Revenue,SHARP BUSINESS SYSTEMS UK PLC
Oxford City Council,Business Improvement,Photocopying/Paper Supplies,D3306,11/06/2019,1062413 - 1,396.76,Revenue,SHARP BUSINESS SYSTEMS UK PLC
Oxford City Council,Business Improvement,Hardware Rental,D3521,11/06/2019,1062414 - 0,666.38,Revenue,SHARP BUSINESS SYSTEMS UK PLC
Oxford City Council,Business Improvement,Photocopying/Paper Supplies,D3306,11/06/2019,1062414 - 1,"1,079.99",Revenue,SHARP BUSINESS SYSTEMS UK PLC
Oxford City Council,Business Improvement,Software Maintenance/Running Costs,D3513,29/05/2019,1062424 - 0,"1,380.00",Revenue,INTEGRA ASSOCIATES
Oxford City Council,Business Improvement,Short Courses,A0622,29/05/2019,1062448 - 0,463.4,Revenue,BYTES SOFTWARE SERVICES LTD
Oxford City Council,Business Improvement,Software Maintenance/Running Costs,D3513,11/06/2019,1062473 - 0,"1,700.00",Revenue,NORTHGATE PUBLIC SERVICES (UK) LTD
Oxford City Council,Business Improvement,Contract Printing (External),D3303,11/06/2019,1062493 - 0,616.28,Revenue,CRITIQOM LTD
Oxford City Council,Business Improvement,Main Contractor,Y021,29/05/2019,1062495 - 0,750,Capital,AAREON UK LTD
Oxford City Council,Business Improvement,Main Contractor,Y021,29/05/2019,1062496 - 0,850,Capital,AAREON UK LTD
Oxford City Council,Business Improvement,Software Maintenance/Running Costs,D3513,18/06/2019,1062501 - 0,791.51,Revenue,NORTHGATE PUBLIC SERVICES (UK) LTD
Oxford City Council,Business Improvement,External Telephone Charges,D3503,02/07/2019,1062518 - 1,"2,334.94",Revenue,BT PAYMENT SERVICES
Oxford City Council,Business Improvement,Other,C2502,04/06/2019,1062533 - 1,"1,326.65",Revenue,OXFORD BUS COMPANY LTD
Oxford City Council,Business Improvement,General Contracted Services,D3401,25/06/2019,1062535 - 0,"49,370.91",Revenue,SCC (SPECIALIST COMPUTER CENTRES PLC)
Oxford City Council,Business Improvement,Consultants Fees,D3411,11/06/2019,1062541 - 0,690,Revenue,PEOPLE ASSET MANAGEMENT LTD
Oxford City Council,Business Improvement,Consultants Fees,D3411,04/06/2019,1062542 - 0,900,Revenue,PEOPLE ASSET MANAGEMENT LTD
Oxford City Council,Business Improvement,Consultants Fees,D3411,11/06/2019,1062543 - 0,"1,824.50",Revenue,PEOPLE ASSET MANAGEMENT LTD
Oxford City Council,Business Improvement,Consultants Fees,D3411,11/06/2019,1062544 - 0,"1,295.00",Revenue,PEOPLE ASSET MANAGEMENT LTD
Oxford City Council,Business Improvement,Consultants Fees,D3411,11/06/2019,1062545 - 0,840,Revenue,PEOPLE ASSET MANAGEMENT LTD
Oxford City Council,Business Improvement,Main Contractor,Y021,04/06/2019,1062546 - 0,"2,550.00",Capital,AAREON UK LTD
Oxford City Council,Business Improvement,Main Contractor,Y021,04/06/2019,1062547 - 0,850,Capital,AAREON UK LTD
Oxford City Council,Business Improvement,Hardware Rental,D3521,04/06/2019,1062553 - 0,919.85,Revenue,Quadient Finance UK Ltd
Oxford City Council,Business Improvement,General Contracted Services,D3401,18/06/2019,1062556 - 0,"1,425.00",Revenue,Advanced t/a Kirona Solutions Ltd.
Oxford City Council,Business Improvement,Main Contractor,Y021,04/06/2019,1062568 - 0,"1,745.75",Capital,BYTES SOFTWARE SERVICES LTD
Oxford City Council,Business Improvement,Main Contractor,Y021,11/06/2019,1062585 - 0,"4,400.00",Capital,AAREON UK LTD
Oxford City Council,Business Improvement,Main Contractor,Y021,11/06/2019,1062586 - 0,"7,150.00",Capital,AAREON UK LTD
Oxford City Council,Business Improvement,Main Contractor,Y021,11/06/2019,1062587 - 0,"2,200.00",Capital,AAREON UK LTD
Oxford City Council,Business Improvement,Short Courses,A0622,11/06/2019,1062596 - 0,529,Revenue,BYTES SOFTWARE SERVICES LTD
Oxford City Council,Business Improvement,Compliance Training (H&S),A0630,11/06/2019,1062606 - 0,450,Revenue,SAFETY SERVICES (UK) LTD
Oxford City Council,Business Improvement,Contract Printing (External),D3303,18/06/2019,1062655 - 0,"1,008.03",Revenue,CRITIQOM LTD
Oxford City Council,Business Improvement,Compliance Training (H&S),A0630,25/06/2019,1062669 - 0,"1,744.73",Revenue,HEALTH ASSURED LIMITED
Oxford City Council,Business Improvement,Contract Printing (External),D3303,09/07/2019,1062670 - 0,"1,581.00",Revenue,MAYFIELD PRESS LTD
Oxford City Council,Business Improvement,Network Rental,D3531,18/06/2019,1062675 - 1,799.06,Revenue,VODAFONE LTD
Oxford City Council,Business Improvement,General Contracted Services,D3401,25/06/2019,1062683 - 0,700,Revenue,SCC (SPECIALIST COMPUTER CENTRES PLC)
Oxford City Council,Business Improvement,Main Contractor,Y021,18/06/2019,1062701 - 0,550,Capital,AAREON UK LTD
Oxford City Council,Business Improvement,Main Contractor,Y021,18/06/2019,1062702 - 0,550,Capital,AAREON UK LTD
Oxford City Council,Business Improvement,Main Contractor,Y021,18/06/2019,1062703 - 0,750,Capital,AAREON UK LTD
Oxford City Council,Business Improvement,Short Courses,A0622,11/06/2019,1062718 - 0,846,Revenue,BYTES SOFTWARE SERVICES LTD
Oxford City Council,Business Improvement,Contract Printing (External),D3303,25/06/2019,1062728 - 0,654.99,Revenue,CRITIQOM LTD
Oxford City Council,Business Improvement,Software Maintenance/Running Costs,D3513,02/07/2019,1062780 - 0,"1,195.29",Revenue,NORTHGATE PUBLIC SERVICES (UK) LTD
Oxford City Council,Business Improvement,Software Maintenance/Running Costs,D3513,02/07/2019,1062781 - 0,791.47,Revenue,NORTHGATE PUBLIC SERVICES (UK) LTD
Oxford City Council,Business Improvement,Miscellaneous Fees,Y173,18/06/2019,1062812 - 0,"4,782.33",Capital,OXFORD DIRECT SERVICES LTD
Oxford City Council,Business Improvement,Consultants Fees,D3411,18/06/2019,1062818 - 0,875,Revenue,PEOPLE ASSET MANAGEMENT LTD
Oxford City Council,Business Improvement,Other,C2502,25/06/2019,1062825 - 1,"1,184.75",Revenue,OXFORD BUS COMPANY LTD
Oxford City Council,Business Improvement,Software Purchase,D3511,25/06/2019,1062844 - 0,"1,400.00",Revenue,CLEAR SKIES SOFTWARE
Oxford City Council,Business Improvement,Contract Printing (External),D3303,09/07/2019,1062850 - 0,796.94,Revenue,CRITIQOM LTD
Oxford City Council,Business Improvement,Consultants Fees,D3411,02/07/2019,1062862 - 0,"1,405.00",Revenue,PEOPLE ASSET MANAGEMENT LTD
Oxford City Council,Business Improvement,Corporate Development Programme,A0631,25/06/2019,1062867 - 0,"2,925.00",Revenue,8866
Oxford City Council,Business Improvement,Short Courses,A0622,25/06/2019,1062906 - 0,463.4,Revenue,BYTES SOFTWARE SERVICES LTD
Oxford City Council,Business Improvement,Contract Printing (External),D3303,09/07/2019,1062914 - 0,"2,295.00",Revenue,CRITIQOM LTD
Oxford City Council,Business Improvement,Main Contractor,Y021,02/07/2019,1062922 - 0,850,Capital,AAREON UK LTD
Oxford City Council,Business Improvement,Main Contractor,Y021,02/07/2019,1062923 - 0,850,Capital,AAREON UK LTD
Oxford City Council,Business Improvement,Main Contractor,Y021,02/07/2019,1062924 - 0,850,Capital,AAREON UK LTD
Oxford City Council,Business Improvement,General Contracted Services,D3401,16/07/2019,1062936 - 0,"1,900.00",Revenue,SCC (SPECIALIST COMPUTER CENTRES PLC)
Oxford City Council,Business Improvement,General Contracted Services,D3401,16/07/2019,1062937 - 0,"1,900.00",Revenue,SCC (SPECIALIST COMPUTER CENTRES PLC)
Oxford City Council,Business Improvement,Contract Printing (External),D3303,09/07/2019,1062951 - 0,"1,331.84",Revenue,CRITIQOM LTD
Oxford City Council,Business Improvement,Main Contractor,Y021,02/07/2019,1062952 - 0,"1,072.28",Capital,BYTES SOFTWARE SERVICES LTD
Oxford City Council,Business Improvement,General Contracted Services,D3401,25/06/2019,1062954 - 0,500,Revenue,THE STORY MUSEUM
Oxford City Council,Business Improvement,General Stationery Supplies,D3301,09/07/2019,1062961 - 1,"1,590.01",Revenue,LYRECO UK LTD
Oxford City Council,Business Improvement,General Stationery Supplies,D3301,09/07/2019,1062962 - 1,"1,394.05",Revenue,LYRECO UK LTD
Oxford City Council,Business Improvement,Software Maintenance/Running Costs,D3513,20/08/2019,1062974 - 0,"16,072.00",Revenue,Jadu Creative Limited
Oxford City Council,Business Improvement,Main Contractor,Y021,02/07/2019,1062986 - 0,850,Capital,AAREON UK LTD
Oxford City Council,Business Improvement,Police Checks,D3429,02/07/2019,1063001 - 2,51,Revenue,CANTIUM BUSINESS SOLUTIONS LTD
Oxford City Council,Business Improvement,Network Rental,D3531,02/07/2019,1063008 - 1,"4,352.38",Revenue,VODAFONE LTD
Oxford City Council,Business Improvement,Network Rental,D3531,02/07/2019,1063009 - 1,"4,352.38",Revenue,VODAFONE LTD
Oxford City Council,Business Improvement,External Telephone Charges,D3503,02/07/2019,1063010 - 1,"21,729.72",Revenue,BT PAYMENT SERVICES
Oxford City Council,Business Improvement,Consultants Fees,D3411,16/07/2019,1063014 - 0,"4,750.00",Revenue,IDOX SOFTWARE LTD
Oxford City Council,Business Improvement,Software Maintenance/Running Costs,D3513,16/07/2019,1063015 - 0,"5,425.00",Revenue,IDOX SOFTWARE LTD
Oxford City Council,Business Improvement,Main Contractor,Y021,02/07/2019,1063020 - 0,"5,146.06",Capital,BYTES SOFTWARE SERVICES LTD
Oxford City Council,Business Improvement,Temporary Bureau Staffing,A0108,09/07/2019,1063023 - 0,"4,620.00",Revenue,SOLUTIONIZE GLOBAL LTD
Oxford City Council,Business Improvement,Main Contractor,Y021,02/07/2019,1063030 - 0,850,Capital,AAREON UK LTD
Oxford City Council,Business Improvement,Main Contractor,Y021,09/07/2019,1063035 - 0,"11,560.00",Capital,XMA LIMITED
Oxford City Council,Business Improvement,Software Maintenance/Running Costs,D3513,02/07/2019,1063036 - 0,"1,380.00",Revenue,INTEGRA ASSOCIATES
Oxford City Council,Business Improvement,Short Courses,A0622,02/07/2019,1063038 - 0,750,Revenue,THE INSTITUTE OF CUSTOMER SERVICE
Oxford City Council,Business Improvement,Main Contractor,Y021,09/07/2019,1063051 - 0,"1,700.00",Capital,AAREON UK LTD
Oxford City Council,Business Improvement,Main Contractor,Y021,09/07/2019,1063059 - 0,"2,750.00",Capital,AAREON UK LTD
Oxford City Council,Business Improvement,Main Contractor,Y021,09/07/2019,1063060 - 0,"2,750.00",Capital,AAREON UK LTD
Oxford City Council,Business Improvement,Main Contractor,Y021,09/07/2019,1063061 - 0,"4,750.00",Capital,AAREON UK LTD
Oxford City Council,Business Improvement,Main Contractor,Y021,09/07/2019,1063076 - 0,"2,850.00",Capital,AAREON UK LTD
Oxford City Council,Business Improvement,Main Contractor,Y021,09/07/2019,1063077 - 0,"3,600.00",Capital,AAREON UK LTD
Oxford City Council,Business Improvement,Main Contractor,Y021,09/07/2019,1063078 - 0,"3,275.00",Capital,AAREON UK LTD
Oxford City Council,Business Improvement,Main Contractor,Y021,09/07/2019,1063079 - 0,"2,125.00",Capital,AAREON UK LTD
Oxford City Council,Business Improvement,Main Contractor,Y021,09/07/2019,1063080 - 0,"1,375.00",Capital,AAREON UK LTD
Oxford City Council,Business Improvement,Main Contractor,Y021,09/07/2019,1063081 - 0,"1,900.00",Capital,AAREON UK LTD
Oxford City Council,Business Improvement,Main Contractor,Y021,09/07/2019,1063082 - 0,"4,750.00",Capital,AAREON UK LTD
Oxford City Council,Business Improvement,Main Contractor,Y021,09/07/2019,1063083 - 0,"4,750.00",Capital,AAREON UK LTD
Oxford City Council,Business Improvement,Software Maintenance/Running Costs,D3513,02/07/2019,1063102 - 0,"9,525.00",Revenue,RISKEX LIMITED
Oxford City Council,Business Improvement,Software Maintenance/Running Costs,D3513,02/07/2019,1063108 - 0,"12,508.07",Revenue,XPRESS SOFTWARE SOLUTIONS LTD
Oxford City Council,Business Improvement,Network Rental,D3531,09/07/2019,1063150 - 1,896.61,Revenue,VODAFONE LTD
Oxford City Council,Business Improvement,Network Rental,D3531,09/07/2019,1063151 - 1,"3,264.19",Revenue,VODAFONE LTD
Oxford City Council,Business Improvement,Subscriptions,D3703,09/07/2019,1063162 - 0,"4,725.00",Revenue,REED BUSINESS INFORMATION LTD
Oxford City Council,Business Improvement,Main Contractor,Y021,09/07/2019,1063173 - 0,"11,550.00",Capital,AAREON UK LTD
Oxford City Council,Business Improvement,Main Contractor,Y021,09/07/2019,1063174 - 0,850,Capital,AAREON UK LTD
Oxford City Council,Business Improvement,Main Contractor,Y021,09/07/2019,1063175 - 0,850,Capital,AAREON UK LTD
Oxford City Council,Business Improvement,Main Contractor,Y021,09/07/2019,1063176 - 0,850,Capital,AAREON UK LTD
Oxford City Council,Business Improvement,Corporate Development Programme,A0631,09/07/2019,1063182 - 0,530,Revenue,CITY AUDIO VISUAL
Oxford City Council,Business Improvement,Corporate Development Programme,A0631,23/07/2019,1063185 - 0,"2,425.00",Revenue,INCLUSIVE EMPLOYERS LIMITED
Oxford City Council,Business Improvement,Software Maintenance/Running Costs,D3513,23/07/2019,1063190 - 0,"42,163.00",Revenue,NETCALL TECHNOLOGY LTD
Oxford City Council,Business Improvement,General Contracted Services,D3401,23/07/2019,1063192 - 0,475,Revenue,Advanced t/a Kirona Solutions Ltd.
Oxford City Council,Business Improvement,Consultants Fees,D3411,09/07/2019,1063205 - 0,"3,485.00",Revenue,PENNA PLC
Oxford City Council,Business Improvement,Main Contractor,Y021,09/07/2019,1063223 - 0,850,Capital,AAREON UK LTD
Oxford City Council,Business Improvement,Main Contractor,Y021,09/07/2019,1063224 - 0,850,Capital,AAREON UK LTD
Oxford City Council,Business Improvement,Main Contractor,Y021,09/07/2019,1063225 - 0,850,Capital,AAREON UK LTD
Oxford City Council,Business Improvement,Main Contractor,Y021,09/07/2019,1063226 - 0,750,Capital,AAREON UK LTD
Oxford City Council,Business Improvement,Main Contractor,Y021,09/07/2019,1063231 - 0,850,Capital,AAREON UK LTD
Oxford City Council,Business Improvement,Consultants Fees,D3411,09/07/2019,1063244 - 0,965,Revenue,PEOPLE ASSET MANAGEMENT LTD
Oxford City Council,Business Improvement,Consultants Fees,D3411,09/07/2019,1063245 - 0,"1,060.00",Revenue,PEOPLE ASSET MANAGEMENT LTD
Oxford City Council,Business Improvement,Main Contractor,Y021,09/07/2019,1063253 - 0,"365,880.80",Capital,XMA LIMITED
Oxford City Council,Business Improvement,Main Contractor,Y021,23/07/2019,1063254 - 0,"48,228.00",Capital,XMA LIMITED
Oxford City Council,Business Improvement,Main Contractor,Y021,30/07/2019,1063268 - 0,"2,370.00",Capital,Keysoft Solutions Ltd
Oxford City Council,Business Improvement,General Contracted Services,D3401,09/07/2019,1063278 - 0,"49,370.91",Revenue,SCC (SPECIALIST COMPUTER CENTRES PLC)
Oxford City Council,Business Improvement,Software Maintenance/Running Costs,D3513,30/07/2019,1063280 - 0,"13,551.48",Revenue,ROCKET SOFTWARE UK LTD
Oxford City Council,Business Improvement,General Contracted Services,D3401,23/07/2019,1063290 - 0,"45,601.63",Revenue,SCC (SPECIALIST COMPUTER CENTRES PLC)
Oxford City Council,Business Improvement,Main Contractor,Y021,23/07/2019,1063292 - 0,975,Capital,SCC (SPECIALIST COMPUTER CENTRES PLC)
Oxford City Council,Business Improvement,Software Purchase,D3511,30/07/2019,1063310 - 0,"1,080.00",Revenue,TEAMVIEWER
Oxford City Council,Business Improvement,Temporary Bureau Staffing,A0108,06/08/2019,1063322 - 0,"4,400.00",Revenue,SOLUTIONIZE GLOBAL LTD
Oxford City Council,Business Improvement,General Stationery Supplies,D3301,30/07/2019,1063343 - 0,"1,211.11",Revenue,LYRECO UK LTD
Oxford City Council,Business Improvement,Contract Printing (External),D3303,16/07/2019,1063359 - 0,708.81,Revenue,CRITIQOM LTD
Oxford City Council,Business Improvement,Contract Printing (External),D3303,23/07/2019,1063361 - 0,741.67,Revenue,CRITIQOM LTD
Oxford City Council,Business Improvement,External Telephone Charges,D3503,30/07/2019,1063378 - 1,"23,367.55",Revenue,BT GLOBAL SERVICES
Oxford City Council,Business Improvement,Main Contractor,Y021,30/07/2019,1063400 - 0,"9,525.60",Capital,XMA LIMITED
Oxford City Council,Business Improvement,Contract Printing (External),D3303,30/07/2019,1063416 - 0,888.08,Revenue,CRITIQOM LTD
Oxford City Council,Business Improvement,General Contracted Services,D3401,23/07/2019,1063422 - 0,"2,841.28",Revenue,HERALD CHASE
Oxford City Council,Business Improvement,Miscellaneous Fees,Y173,16/07/2019,1063456 - 0,"4,782.33",Capital,OXFORD DIRECT SERVICES LTD
Oxford City Council,Business Improvement,Contract Printing (External),D3303,23/07/2019,1063462 - 0,"1,970.00",Revenue,BANBURY LITHO LIMITED
Oxford City Council,Business Improvement,Photocopying/Paper Supplies,D3306,06/08/2019,1063480 - 1,"14,380.90",Revenue,SHARP BUSINESS SYSTEMS UK PLC
Oxford City Council,Business Improvement,Software Maintenance/Running Costs,D3513,30/07/2019,1063487 - 0,"1,380.00",Revenue,INTEGRA ASSOCIATES
Oxford City Council,Business Improvement,Main Contractor,Y021,23/07/2019,1063506 - 0,850,Capital,AAREON UK LTD
Oxford City Council,Business Improvement,Main Contractor,Y021,23/07/2019,1063507 - 0,850,Capital,AAREON UK LTD
Oxford City Council,Business Improvement,Main Contractor,Y021,23/07/2019,1063508 - 0,850,Capital,AAREON UK LTD
Oxford City Council,Business Improvement,Contract Printing (External),D3303,13/08/2019,1063527 - 0,"1,620.15",Revenue,CRITIQOM LTD
Oxford City Council,Business Improvement,Contract Printing (External),D3303,30/07/2019,1063528 - 0,"9,193.58",Revenue,CRITIQOM LTD
Oxford City Council,Business Improvement,Hardware Purchase,D3520,23/07/2019,1063560 - 0,809.11,Revenue,BENTHAM LTD T/A MORGAN COMPUTERS
Oxford City Council,Business Improvement,Software Maintenance/Running Costs,D3513,13/08/2019,1063561 - 0,"1,100.00",Revenue,NORTHGATE PUBLIC SERVICES (UK) LTD
Oxford City Council,Business Improvement,Contract Printing (External),D3303,08/10/2019,1063570 - 1,889,Revenue,FINE PRINT (SERVICES) LTD
Oxford City Council,Business Improvement,General Contracted Services,D3401,13/08/2019,1063579 - 1,"45,601.63",Revenue,SCC (SPECIALIST COMPUTER CENTRES PLC)
Oxford City Council,Business Improvement,General Contracted Services,D3401,13/08/2019,1063580 - 0,"1,900.00",Revenue,SCC (SPECIALIST COMPUTER CENTRES PLC)
Oxford City Council,Business Improvement,Consultants Fees,D3411,23/07/2019,1063585 - 0,509.5,Revenue,MIDLAND HR
Oxford City Council,Business Improvement,Photocopying/Paper Supplies,D3306,06/08/2019,1063586 - 1,485.41,Revenue,SHARP BUSINESS SYSTEMS UK PLC
Oxford City Council,Business Improvement,External Telephone Charges,D3503,23/07/2019,1063591 - 1,"21,846.48",Revenue,BT PAYMENT SERVICES
Oxford City Council,Business Improvement,Main Contractor,Y021,23/07/2019,1063629 - 0,"8,198.16",Capital,BYTES SOFTWARE SERVICES LTD
Oxford City Council,Business Improvement,Consultants Fees,D3411,30/07/2019,1063630 - 0,"2,210.00",Revenue,PEOPLE ASSET MANAGEMENT LTD
Oxford City Council,Business Improvement,Main Contractor,Y021,30/07/2019,1063646 - 0,"1,700.00",Capital,AAREON UK LTD
Oxford City Council,Business Improvement,Main Contractor,Y021,30/07/2019,1063647 - 0,750,Capital,AAREON UK LTD
Oxford City Council,Business Improvement,Corporate Development Programme,A0631,30/07/2019,1063661 - 0,"5,525.00",Revenue,8866
Oxford City Council,Business Improvement,Software Maintenance/Running Costs,D3513,20/08/2019,1063689 - 0,"10,147.41",Revenue,NORTHGATE PUBLIC SERVICES (UK) LTD
Oxford City Council,Business Improvement,Software Maintenance/Running Costs,D3513,20/08/2019,1063691 - 0,"1,250.00",Revenue,NORTHGATE PUBLIC SERVICES (UK) LTD
Oxford City Council,Business Improvement,Contract Printing (External),D3303,20/08/2019,1063714 - 0,"1,514.29",Revenue,CRITIQOM LTD
Oxford City Council,Business Improvement,Main Contractor,Y021,06/08/2019,1063716 - 0,"5,950.00",Capital,AAREON UK LTD
Oxford City Council,Business Improvement,Main Contractor,Y021,06/08/2019,1063717 - 0,"4,250.00",Capital,AAREON UK LTD
Oxford City Council,Business Improvement,Software Maintenance/Running Costs,D3513,20/08/2019,1063724 - 0,712.5,Revenue,CAE TECHNOLOGY SERVICES LTD
Oxford City Council,Business Improvement,Software Maintenance/Running Costs,D3513,30/07/2019,1063744 - 0,"6,548.00",Revenue,WEBASPX
Oxford City Council,Business Improvement,Contract Printing (External),D3303,30/07/2019,1063750 - 0,661,Revenue,BANBURY LITHO LIMITED
Oxford City Council,Business Improvement,Consultants Fees,D3411,06/08/2019,1063756 - 0,"1,505.00",Revenue,PEOPLE ASSET MANAGEMENT LTD
Oxford City Council,Business Improvement,Main Contractor,Y021,06/08/2019,1063768 - 0,425,Capital,AAREON UK LTD
Oxford City Council,Business Improvement,Contract Printing (External),D3303,13/08/2019,1063779 - 0,922.14,Revenue,CRITIQOM LTD
Oxford City Council,Business Improvement,Servitor,D3508,13/08/2019,1063800 - 0,559.39,Revenue,CIVICA UK LTD
Oxford City Council,Business Improvement,Main Contractor,Y021,13/08/2019,1063803 - 0,"1,100.00",Capital,AAREON UK LTD
Oxford City Council,Business Improvement,Main Contractor,Y021,13/08/2019,1063813 - 0,"1,250.00",Capital,SCC (SPECIALIST COMPUTER CENTRES PLC)
Oxford City Council,Business Improvement,Main Contractor,Y021,13/08/2019,1063814 - 0,"1,250.00",Capital,SCC (SPECIALIST COMPUTER CENTRES PLC)
Oxford City Council,Business Improvement,Consultants Fees,D3411,13/08/2019,1063821 - 0,755,Revenue,PEOPLE ASSET MANAGEMENT LTD
Oxford City Council,Business Improvement,Consultants Fees,D3411,13/08/2019,1063822 - 0,"1,355.00",Revenue,PEOPLE ASSET MANAGEMENT LTD
Oxford City Council,Business Improvement,Short Courses,A0622,06/08/2019,1063843 - 0,"1,500.00",Revenue,"ENACT SOLUTIONS LTD.,"
Oxford City Council,Business Improvement,Consultants Fees,D3411,28/08/2019,1063859 - 0,"1,000.00",Revenue,PEOPLE ASSET MANAGEMENT LTD
Oxford City Council,Business Improvement,Main Contractor,Y021,20/08/2019,1063890 - 0,"11,995.00",Capital,SHAW TRUST LIMITED
Oxford City Council,Business Improvement,Main Contractor,Y021,13/08/2019,1063901 - 0,"4,881.80",Capital,BYTES SOFTWARE SERVICES LTD
Oxford City Council,Business Improvement,Network Rental,D3531,13/08/2019,1063906 - 1,"4,352.38",Revenue,VODAFONE LTD
Oxford City Council,Business Improvement,Main Contractor,Y021,13/08/2019,1063916 - 0,850,Capital,AAREON UK LTD
Oxford City Council,Business Improvement,Main Contractor,Y021,13/08/2019,1063917 - 0,850,Capital,AAREON UK LTD
Oxford City Council,Business Improvement,Main Contractor,Y021,28/08/2019,1063926 - 0,"1,250.00",Capital,SCC (SPECIALIST COMPUTER CENTRES PLC)
Oxford City Council,Business Improvement,General Contracted Services,D3401,28/08/2019,1063944 - 0,999.98,Revenue,Advanced t/a Kirona Solutions Ltd.
Oxford City Council,Business Improvement,Contract Printing (External),D3303,03/09/2019,1063949 - 0,610.78,Revenue,CRITIQOM LTD
Oxford City Council,Business Improvement,Contract Printing (External),D3303,20/08/2019,1063950 - 0,881.45,Revenue,CRITIQOM LTD
Oxford City Council,Business Improvement,Main Contractor,Y021,13/08/2019,1063952 - 0,850,Capital,AAREON UK LTD
Oxford City Council,Business Improvement,Main Contractor,Y021,13/08/2019,1063953 - 0,750,Capital,AAREON UK LTD
Oxford City Council,Business Improvement,Main Contractor,Y021,13/08/2019,1063954 - 0,850,Capital,AAREON UK LTD
Oxford City Council,Business Improvement,General Stationery Supplies,D3301,28/08/2019,1063972 - 0,"1,899.76",Revenue,LYRECO UK LTD
Oxford City Council,Business Improvement,Network Rental,D3531,13/08/2019,1063991 - 1,860.41,Revenue,VODAFONE LTD
Oxford City Council,Business Improvement,Software Maintenance/Running Costs,D3513,13/08/2019,1063996 - 1,"1,384.21",Revenue,BOTTOMLINE TECHNOLOGIES LTD
Oxford City Council,Business Improvement,Travel Scheme Discount,C2505,13/08/2019,1063997 - 0,"2,500.00",Revenue,ROAD PALS LTD
Oxford City Council,Business Improvement,Main Contractor,Y021,20/08/2019,1064000 - 0,850,Capital,AAREON UK LTD
Oxford City Council,Business Improvement,Consultants Fees,D3411,13/08/2019,1064002 - 0,625,Revenue,PEOPLE ASSET MANAGEMENT LTD
Oxford City Council,Business Improvement,Contract Printing (External),D3303,10/09/2019,1064017 - 0,549.76,Revenue,CRITIQOM LTD
Oxford City Council,Business Improvement,Corporate Development Programme,A0631,03/09/2019,1064039 - 0,"3,250.00",Revenue,8866
Oxford City Council,Business Improvement,Consultants Fees,D3411,28/08/2019,1064058 - 0,830,Revenue,PEOPLE ASSET MANAGEMENT LTD
Oxford City Council,Business Improvement,Software Maintenance/Running Costs,D3513,03/09/2019,1064070 - 0,888.66,Revenue,NORTHGATE PUBLIC SERVICES (UK) LTD
Oxford City Council,Business Improvement,Software Maintenance/Running Costs,D3513,03/09/2019,1064071 - 0,"2,850.00",Revenue,IDOX SOFTWARE LTD
Oxford City Council,Business Improvement,Hardware Rental,D3521,20/08/2019,1064089 - 0,919.85,Revenue,Quadient Finance UK Ltd
Oxford City Council,Business Improvement,Network Rental,D3531,20/08/2019,1064185 - 1,"4,352.38",Revenue,VODAFONE LTD
Oxford City Council,Business Improvement,Miscellaneous Fees,Y173,20/08/2019,1064204 - 0,"4,782.33",Capital,OXFORD DIRECT SERVICES LTD
Oxford City Council,Business Improvement,Miscellaneous Fees,Y173,28/08/2019,1064216 - 0,"17,940.00",Capital,BARTEC AUTO ID LTD
Oxford City Council,Business Improvement,Temporary Bureau Staffing,A0108,20/08/2019,1064219 - 0,"5,060.00",Revenue,SOLUTIONIZE GLOBAL LTD
Oxford City Council,Business Improvement,Compliance Training (H&S),A0630,03/09/2019,1064237 - 0,"1,744.73",Revenue,HEALTH ASSURED LIMITED
Oxford City Council,Business Improvement,Software Maintenance/Running Costs,D3513,28/08/2019,1064241 - 0,910,Revenue,INTEGRA ASSOCIATES
Oxford City Council,Business Improvement,Software Maintenance/Running Costs,D3513,28/08/2019,1064249 - 0,"1,380.00",Revenue,INTEGRA ASSOCIATES
Oxford City Council,Business Improvement,Travel Scheme Discount,C2505,20/08/2019,1064255 - 0,"3,000.00",Revenue,ICOM WORKS LTD
Oxford City Council,Business Improvement,General Contracted Services,D3401,10/09/2019,1064294 - 0,"40,225.59",Revenue,SCC (SPECIALIST COMPUTER CENTRES PLC)
Oxford City Council,Business Improvement,Hardware Rental,D3521,03/09/2019,1064296 - 0,666.38,Revenue,SHARP BUSINESS SYSTEMS UK PLC
Oxford City Council,Business Improvement,Photocopying/Paper Supplies,D3306,03/09/2019,1064296 - 1,695.56,Revenue,SHARP BUSINESS SYSTEMS UK PLC
Oxford City Council,Business Improvement,Hardware Rental,D3521,03/09/2019,1064297 - 0,257.6,Revenue,SHARP BUSINESS SYSTEMS UK PLC
Oxford City Council,Business Improvement,Photocopying/Paper Supplies,D3306,03/09/2019,1064297 - 1,400.42,Revenue,SHARP BUSINESS SYSTEMS UK PLC
Oxford City Council,Business Improvement,Software Maintenance/Running Costs,D3513,03/09/2019,1064311 - 0,"7,435.61",Revenue,PLANET IT LTD
Oxford City Council,Business Improvement,Postage & Carriage,D3501,10/09/2019,1064332 - 0,"1,545.81",Revenue,CRITIQOM LTD
Oxford City Council,Business Improvement,Postage & Carriage,D3501,10/09/2019,1064362 - 1,"1,453.34",Revenue,CRITIQOM LTD
Oxford City Council,Business Improvement,Health Screening,D3428,03/09/2019,1064376 - 0,"3,007.50",Revenue,CHILDCARE VOUCHERS LTD
Oxford City Council,Business Improvement,Consultants Fees,D3411,17/09/2019,1064378 - 0,"4,750.00",Revenue,IDOX SOFTWARE LTD
Oxford City Council,Business Improvement,Network Rental,D3531,10/09/2019,1064463 - 1,853.26,Revenue,VODAFONE LTD
Oxford City Council,Business Improvement,Software Maintenance/Running Costs,D3513,24/09/2019,1064512 - 0,"5,166.72",Revenue,IKEN BUSINESS LTD
Oxford City Council,Business Improvement,Postage & Carriage,D3501,17/09/2019,1064521 - 0,985.42,Revenue,CRITIQOM LTD
Oxford City Council,Business Improvement,Corporate Development Programme,A0631,10/09/2019,1064548 - 0,763,Revenue,ARTISAN INTELLEGENT PRINT SOLUTIONS
Oxford City Council,Business Improvement,Postage & Carriage,D3501,24/09/2019,1064550 - 0,890.63,Revenue,CRITIQOM LTD
Oxford City Council,Business Improvement,General Contracted Services,D3401,01/10/2019,1064555 - 0,"1,203.37",Revenue,Advanced t/a Kirona Solutions Ltd.
Oxford City Council,Business Improvement,Main Contractor,Y021,24/09/2019,1064576 - 0,"4,299.00",Capital,LOW VOLTAGE UK
Oxford City Council,Business Improvement,General Contracted Services,D3401,24/09/2019,1064583 - 0,"45,601.63",Revenue,SCC (SPECIALIST COMPUTER CENTRES PLC)
Oxford City Council,Business Improvement,General Contracted Services,D3401,01/10/2019,1064585 - 0,"1,900.00",Revenue,SCC (SPECIALIST COMPUTER CENTRES PLC)
Oxford City Council,Business Improvement,Main Contractor,Y021,01/10/2019,1064587 - 0,"1,250.00",Capital,SCC (SPECIALIST COMPUTER CENTRES PLC)
Oxford City Council,Business Improvement,Other,C2502,17/09/2019,1064632 - 1,"1,062.40",Revenue,OXFORD BUS COMPANY LTD
Oxford City Council,Business Improvement,Other,C2502,17/09/2019,1064633 - 1,"2,120.90",Revenue,OXFORD BUS COMPANY LTD
Oxford City Council,Business Improvement,Other,C2502,17/09/2019,1064634 - 1,"1,689.75",Revenue,OXFORD BUS COMPANY LTD
Oxford City Council,Business Improvement,Other,C2502,17/09/2019,1064635 - 1,"1,736.00",Revenue,OXFORD BUS COMPANY LTD
Oxford City Council,Business Improvement,Other,C2502,17/09/2019,1064636 - 1,"1,528.75",Revenue,OXFORD BUS COMPANY LTD
Oxford City Council,Business Improvement,Other,C2502,17/09/2019,1064637 - 1,"1,897.70",Revenue,OXFORD BUS COMPANY LTD
Oxford City Council,Business Improvement,Short Courses,A0622,17/09/2019,1064642 - 0,650,Revenue,8866
Oxford City Council,Business Improvement,Temporary Bureau Staffing,A0108,24/09/2019,1064669 - 0,"4,620.00",Revenue,SOLUTIONIZE GLOBAL LTD
Oxford City Council,Business Improvement,General Stationery Supplies,D3301,22/10/2019,1064687 - 1,"1,247.87",Revenue,LYRECO UK LTD
Oxford City Council,Business Improvement,Main Contractor,Y021,30/06/2019,1064720 - 0,750,Capital,AAREON UK LTD
Oxford City Council,Business Improvement,Contract Printing (External),D3303,15/10/2019,1064734 - 0,870,Revenue,MANOR PRINTING SERVICES (WOTTON) LIMITED
Oxford City Council,Business Improvement,Postage & Carriage,D3501,01/10/2019,1064738 - 0,"1,207.26",Revenue,CRITIQOM LTD
Oxford City Council,Business Improvement,Main Contractor,Y021,24/09/2019,1064743 - 0,850,Capital,AAREON UK LTD
Oxford City Council,Business Improvement,External Telephone Charges,D3503,24/09/2019,1064774 - 1,"44,091.74",Revenue,BT PAYMENT SERVICES
Oxford City Council,Business Improvement,Miscellaneous Fees,Y173,24/09/2019,1064783 - 0,"4,782.33",Capital,OXFORD DIRECT SERVICES LTD
Oxford City Council,Business Improvement,Network Rental,D3531,01/10/2019,1064805 - 1,"4,352.38",Revenue,VODAFONE LTD
Oxford City Council,Business Improvement,Postage & Carriage,D3501,08/10/2019,1064825 - 0,"1,685.09",Revenue,CRITIQOM LTD
Oxford City Council,Business Improvement,Consultants Fees,D3411,08/10/2019,1064859 - 0,"1,710.00",Revenue,PEOPLE ASSET MANAGEMENT LTD
Oxford City Council,Business Improvement,Corporate Development Programme,A0631,22/10/2019,1064876 - 0,"5,200.00",Revenue,8866
Oxford City Council,Business Improvement,Software Maintenance/Running Costs,D3513,01/10/2019,1064892 - 0,"1,380.00",Revenue,INTEGRA ASSOCIATES
Oxford City Council,Business Improvement,Main Contractor,Y021,01/10/2019,1064936 - 0,"2,100.00",Capital,XMA LIMITED
Oxford City Council,Business Improvement,Main Contractor,Y021,01/10/2019,1064937 - 0,"5,026.00",Capital,XMA LIMITED
Oxford City Council,Business Improvement,Main Contractor,Y021,31/07/2019,1064938 - 0,850,Capital,AAREON UK LTD
Oxford City Council,Business Improvement,Main Contractor,Y021,31/07/2019,1064939 - 0,850,Capital,AAREON UK LTD
Oxford City Council,Business Improvement,Main Contractor,Y021,31/07/2019,1064940 - 0,850,Capital,AAREON UK LTD
Oxford City Council,Business Improvement,Main Contractor,Y021,31/07/2019,1064942 - 0,750,Capital,AAREON UK LTD
Oxford City Council,Business Improvement,Main Contractor,Y021,31/07/2019,1064944 - 0,850,Capital,AAREON UK LTD
Oxford City Council,Business Improvement,Main Contractor,Y021,31/07/2019,1064945 - 0,"1,100.00",Capital,AAREON UK LTD
Oxford City Council,Business Improvement,Main Contractor,Y021,22/10/2019,1064960 - 0,922.75,Capital,DATASTOX LIMITED
Oxford City Council,Business Improvement,Software Maintenance/Running Costs,D3513,22/10/2019,1064974 - 0,"3,075.00",Revenue,INOVEM LTD
Oxford City Council,Business Improvement,General Contracted Services,D3401,08/10/2019,1064975 - 0,"4,373.25",Revenue,CENTRE FOR ASSESMENT
Oxford City Council,Business Improvement,Postage & Carriage,D3501,15/10/2019,1064978 - 0,858.29,Revenue,CRITIQOM LTD
Oxford City Council,Business Improvement,Contract Printing (External),D3303,15/10/2019,1064983 - 1,587,Revenue,MAYFIELD PRESS LTD
Oxford City Council,Business Improvement,Contract Printing (External),D3303,15/10/2019,1064984 - 0,612,Revenue,MAYFIELD PRESS LTD
Oxford City Council,Business Improvement,Short Courses,A0622,08/10/2019,1065019 - 1,895.5,Revenue,BYTES SOFTWARE SERVICES LTD
Oxford City Council,Business Improvement,Network Rental,D3531,08/10/2019,1065059 - 1,856.64,Revenue,VODAFONE LTD
Oxford City Council,Business Improvement,Consultants Fees,D3411,22/10/2019,1065075 - 0,"6,000.00",Revenue,MIDLAND HR
Oxford City Council,Business Improvement,Contract Printing (External),D3303,29/10/2019,1065134 - 0,766,Revenue,BCQ GROUP LTD
Oxford City Council,Business Improvement,Contract Printing (External),D3303,22/10/2019,1065135 - 0,"1,970.00",Revenue,BANBURY LITHO LIMITED
Oxford City Council,Business Improvement,Software Maintenance/Running Costs,D3513,08/10/2019,1065143 - 0,"23,581.49",Revenue,JAAMA LTD
Oxford City Council,Business Improvement,General Contracted Services,D3401,29/10/2019,1065151 - 0,"45,601.63",Revenue,SCC (SPECIALIST COMPUTER CENTRES PLC)
Oxford City Council,Business Improvement,Main Contractor,Y021,29/10/2019,1065152 - 0,"1,250.00",Capital,SCC (SPECIALIST COMPUTER CENTRES PLC)
Oxford City Council,Business Improvement,General Contracted Services,D3401,29/10/2019,1065153 - 0,"1,900.00",Revenue,SCC (SPECIALIST COMPUTER CENTRES PLC)
Oxford City Council,Business Improvement,General Contracted Services,D3401,29/10/2019,1065160 - 0,"2,266.62",Revenue,Advanced t/a Kirona Solutions Ltd.
Oxford City Council,Business Improvement,Software Maintenance/Running Costs,D3513,29/10/2019,1065164 - 0,"3,075.00",Revenue,INOVEM LTD
Oxford City Council,Business Improvement,CPD (Continuous Professional Development),A0634,22/10/2019,1065206 - 1,700,Revenue,THOMAS INTERNATIONAL UK LTD
Oxford City Council,Business Improvement,General Stationery Supplies,D3301,29/10/2019,1065214 - 0,"1,720.14",Revenue,LYRECO UK LTD
Oxford City Council,Business Improvement,Conferences,D3602,15/10/2019,1065216 - 0,"2,333.00",Revenue,BEVAN BRITTAN LLP
Oxford City Council,Business Improvement,Consultants Fees,D3411,15/10/2019,1065256 - 0,"1,390.00",Revenue,PEOPLE ASSET MANAGEMENT LTD
Oxford City Council,Business Improvement,Consultants Fees,D3411,15/10/2019,1065257 - 0,985,Revenue,PEOPLE ASSET MANAGEMENT LTD
Oxford City Council,Business Improvement,Consultants Fees,D3411,15/10/2019,1065258 - 0,960,Revenue,PEOPLE ASSET MANAGEMENT LTD
Oxford City Council,Business Improvement,Consultants Fees,D3411,15/10/2019,1065259 - 0,"1,240.00",Revenue,PEOPLE ASSET MANAGEMENT LTD
Oxford City Council,Business Improvement,Short Courses,A0622,29/10/2019,1065270 - 0,"2,686.00",Revenue,IT GOVERNANCE LTD
Oxford City Council,Business Improvement,Temporary Bureau Staffing,A0108,29/10/2019,1065276 - 0,"4,400.00",Revenue,SOLUTIONIZE GLOBAL LTD
Oxford City Council,Business Improvement,Consultants Fees,D3411,15/10/2019,1065282 - 0,"1,935.00",Revenue,PEOPLE ASSET MANAGEMENT LTD
Oxford City Council,Business Improvement,Consultants Fees,D3411,15/10/2019,1065284 - 0,"1,090.00",Revenue,PEOPLE ASSET MANAGEMENT LTD
Oxford City Council,Business Improvement,Consultants Fees,D3411,15/10/2019,1065288 - 0,715,Revenue,PEOPLE ASSET MANAGEMENT LTD
Oxford City Council,Business Improvement,Consultants Fees,D3411,22/10/2019,1065289 - 0,735,Revenue,PEOPLE ASSET MANAGEMENT LTD
Oxford City Council,Business Improvement,Consultants Fees,D3411,29/10/2019,1065290 - 0,505,Revenue,PEOPLE ASSET MANAGEMENT LTD
Oxford City Council,Business Improvement,External Telephone Charges,D3503,29/10/2019,1065301 - 1,"22,972.18",Revenue,BT GLOBAL SERVICES
Oxford City Council,Business Improvement,Main Contractor,Y021,29/10/2019,1065302 - 0,"5,000.00",Capital,BARTEC AUTO ID LTD
Oxford City Council,Business Improvement,General Contracted Services,D3401,22/10/2019,1065311 - 0,761.95,Revenue,PITNEY BOWES LTD
Oxford City Council,Business Improvement,Miscellaneous Fees,Y173,22/10/2019,1065317 - 0,"4,782.33",Capital,OXFORD DIRECT SERVICES LTD
Oxford City Council,Business Improvement,Contract Printing (External),D3303,29/10/2019,1065358 - 0,"2,443.12",Revenue,CRITIQOM LTD
Oxford City Council,Business Improvement,Postage & Carriage,D3501,29/10/2019,1065359 - 0,"1,118.90",Revenue,CRITIQOM LTD
Oxford City Council,Business Improvement,Postage & Carriage,D3501,29/10/2019,1065364 - 0,922.01,Revenue,CRITIQOM LTD
Oxford City Council,Business Improvement,Photocopying/Paper Supplies,D3306,05/11/2019,1065372 - 1,571.1,Revenue,SHARP BUSINESS SYSTEMS UK PLC
Oxford City Council,Business Improvement,Network Rental,D3531,22/10/2019,1065373 - 1,"4,352.38",Revenue,VODAFONE LTD
Oxford City Council,Business Improvement,Photocopying/Paper Supplies,D3306,12/11/2019,1065374 - 1,"14,638.08",Revenue,SHARP BUSINESS SYSTEMS UK PLC
Oxford City Council,Business Improvement,Postage & Carriage,D3501,05/11/2019,1065390 - 0,"1,713.48",Revenue,CRITIQOM LTD
Oxford City Council,Business Improvement,Corporate Development Programme,A0631,29/10/2019,1065396 - 0,750,Revenue,
Oxford City Council,Business Improvement,Consultants Fees,D3411,05/11/2019,1065406 - 0,"1,214.93",Revenue,PEOPLE ASSET MANAGEMENT LTD
Oxford City Council,Business Improvement,Short Courses,A0622,12/11/2019,1065430 - 0,"1,100.00",Revenue,THE PEOPLE CATALYST LIMITED
Oxford City Council,Business Improvement,Software Maintenance/Running Costs,D3513,29/10/2019,1065440 - 0,442,Revenue,INTEGRA ASSOCIATES
Oxford City Council,Business Improvement,Software Maintenance/Running Costs,D3513,29/10/2019,1065441 - 1,"1,600.00",Revenue,INTEGRA ASSOCIATES
Oxford City Council,Business Improvement,Main Contractor,Y021,29/10/2019,1065460 - 0,850,Capital,AAREON UK LTD
Oxford City Council,Business Improvement,Main Contractor,Y021,29/10/2019,1065461 - 0,850,Capital,AAREON UK LTD
Oxford City Council,Business Improvement,Main Contractor,Y021,29/10/2019,1065462 - 0,750,Capital,AAREON UK LTD
Oxford City Council,Business Improvement,Servitor,D3508,29/10/2019,1065465 - 0,506.81,Revenue,CIVICA UK LTD
Oxford City Council,Business Improvement,External Telephone Charges,D3503,29/10/2019,1065474 - 1,"22,229.70",Revenue,BT PAYMENT SERVICES
Oxford City Council,Business Improvement,Software Maintenance/Running Costs,D3513,19/11/2019,1065489 - 0,"1,086.37",Revenue,NORTHGATE PUBLIC SERVICES (UK) LTD
Oxford City Council,Business Improvement,Main Contractor,Y021,19/11/2019,1065491 - 1,"4,645.92",Capital,PROBRAND
Oxford City Council,Business Improvement,Consultants Fees,D3411,12/11/2019,1065495 - 0,"15,250.00",Revenue,IKEN BUSINESS LTD
Oxford City Council,Business Improvement,Contract Printing (External),D3303,12/11/2019,1065519 - 0,"1,311.51",Revenue,CRITIQOM LTD
Oxford City Council,Business Improvement,Postage & Carriage,D3501,12/11/2019,1065548 - 0,899.65,Revenue,CRITIQOM LTD
Oxford City Council,Business Improvement,Consultants Fees,D3411,12/11/2019,1065576 - 0,605,Revenue,PEOPLE ASSET MANAGEMENT LTD
Oxford City Council,Business Improvement,Consultants Fees,D3411,26/11/2019,1065577 - 0,"1,093.50",Revenue,PEOPLE ASSET MANAGEMENT LTD
Oxford City Council,Business Improvement,Software Maintenance/Running Costs,D3513,19/11/2019,1065606 - 0,"2,700.00",Revenue,CORVID PAYGATE LTD
Oxford City Council,Business Improvement,Network Rental,D3531,05/11/2019,1065625 - 1,856.64,Revenue,VODAFONE LIMITED (CORPORATE)
Oxford City Council,Business Improvement,Main Contractor,Y021,26/11/2019,1065714 - 0,"2,778.12",Capital,PROBRAND
Oxford City Council,Business Improvement,Postage & Carriage,D3501,19/11/2019,1065716 - 0,941.51,Revenue,CRITIQOM LTD
Oxford City Council,Business Improvement,Servitor,D3508,05/11/2019,1065722 - 0,508.5,Revenue,CIVICA UK LTD
Oxford City Council,Business Improvement,Consultants Fees,D3411,19/11/2019,1065724 - 0,"2,195.00",Revenue,PEOPLE ASSET MANAGEMENT LTD
Oxford City Council,Business Improvement,Servitor,D3508,19/11/2019,1065734 - 0,"22,085.33",Revenue,CIVICA UK LTD
Oxford City Council,Business Improvement,Main Contractor,Y021,05/11/2019,1065738 - 0,"1,750.00",Capital,T. IMPACT LTD
Oxford City Council,Business Improvement,Network Rental,D3531,12/11/2019,1065777 - 1,850.68,Revenue,VODAFONE LIMITED (CORPORATE)
Oxford City Council,Business Improvement,Hardware Rental,D3521,05/11/2019,1065780 - 0,919.85,Revenue,Quadient Finance UK Ltd
Oxford City Council,Business Improvement,General Stationery Supplies,D3301,26/11/2019,1065794 - 0,"1,811.53",Revenue,LYRECO UK LTD
Oxford City Council,Business Improvement,Main Contractor,Y021,12/11/2019,1065810 - 0,"9,867.00",Capital,BYTES SOFTWARE SERVICES LTD
Oxford City Council,Business Improvement,General Contracted Services,D3401,26/11/2019,1065830 - 1,"43,741.49",Revenue,SCC (SPECIALIST COMPUTER CENTRES PLC)
Oxford City Council,Business Improvement,General Contracted Services,D3401,26/11/2019,1065833 - 0,"1,900.00",Revenue,SCC (SPECIALIST COMPUTER CENTRES PLC)
Oxford City Council,Business Improvement,Consultants Fees,D3411,26/11/2019,1065835 - 0,720,Revenue,PEOPLE ASSET MANAGEMENT LTD
Oxford City Council,Business Improvement,General Contracted Services,D3401,26/11/2019,1065836 - 0,"45,601.63",Revenue,SCC (SPECIALIST COMPUTER CENTRES PLC)
Oxford City Council,Business Improvement,Main Contractor,Y021,26/11/2019,1065837 - 0,"1,250.00",Capital,SCC (SPECIALIST COMPUTER CENTRES PLC)
Oxford City Council,Business Improvement,Servitor,D3508,19/11/2019,1065876 - 0,"1,065.02",Revenue,CIVICA UK LTD
Oxford City Council,Business Improvement,Software Purchase,D3511,03/12/2019,1065881 - 0,"4,702.22",Revenue,CAPITA BUSINESS SERVICES LTD
Oxford City Council,Business Improvement,Main Contractor,Y021,03/12/2019,1065888 - 1,"7,356.04",Capital,PROBRAND
Oxford City Council,Business Improvement,Temporary Bureau Staffing,A0108,12/11/2019,1065912 - 0,"2,700.00",Revenue,SOLUTIONIZE GLOBAL LTD
Oxford City Council,Business Improvement,Contract Printing (External),D3303,03/12/2019,1065950 - 0,431,Revenue,MAYFIELD PRESS LTD
Oxford City Council,Business Improvement,Temporary Bureau Staffing,A0108,26/11/2019,1065959 - 0,"1,100.00",Revenue,SOLUTIONIZE GLOBAL LTD
Oxford City Council,Business Improvement,Postage & Carriage,D3501,26/11/2019,1065980 - 0,540.28,Revenue,CRITIQOM LTD
Oxford City Council,Business Improvement,Miscellaneous Fees,Y173,19/11/2019,1066004 - 0,"4,782.33",Capital,OXFORD DIRECT SERVICES LTD
Oxford City Council,Business Improvement,Software Maintenance/Running Costs,D3513,26/11/2019,1066009 - 0,"5,500.00",Revenue,"Archant Community Media Ltd.,"
Oxford City Council,Business Improvement,Consultants Fees,D3411,03/12/2019,1066013 - 0,"1,877.50",Revenue,PEOPLE ASSET MANAGEMENT LTD
Oxford City Council,Business Improvement,Main Contractor,Y021,10/12/2019,1066032 - 0,"1,774.60",Capital,PROBRAND
Oxford City Council,Business Improvement,Software Maintenance/Running Costs,D3513,19/11/2019,1066044 - 0,895,Revenue,WORKBOOKS ONLINE LTD
Oxford City Council,Business Improvement,Postage & Carriage,D3501,03/12/2019,1066061 - 0,"1,123.12",Revenue,CRITIQOM LTD
Oxford City Council,Business Improvement,Photocopying/Paper Supplies,D3306,03/12/2019,1066106 - 1,572.39,Revenue,SHARP BUSINESS SYSTEMS UK PLC
Oxford City Council,Business Improvement,Software Maintenance/Running Costs,D3513,26/11/2019,1066114 - 0,"1,600.00",Revenue,INTEGRA ASSOCIATES
Oxford City Council,Business Improvement,General Contracted Services,D3401,10/12/2019,1066140 - 0,490.69,Revenue,"WORD360 LTD.,"
Oxford City Council,Business Improvement,Software Maintenance/Running Costs,D3513,26/11/2019,1066142 - 0,749,Revenue,INTEGRA ASSOCIATES
Oxford City Council,Business Improvement,External Telephone Charges,D3503,03/12/2019,1066152 - 1,"1,133.56",Revenue,BT PAYMENT SERVICES
Oxford City Council,Business Improvement,Main Contractor,Y021,17/12/2019,1066155 - 0,"1,774.60",Capital,PROBRAND
Oxford City Council,Business Improvement,Postage & Carriage,D3501,10/12/2019,1066165 - 0,"1,328.02",Revenue,CRITIQOM LTD
Oxford City Council,Business Improvement,IT Skills Development,A0638,17/12/2019,1066177 - 0,"10,500.00",Revenue,LEARNING POOL LTD
Oxford City Council,Business Improvement,Main Contractor,Y021,10/12/2019,1066180 - 0,"4,000.00",Capital,SCC (SPECIALIST COMPUTER CENTRES PLC)
Oxford City Council,Business Improvement,Software Maintenance/Running Costs,D3513,17/12/2019,1066204 - 0,"4,560.00",Revenue,NTA MONITOR LTD
Oxford City Council,Business Improvement,Consultants Fees,D3411,13/12/2019,1066213 - 0,"6,435.00",Revenue,9-2-3 JOBS LIMITED
Oxford City Council,Business Improvement,Consultants Fees,D3411,10/12/2019,1066215 - 0,755,Revenue,PEOPLE ASSET MANAGEMENT LTD
Oxford City Council,Business Improvement,Other,C2502,26/11/2019,1066221 - 1,"2,190.15",Revenue,OXFORD BUS COMPANY LTD
Oxford City Council,Business Improvement,Other,C2502,26/11/2019,1066222 - 1,"2,353.00",Revenue,OXFORD BUS COMPANY LTD
Oxford City Council,Business Improvement,Software Maintenance/Running Costs,D3513,17/12/2019,1066247 - 0,"4,632.04",Revenue,NORTHGATE PUBLIC SERVICES (UK) LTD
Oxford City Council,Business Improvement,Hardware Rental,D3521,03/12/2019,1066274 - 0,257.6,Revenue,SHARP BUSINESS SYSTEMS UK PLC
Oxford City Council,Business Improvement,Photocopying/Paper Supplies,D3306,03/12/2019,1066274 - 1,425.97,Revenue,SHARP BUSINESS SYSTEMS UK PLC
Oxford City Council,Business Improvement,Hardware Rental,D3521,03/12/2019,1066275 - 0,666.38,Revenue,SHARP BUSINESS SYSTEMS UK PLC
Oxford City Council,Business Improvement,Photocopying/Paper Supplies,D3306,03/12/2019,1066275 - 1,"1,102.69",Revenue,SHARP BUSINESS SYSTEMS UK PLC
Oxford City Council,Business Improvement,Main Contractor,Y021,24/12/2019,1066291 - 0,"3,400.00",Capital,XMA LIMITED
Oxford City Council,Business Improvement,General Contracted Services,D3401,17/12/2019,1066297 - 0,800,Revenue,SCC (SPECIALIST COMPUTER CENTRES PLC)
Oxford City Council,Business Improvement,Consultants Fees,D3411,03/12/2019,1066311 - 0,"3,500.00",Revenue,MIDLAND HR
Oxford City Council,Business Improvement,Main Contractor,Y021,24/12/2019,1066334 - 0,"1,592.00",Capital,XMA LIMITED
Oxford City Council,Business Improvement,Consultants Fees,D3411,17/12/2019,1066335 - 0,"1,285.00",Revenue,PEOPLE ASSET MANAGEMENT LTD
Oxford City Council,Business Improvement,Main Contractor,Y021,24/12/2019,1066360 - 0,"20,045.00",Capital,NETCALL TECHNOLOGY LTD
Oxford City Council,Business Improvement,Network Rental,D3531,10/12/2019,1066397 - 1,950.25,Revenue,VODAFONE LIMITED (CORPORATE)
Oxford City Council,Business Improvement,Network Rental,D3531,10/12/2019,1066398 - 1,"4,352.38",Revenue,VODAFONE LTD
Oxford City Council,Business Improvement,Main Contractor,Y021,10/12/2019,1066420 - 0,672,Capital,LOW VOLTAGE UK
Oxford City Council,Business Improvement,Main Contractor,Y021,24/12/2019,1066424 - 0,"5,400.00",Capital,CAE TECHNOLOGY SERVICES LTD
Oxford City Council,Business Improvement,External Telephone Charges,D3503,10/12/2019,1066442 - 1,"22,115.24",Revenue,BT PAYMENT SERVICES
Oxford City Council,Business Improvement,Main Contractor,Y021,24/12/2019,1066453 - 0,540,Capital,XMA LIMITED
Oxford City Council,Business Improvement,Main Contractor,Y021,24/12/2019,1066456 - 0,720,Capital,XMA LIMITED
Oxford City Council,Business Improvement,Contract Printing (External),D3303,24/12/2019,1066462 - 0,520,Revenue,MAYFIELD PRESS LTD
Oxford City Council,Business Improvement,Software Maintenance/Running Costs,D3513,24/12/2019,1066488 - 0,"5,425.00",Revenue,IDOX SOFTWARE LTD
Oxford City Council,Business Improvement,Main Contractor,Y021,24/12/2019,1066494 - 0,"4,258.76",Capital,PROBRAND
Oxford City Council,Business Improvement,Contract Printing (External),D3303,24/12/2019,1066503 - 0,"2,894.00",Revenue,BANBURY LITHO LIMITED
Oxford City Council,Business Improvement,Postage & Carriage,D3501,17/12/2019,1066505 - 0,"1,042.66",Revenue,CRITIQOM LTD
Oxford City Council,Business Improvement,Postage & Carriage,D3501,24/12/2019,1066507 - 0,762.46,Revenue,CRITIQOM LTD
Oxford City Council,Business Improvement,Instructors & Coaching Fees,D3413,24/12/2019,1066516 - 0,"5,100.81",Revenue,VIRGIN MEDIA LTD
Oxford City Council,Business Improvement,General Stationery Supplies,D3301,17/12/2019,1066521 - 0,"1,230.00",Revenue,Encore Envelopes Ltd
Oxford City Council,Business Improvement,Instructors & Coaching Fees,D3413,24/12/2019,1066530 - 0,593.95,Revenue,VIRGIN MEDIA LTD
Oxford City Council,Business Improvement,Main Contractor,Y021,24/12/2019,1066538 - 0,"2,625.00",Capital,T. IMPACT LTD
Oxford City Council,Business Improvement,Consultants Fees,D3411,24/12/2019,1066540 - 0,512.75,Revenue,PEOPLE ASSET MANAGEMENT LTD
Oxford City Council,Business Improvement,General Contracted Services,D3401,24/12/2019,1066542 - 0,"45,601.63",Revenue,SCC (SPECIALIST COMPUTER CENTRES PLC)
Oxford City Council,Business Improvement,General Contracted Services,D3401,24/12/2019,1066543 - 0,"1,900.00",Revenue,SCC (SPECIALIST COMPUTER CENTRES PLC)
Oxford City Council,Business Improvement,Main Contractor,Y021,24/12/2019,1066545 - 0,"1,250.00",Capital,SCC (SPECIALIST COMPUTER CENTRES PLC)
Oxford City Council,Business Improvement,Consultants Fees,D3411,24/12/2019,1066565 - 0,509.5,Revenue,MIDLAND HR
Oxford City Council,Business Improvement,Consultants Fees,D3411,17/12/2019,1066575 - 0,595,Revenue,PLANET IT LTD
Oxford City Council,Business Improvement,Main Contractor,Y021,24/12/2019,1066577 - 0,"3,875.00",Capital,Jadu Creative Limited
Oxford City Council,Business Improvement,Main Contractor,Y021,24/12/2019,1066593 - 0,"100,915.00",Capital,XMA LIMITED
Oxford City Council,Business Improvement,Compliance Training (H&S),A0630,24/12/2019,1066605 - 0,"1,744.71",Revenue,HEALTH ASSURED LIMITED
Oxford City Council,Business Improvement,Contract Printing (External),D3303,24/12/2019,1066606 - 0,721.09,Revenue,MANOR PRINTING SERVICES (WOTTON) LIMITED
Oxford City Council,Business Improvement,Provisions,D3101,17/12/2019,1066621 - 0,670,Revenue,ORGAINIC DELI CAF� & WHOLE FOODS STORE
Oxford City Council,Business Improvement,Other,C2502,24/12/2019,1066652 - 1,"2,048.35",Revenue,OXFORD BUS COMPANY LTD
Oxford City Council,Business Improvement,Other,C2502,24/12/2019,1066654 - 1,"1,827.55",Revenue,OXFORD BUS COMPANY LTD
Oxford City Council,Business Improvement,Network Rental,D3531,24/12/2019,1066670 - 1,"4,352.38",Revenue,VODAFONE LTD
Oxford City Council,Business Improvement,Miscellaneous Fees,Y173,17/12/2019,1066684 - 0,"1,912.93",Capital,OXFORD DIRECT SERVICES LTD
Oxford City Council,Business Improvement,Vehicle Management System,D3515,24/12/2019,1066725 - 1,"5,557.87",Revenue,EXPERIAN LTD
Oxford City Council,Business Improvement,Main Contractor,Y021,24/12/2019,1066732 - 0,700,Capital,XMA LIMITED
Oxford City Council,Business Improvement,Consultants Fees,D3411,24/12/2019,1066746 - 0,"1,238.99",Revenue,PEOPLE ASSET MANAGEMENT LTD
Oxford City Council,Business Improvement,General Contracted Services,D3401,24/12/2019,1066754 - 0,"1,900.00",Revenue,SCC (SPECIALIST COMPUTER CENTRES PLC)
Oxford City Council,Business Improvement,Main Contractor,Y021,24/12/2019,1066755 - 0,"1,250.00",Capital,SCC (SPECIALIST COMPUTER CENTRES PLC)
Oxford City Council,Business Improvement,Contract Printing (External),D3303,24/12/2019,1066775 - 0,"1,899.52",Revenue,CRITIQOM LTD
Oxford City Council,Business Improvement,Postage & Carriage,D3501,24/12/2019,1066776 - 0,"9,182.08",Revenue,CRITIQOM LTD
Oxford City Council,Business Improvement,Postage & Carriage,D3501,24/12/2019,1066778 - 0,811.12,Revenue,CRITIQOM LTD
Oxford City Council,Business Improvement,Consultants Fees,D3411,24/12/2019,1066793 - 0,"3,000.00",Revenue,"Zellis UK Ltd.,"
Oxford City Council,Business Improvement,Health Screening,D3428,24/12/2019,1066857 - 0,"1,250.00",Revenue,HEALTH ASSURED LIMITED
Oxford City Council,Business Improvement,General Contracted Services,D3401,24/12/2019,1066865 - 0,870.04,Revenue,CANON (UK) lTD
Oxford City Council,Business Improvement,Main Contractor,Y021,26/03/2019,3041996 - 1,687.86,Capital,OXFORD DIRECT SERVICES LTD - (SERVITOR ONLY)
Oxford City Council,Business Improvement,Main Contractor,Y021,15/01/2019,46300852 - 3,"6,130.80",Capital,REED SPECIALIST RECRUITMENT LTD
Oxford City Council,Business Improvement,Temporary Bureau Staffing,A0108,15/01/2019,46300852 - 4,"7,300.80",Revenue,REED SPECIALIST RECRUITMENT LTD
Oxford City Council,Business Improvement,Temporary Bureau Staffing,A0108,15/01/2019,46300852 - 6,"53,547.93",Revenue,REED SPECIALIST RECRUITMENT LTD
Oxford City Council,Business Improvement,Temporary Bureau Staffing,A0108,15/01/2019,46300852 - 7,"7,763.76",Revenue,REED SPECIALIST RECRUITMENT LTD
Oxford City Council,Business Improvement,Temporary Bureau Staffing,A0108,15/01/2019,46300852 - 9,"3,429.62",Revenue,REED SPECIALIST RECRUITMENT LTD
Oxford City Council,Business Improvement,Temporary Bureau Staffing,A0108,15/01/2019,46300852 - 12,"2,159.21",Revenue,REED SPECIALIST RECRUITMENT LTD
Oxford City Council,Business Improvement,Temporary Bureau Staffing,A0108,15/01/2019,46300852 - 13,"1,762.60",Revenue,REED SPECIALIST RECRUITMENT LTD
Oxford City Council,Business Improvement,Furniture & Equipment Purchase,D3001,22/01/2019,46300938 - 1,450,Revenue,GENERAL EXPENSES
Oxford City Council,Business Improvement,Main Contractor,Y021,12/02/2019,46301116 - 4,"8,174.40",Capital,REED SPECIALIST RECRUITMENT LTD
Oxford City Council,Business Improvement,Temporary Bureau Staffing,A0108,12/02/2019,46301116 - 5,"8,760.96",Revenue,REED SPECIALIST RECRUITMENT LTD
Oxford City Council,Business Improvement,Temporary Bureau Staffing,A0108,12/02/2019,46301116 - 7,"41,361.08",Revenue,REED SPECIALIST RECRUITMENT LTD
Oxford City Council,Business Improvement,Temporary Bureau Staffing,A0108,12/02/2019,46301116 - 8,"6,816.96",Revenue,REED SPECIALIST RECRUITMENT LTD
Oxford City Council,Business Improvement,Temporary Bureau Staffing,A0108,12/02/2019,46301116 - 10,"3,422.59",Revenue,REED SPECIALIST RECRUITMENT LTD
Oxford City Council,Business Improvement,Temporary Bureau Staffing,A0108,12/02/2019,46301116 - 14,842.59,Revenue,REED SPECIALIST RECRUITMENT LTD
Oxford City Council,Business Improvement,Temporary Bureau Staffing,A0108,12/02/2019,46301116 - 15,103.4,Revenue,REED SPECIALIST RECRUITMENT LTD
Oxford City Council,Business Improvement,Main Contractor,Y021,12/03/2019,46301402 - 4,"8,174.40",Capital,REED SPECIALIST RECRUITMENT LTD
Oxford City Council,Business Improvement,Temporary Bureau Staffing,A0108,12/03/2019,46301402 - 5,"9,734.40",Revenue,REED SPECIALIST RECRUITMENT LTD
Oxford City Council,Business Improvement,Temporary Bureau Staffing,A0108,12/03/2019,46301402 - 7,"47,106.83",Revenue,REED SPECIALIST RECRUITMENT LTD
Oxford City Council,Business Improvement,Temporary Bureau Staffing,A0108,12/03/2019,46301402 - 8,"7,574.40",Revenue,REED SPECIALIST RECRUITMENT LTD
Oxford City Council,Business Improvement,Temporary Bureau Staffing,A0108,12/03/2019,46301402 - 10,"3,903.17",Revenue,REED SPECIALIST RECRUITMENT LTD
Oxford City Council,Business Improvement,Main Contractor,Y021,16/04/2019,46302247 - 4,"10,218.00",Capital,REED SPECIALIST RECRUITMENT LTD
Oxford City Council,Business Improvement,Temporary Bureau Staffing,A0108,16/04/2019,46302247 - 5,"12,168.00",Revenue,REED SPECIALIST RECRUITMENT LTD
Oxford City Council,Business Improvement,Temporary Bureau Staffing,A0108,16/04/2019,46302247 - 7,"48,872.38",Revenue,REED SPECIALIST RECRUITMENT LTD
Oxford City Council,Business Improvement,Temporary Bureau Staffing,A0108,16/04/2019,46302247 - 8,"8,710.56",Revenue,REED SPECIALIST RECRUITMENT LTD
Oxford City Council,Business Improvement,Temporary Bureau Staffing,A0108,16/04/2019,46302247 - 11,"3,359.05",Revenue,REED SPECIALIST RECRUITMENT LTD
Oxford City Council,Business Improvement,Main Contractor,Y021,21/05/2019,46302636 - 4,"7,356.96",Capital,REED SPECIALIST RECRUITMENT LTD
Oxford City Council,Business Improvement,Temporary Bureau Staffing,A0108,21/05/2019,46302636 - 5,"7,787.52",Revenue,REED SPECIALIST RECRUITMENT LTD
Oxford City Council,Business Improvement,Temporary Bureau Staffing,A0108,21/05/2019,46302636 - 7,"29,251.23",Revenue,REED SPECIALIST RECRUITMENT LTD
Oxford City Council,Business Improvement,Temporary Bureau Staffing,A0108,21/05/2019,46302636 - 8,"4,544.64",Revenue,REED SPECIALIST RECRUITMENT LTD
Oxford City Council,Business Improvement,Temporary Bureau Staffing,A0108,21/05/2019,46302636 - 11,"1,672.43",Revenue,REED SPECIALIST RECRUITMENT LTD
Oxford City Council,Business Improvement,Temporary Bureau Staffing,A0108,21/05/2019,46302636 - 14,"5,318.12",Revenue,REED SPECIALIST RECRUITMENT LTD
Oxford City Council,Business Improvement,Main Contractor,Y021,11/06/2019,46302931 - 4,"7,765.68",Capital,REED SPECIALIST RECRUITMENT LTD
Oxford City Council,Business Improvement,Temporary Bureau Staffing,A0108,11/06/2019,46302931 - 5,"9,247.68",Revenue,REED SPECIALIST RECRUITMENT LTD
Oxford City Council,Business Improvement,Temporary Bureau Staffing,A0108,11/06/2019,46302931 - 7,"35,878.40",Revenue,REED SPECIALIST RECRUITMENT LTD
Oxford City Council,Business Improvement,Temporary Bureau Staffing,A0108,11/06/2019,46302931 - 8,"6,627.60",Revenue,REED SPECIALIST RECRUITMENT LTD
Oxford City Council,Business Improvement,Temporary Bureau Staffing,A0108,11/06/2019,46302931 - 11,"1,929.07",Revenue,REED SPECIALIST RECRUITMENT LTD
Oxford City Council,Business Improvement,Temporary Bureau Staffing,A0108,11/06/2019,46302931 - 14,"3,152.29",Revenue,REED SPECIALIST RECRUITMENT LTD
Oxford City Council,Business Improvement,Temporary Bureau Staffing,A0108,11/06/2019,46302931 - 15,"7,817.10",Revenue,REED SPECIALIST RECRUITMENT LTD
Oxford City Council,Business Improvement,External Learning Programme,A0633,02/07/2019,46303357 - 0,"36,352.00",Revenue,OXFORD DIRECT SERVICES LTD
Oxford City Council,Business Improvement,External Learning Programme,A0633,02/07/2019,46303358 - 2,"36,695.84",Revenue,OXFORD DIRECT SERVICES LTD
Oxford City Council,Business Improvement,External Learning Programme,A0633,02/07/2019,46303359 - 0,"6,060.00",Revenue,OXFORD DIRECT SERVICES LTD
Oxford City Council,Business Improvement,Main Contractor,Y021,16/07/2019,46303505 - 4,"6,539.52",Capital,REED SPECIALIST RECRUITMENT LTD
Oxford City Council,Business Improvement,Temporary Bureau Staffing,A0108,16/07/2019,46303505 - 5,"9,734.40",Revenue,REED SPECIALIST RECRUITMENT LTD
Oxford City Council,Business Improvement,Temporary Bureau Staffing,A0108,16/07/2019,46303505 - 7,"52,074.11",Revenue,REED SPECIALIST RECRUITMENT LTD
Oxford City Council,Business Improvement,Temporary Bureau Staffing,A0108,16/07/2019,46303505 - 8,"10,982.88",Revenue,REED SPECIALIST RECRUITMENT LTD
Oxford City Council,Business Improvement,Temporary Bureau Staffing,A0108,16/07/2019,46303505 - 12,"1,126.91",Revenue,REED SPECIALIST RECRUITMENT LTD
Oxford City Council,Business Improvement,Temporary Bureau Staffing,A0108,16/07/2019,46303505 - 15,"1,439.57",Revenue,REED SPECIALIST RECRUITMENT LTD
Oxford City Council,Business Improvement,Temporary Bureau Staffing,A0108,16/07/2019,46303505 - 16,"6,532.97",Revenue,REED SPECIALIST RECRUITMENT LTD
Oxford City Council,Business Improvement,Main Contractor,Y021,13/08/2019,46303956 - 6,"9,809.28",Capital,REED SPECIALIST RECRUITMENT LTD
Oxford City Council,Business Improvement,Temporary Bureau Staffing,A0108,13/08/2019,46303956 - 7,"7,300.80",Revenue,REED SPECIALIST RECRUITMENT LTD
Oxford City Council,Business Improvement,Temporary Bureau Staffing,A0108,13/08/2019,46303956 - 8,"48,670.65",Revenue,REED SPECIALIST RECRUITMENT LTD
Oxford City Council,Business Improvement,Temporary Bureau Staffing,A0108,13/08/2019,46303956 - 9,"1,514.88",Revenue,REED SPECIALIST RECRUITMENT LTD
Oxford City Council,Business Improvement,Temporary Bureau Staffing,A0108,13/08/2019,46303956 - 15,"9,363.54",Revenue,REED SPECIALIST RECRUITMENT LTD
Oxford City Council,Business Improvement,Temporary Bureau Staffing,A0108,13/08/2019,46303956 - 25,"1,476.75",Revenue,REED SPECIALIST RECRUITMENT LTD
Oxford City Council,Business Improvement,Main Contractor,Y021,10/09/2019,46304230 - 5,"14,078.32",Capital,REED SPECIALIST RECRUITMENT LTD
Oxford City Council,Business Improvement,Temporary Bureau Staffing,A0108,10/09/2019,46304230 - 6,"2,433.60",Revenue,REED SPECIALIST RECRUITMENT LTD
Oxford City Council,Business Improvement,Temporary Bureau Staffing,A0108,10/09/2019,46304230 - 7,"45,600.67",Revenue,REED SPECIALIST RECRUITMENT LTD
Oxford City Council,Business Improvement,Temporary Bureau Staffing,A0108,10/09/2019,46304230 - 13,915.77,Revenue,REED SPECIALIST RECRUITMENT LTD
Oxford City Council,Business Improvement,Temporary Bureau Staffing,A0108,10/09/2019,46304230 - 14,"9,117.96",Revenue,REED SPECIALIST RECRUITMENT LTD
Oxford City Council,Business Improvement,Temporary Bureau Staffing,A0108,10/09/2019,46304230 - 25,"4,457.05",Revenue,REED SPECIALIST RECRUITMENT LTD
Oxford City Council,Business Improvement,Instructors & Coaching Fees,D3413,08/10/2019,46304615 - 1,485,Revenue,PDP CONFERENCES
Oxford City Council,Business Improvement,Main Contractor,Y021,15/10/2019,46304704 - 5,"10,218.00",Capital,REED SPECIALIST RECRUITMENT LTD
Oxford City Council,Business Improvement,Temporary Bureau Staffing,A0108,15/10/2019,46304704 - 6,"79,472.87",Revenue,REED SPECIALIST RECRUITMENT LTD
Oxford City Council,Business Improvement,Temporary Bureau Staffing,A0108,15/10/2019,46304704 - 11,"2,568.66",Revenue,REED SPECIALIST RECRUITMENT LTD
Oxford City Council,Business Improvement,Temporary Bureau Staffing,A0108,15/10/2019,46304704 - 12,"1,675.18",Revenue,REED SPECIALIST RECRUITMENT LTD
Oxford City Council,Business Improvement,Temporary Bureau Staffing,A0108,15/10/2019,46304704 - 23,"4,271.44",Revenue,REED SPECIALIST RECRUITMENT LTD
Oxford City Council,Business Improvement,Temporary Bureau Staffing,A0108,15/10/2019,46304704 - 27,"8,050.80",Revenue,REED SPECIALIST RECRUITMENT LTD
Oxford City Council,Business Improvement,General Contracted Services,D3401,22/10/2019,46304725 - 1,"29,925.00",Revenue,OSBORNE THOMAS LTD
Oxford City Council,Business Improvement,Services - General Fees,K9501,22/10/2019,46304789 - 1,696.5,Revenue,GENERAL EXPENSES
Oxford City Council,Business Improvement,Staff Advertising,A0702,29/10/2019,46304825 - 1,650,Revenue,GENERAL EXPENSES
Oxford City Council,Business Improvement,Main Contractor,Y021,12/11/2019,46305040 - 5,"16,225.20",Capital,REED SPECIALIST RECRUITMENT LTD
Oxford City Council,Business Improvement,Temporary Bureau Staffing,A0108,12/11/2019,46305040 - 6,"56,830.66",Revenue,REED SPECIALIST RECRUITMENT LTD
Oxford City Council,Business Improvement,Temporary Bureau Staffing,A0108,12/11/2019,46305040 - 10,"1,779.63",Revenue,REED SPECIALIST RECRUITMENT LTD
Oxford City Council,Business Improvement,Temporary Bureau Staffing,A0108,12/11/2019,46305040 - 11,"8,598.84",Revenue,REED SPECIALIST RECRUITMENT LTD
Oxford City Council,Business Improvement,Temporary Bureau Staffing,A0108,12/11/2019,46305040 - 19,"4,011.07",Revenue,REED SPECIALIST RECRUITMENT LTD
Oxford City Council,Business Improvement,Reimbursements Other (Non-VAT),K9159,26/11/2019,46305179 - 1,"1,750.00",Revenue,GENERAL EXPENSES
Oxford City Council,Business Improvement,Main Contractor,Y021,10/12/2019,46305368 - 6,"13,541.60",Capital,REED SPECIALIST RECRUITMENT LTD
Oxford City Council,Business Improvement,Temporary Bureau Staffing,A0108,10/12/2019,46305368 - 7,"53,384.72",Revenue,REED SPECIALIST RECRUITMENT LTD
Oxford City Council,Business Improvement,Temporary Bureau Staffing,A0108,10/12/2019,46305368 - 12,"2,052.48",Revenue,REED SPECIALIST RECRUITMENT LTD
Oxford City Council,Business Improvement,Temporary Bureau Staffing,A0108,10/12/2019,46305368 - 13,"8,587.52",Revenue,REED SPECIALIST RECRUITMENT LTD
Oxford City Council,Business Improvement,Temporary Bureau Staffing,A0108,10/12/2019,46305368 - 22,"5,787.78",Revenue,REED SPECIALIST RECRUITMENT LTD
Oxford City Council,Corporate Property,Reactive Maintenance & Minor Repairs,B1101,05/03/2019,1055331 - 0,986.88,Revenue,CAN STRUCTURES LIMITED
Oxford City Council,Corporate Property,Reactive Maintenance & Minor Repairs,B1101,05/03/2019,1055332 - 0,"2,330.11",Revenue,CAN STRUCTURES LIMITED
Oxford City Council,Corporate Property,Counsel & External Legal Fees,D3417,15/01/2019,1058468 - 0,578.2,Revenue,VEALE WASBROUGH VIZARD
Oxford City Council,Corporate Property,Consultants Fees,D3411,10/01/2019,1058718 - 1,"2,786.00",Revenue,BIERCE SURVEYING LTD
Oxford City Council,Corporate Property,Water Systems Testing & Sanitary Repairs,B1208,08/01/2019,1059005 - 0,"1,727.80",Revenue,SMS ENVIRONMENTAL LIMITED
Oxford City Council,Corporate Property,Water Systems Testing & Sanitary Repairs,B1208,08/01/2019,1059006 - 0,"1,899.00",Revenue,SMS ENVIRONMENTAL LIMITED
Oxford City Council,Corporate Property,Water Systems Testing & Sanitary Repairs,B1208,08/01/2019,1059007 - 0,"2,572.00",Revenue,SMS ENVIRONMENTAL LIMITED
Oxford City Council,Corporate Property,Reactive Maintenance & Minor Repairs,B1101,15/01/2019,1059015 - 0,441,Revenue,PUMPING  SOLUTIONS  (UK)  LTD
Oxford City Council,Corporate Property,Rent,B1701,15/01/2019,1059037 - 1,"2,039.66",Revenue,
Oxford City Council,Corporate Property,Consultants Fees,D3411,08/01/2019,1059054 - 0,"2,500.00",Revenue,CARTER JONAS
Oxford City Council,Corporate Property,Electrical Services (Inspections etc.),B1153,08/01/2019,1059098 - 0,"5,105.24",Revenue,SSE CONTRACTING LTD
Oxford City Council,Corporate Property,Consultants Fees,D3411,08/01/2019,1059107 - 0,"1,175.00",Revenue,CARTER JONAS
Oxford City Council,Corporate Property,General Contracted Services,D3401,08/01/2019,1059109 - 0,"2,585.00",Revenue,IAN BRIDGE CONSULTANCY LIMITED
Oxford City Council,Corporate Property,Subscriptions,D3703,08/01/2019,1059130 - 0,"1,815.00",Revenue,NBS  ENTERPRISES LIMITED
Oxford City Council,Corporate Property,Reactive Maintenance & Minor Repairs,B1101,08/01/2019,1059131 - 0,"2,195.00",Revenue,D A MILES & SONS
Oxford City Council,Corporate Property,Electrical Services (Inspections etc.),B1153,08/01/2019,1059194 - 0,"3,600.00",Revenue,SSE CONTRACTING LTD
Oxford City Council,Corporate Property,Garage Works,B1127,14/05/2019,1059201 - 1,"1,430.00",Revenue,OXFORD DIRECT SERVICES LTD
Oxford City Council,Corporate Property,Garage Works,B1127,14/05/2019,1059202 - 1,"1,430.00",Revenue,OXFORD DIRECT SERVICES LTD
Oxford City Council,Corporate Property,Garage Works,B1127,14/05/2019,1059203 - 1,"1,430.00",Revenue,OXFORD DIRECT SERVICES LTD
Oxford City Council,Corporate Property,Reactive Maintenance & Minor Repairs,B1101,08/01/2019,1059217 - 0,680,Revenue,EXECUTIVE FIRE PROTECTION LTD
Oxford City Council,Corporate Property,Consultants Fees,D3411,08/01/2019,1059253 - 0,"1,021.00",Revenue,BIERCE SURVEYING LTD
Oxford City Council,Corporate Property,Reactive Maintenance & Minor Repairs,B1101,15/01/2019,1059256 - 0,500,Revenue,TRUTH LTD T/A KJC FELT ROOFING
Oxford City Council,Corporate Property,Reactive Maintenance & Minor Repairs,B1101,15/01/2019,1059257 - 0,450,Revenue,TRUTH LTD T/A KJC FELT ROOFING
Oxford City Council,Corporate Property,General Contracted Services,D3401,22/01/2019,1059258 - 0,535.1,Revenue,"VPS, THE VACANT PROPERTY SPECIALIST"
Oxford City Council,Corporate Property,Software Maintenance/Running Costs,D3513,29/01/2019,1059261 - 0,"9,840.00",Revenue,ARGUS SOFTWARE UK LTD
Oxford City Council,Corporate Property,Reactive Maintenance & Minor Repairs,B1101,22/01/2019,1059269 - 0,441,Revenue,PUMPING  SOLUTIONS  (UK)  LTD
Oxford City Council,Corporate Property,Reactive Maintenance & Minor Repairs,B1101,22/01/2019,1059270 - 0,655.5,Revenue,PUMPING  SOLUTIONS  (UK)  LTD
Oxford City Council,Corporate Property,Software Maintenance/Running Costs,D3513,05/02/2019,1059311 - 0,601.2,Revenue,ARGUS SOFTWARE UK LTD
Oxford City Council,Corporate Property,Reactive Maintenance & Minor Repairs,B1101,05/02/2019,1059371 - 0,674,Revenue,LONDON WALL INSTALLATIONS LTD
Oxford City Council,Corporate Property,Counsel & External Legal Fees,D3417,15/01/2019,1059427 - 0,433.5,Revenue,VEALE WASBROUGH VIZARD
Oxford City Council,Corporate Property,Commercial Portfolio - Planned Maintenance,B2000,05/02/2019,1059523 - 0,"6,402.17",Revenue,IMPACT LIGHTING SOLUTIONS LTD
Oxford City Council,Corporate Property,General Contracted Services,D3401,22/01/2019,1059524 - 0,"1,150.00",Revenue,GLANVILLE CONSULTANTS LTD
Oxford City Council,Corporate Property,Reactive Maintenance & Minor Repairs,B1101,22/01/2019,1059526 - 0,560,Revenue,TRUTH LTD T/A KJC FELT ROOFING
Oxford City Council,Corporate Property,Consultants Fees,D3411,22/01/2019,1059527 - 0,"2,500.00",Revenue,CARTER JONAS
Oxford City Council,Corporate Property,Consultants Fees,D3411,05/02/2019,1059528 - 0,750,Revenue,INTERLOCKS SURVEYS LTD
Oxford City Council,Corporate Property,Staff Advertising,A0702,22/01/2019,1059537 - 0,550,Revenue,"We are Sunday Ltd.,"
Oxford City Council,Corporate Property,Services Maintenance (Planned),B1103,22/01/2019,1059565 - 0,"1,295.00",Revenue,PYROTEC SERVICES LTD
Oxford City Council,Corporate Property,Consultants Fees,D3411,12/02/2019,1059572 - 0,953.7,Revenue,FISHER GERMAN LLP
Oxford City Council,Corporate Property,Rent,B1701,29/01/2019,1059594 - 1,"2,039.66",Revenue,
Oxford City Council,Corporate Property,Asbestos Work,B1106,29/01/2019,1059613 - 0,900,Revenue,ASBESTOS CONSULTANTS EUROPE LTD
Oxford City Council,Corporate Property,Asbestos Work,B1106,29/01/2019,1059619 - 0,600,Revenue,ASBESTOS CONSULTANTS EUROPE LTD
Oxford City Council,Corporate Property,Water Systems Testing & Sanitary Repairs,B1208,29/01/2019,1059645 - 0,"1,170.00",Revenue,SMS ENVIRONMENTAL LIMITED
Oxford City Council,Corporate Property,Water Systems Testing & Sanitary Repairs,B1208,29/01/2019,1059646 - 0,"1,954.00",Revenue,SMS ENVIRONMENTAL LIMITED
Oxford City Council,Corporate Property,Water Systems Testing & Sanitary Repairs,B1208,29/01/2019,1059647 - 0,"2,883.00",Revenue,SMS ENVIRONMENTAL LIMITED
Oxford City Council,Corporate Property,Gas Appliances Annual Maintenance,B1206,29/01/2019,1059673 - 0,"8,458.23",Revenue,BARKER & EVANS LTD
Oxford City Council,Corporate Property,Subscriptions,D3703,05/02/2019,1059677 - 0,"13,234.00",Revenue,IHS (GLOBAL) LTD
Oxford City Council,Corporate Property,Fire Alarms and Emergency Lighting,B1241,29/01/2019,1059687 - 0,"6,300.15",Revenue,PYROTEC SERVICES LTD
Oxford City Council,Corporate Property,Reactive Maintenance & Minor Repairs,B1101,12/02/2019,1059705 - 0,504.09,Revenue,PUMPING  SOLUTIONS  (UK)  LTD
Oxford City Council,Corporate Property,Reactive Maintenance & Minor Repairs,B1101,29/01/2019,1059727 - 0,792,Revenue,OXFORD REFRIGERATION LTD
Oxford City Council,Corporate Property,Reactive Maintenance & Minor Repairs,B1101,19/02/2019,1059728 - 0,"1,487.00",Revenue,IDEAL FLOORING (OXFORD) LTD
Oxford City Council,Corporate Property,Reactive Maintenance & Minor Repairs,B1101,29/01/2019,1059739 - 0,"3,000.00",Revenue,
Oxford City Council,Corporate Property,Consultants Fees,D3411,05/02/2019,1059778 - 0,"1,075.00",Revenue,CARTER JONAS
Oxford City Council,Corporate Property,Service Charges,B1821,05/02/2019,1059793 - 1,"11,688.75",Revenue,WORKMAN LLP
Oxford City Council,Corporate Property,Refuse Collection,B1605,05/02/2019,1059797 - 0,"1,927.80",Revenue,OXFORD DIRECT SERVICES TRADING LTD
Oxford City Council,Corporate Property,Consultants Fees,D3411,05/02/2019,1059811 - 0,460,Revenue,BOSSOMS BOATYARD LTD
Oxford City Council,Corporate Property,Reactive Maintenance & Minor Repairs,B1101,05/02/2019,1059818 - 0,485,Revenue,D A MILES & SONS
Oxford City Council,Corporate Property,Reactive Maintenance & Minor Repairs,B1101,05/02/2019,1059827 - 0,750,Revenue,TRUTH LTD T/A KJC FELT ROOFING
Oxford City Council,Corporate Property,Consultants Fees,D3411,05/02/2019,1059835 - 0,"2,000.00",Revenue,FISHER GERMAN LLP
Oxford City Council,Corporate Property,Reactive Maintenance & Minor Repairs,B1101,05/02/2019,1059842 - 0,"1,250.00",Revenue,D A MILES & SONS
Oxford City Council,Corporate Property,Reactive Maintenance & Minor Repairs,B1101,05/02/2019,1059843 - 0,"3,500.00",Revenue,D A MILES & SONS
Oxford City Council,Corporate Property,Reactive Maintenance & Minor Repairs,B1101,05/02/2019,1059844 - 0,"2,150.00",Revenue,D A MILES & SONS
Oxford City Council,Corporate Property,General Contracted Services,D3401,05/02/2019,1059863 - 0,"5,356.25",Revenue,IAN BRIDGE CONSULTANCY LIMITED
Oxford City Council,Corporate Property,General Contracted Services,D3401,05/02/2019,1059864 - 0,"9,390.60",Revenue,IAN BRIDGE CONSULTANCY LIMITED
Oxford City Council,Corporate Property,Reactive Maintenance & Minor Repairs,B1101,05/02/2019,1059875 - 0,600,Revenue,
Oxford City Council,Corporate Property,Lift Maintenance / Servicing,B1203,05/02/2019,1059877 - 0,722.5,Revenue,COTSWOLD LIFTS LTD
Oxford City Council,Corporate Property,Reactive Maintenance & Minor Repairs,B1101,05/02/2019,1059878 - 0,"4,889.95",Revenue,FERGAL CONTRACTING CO LTD
Oxford City Council,Corporate Property,Reactive Maintenance & Minor Repairs,B1101,05/02/2019,1059879 - 0,"2,156.25",Revenue,FERGAL CONTRACTING CO LTD
Oxford City Council,Corporate Property,Reactive Maintenance & Minor Repairs,B1101,26/02/2019,1059906 - 0,"1,085.32",Revenue,NBC BIRD & PEST SOLUTIONS LTD
Oxford City Council,Corporate Property,Consultants Fees,D3411,12/02/2019,1059914 - 0,"2,500.00",Revenue,CARTER JONAS
Oxford City Council,Corporate Property,Reactive Maintenance & Minor Repairs,B1101,26/02/2019,1059916 - 0,680,Revenue,EXECUTIVE FIRE PROTECTION LTD
Oxford City Council,Corporate Property,Reactive Maintenance & Minor Repairs,B1101,26/02/2019,1059917 - 0,"1,875.00",Revenue,EXECUTIVE FIRE PROTECTION LTD
Oxford City Council,Corporate Property,Staff Advertising,A0702,05/02/2019,1059919 - 0,"1,320.00",Revenue,"We are Sunday Ltd.,"
Oxford City Council,Corporate Property,Asbestos Work,B1106,19/02/2019,1059953 - 0,590,Revenue,ASBESTOS CONSULTANTS EUROPE LTD
Oxford City Council,Corporate Property,Reactive Maintenance & Minor Repairs,B1101,12/02/2019,1059991 - 0,"2,750.00",Revenue,D A MILES & SONS
Oxford City Council,Corporate Property,General Contracted Services,D3401,26/02/2019,1060000 - 0,428.08,Revenue,"VPS, THE VACANT PROPERTY SPECIALIST"
Oxford City Council,Corporate Property,Reactive Maintenance & Minor Repairs,B1101,12/02/2019,1060004 - 0,895,Revenue,SAFESITE LTD
Oxford City Council,Corporate Property,Reactive Maintenance & Minor Repairs,B1101,12/02/2019,1060026 - 0,750,Revenue,D A MILES & SONS
Oxford City Council,Corporate Property,Asbestos Work,B1106,19/02/2019,1060045 - 0,695,Revenue,ASBESTOS CONSULTANTS EUROPE LTD
Oxford City Council,Corporate Property,Consultants Fees,D3411,19/02/2019,1060082 - 1,"1,850.00",Revenue,IAN BRIDGE CONSULTANCY LIMITED
Oxford City Council,Corporate Property,Consultants Fees,D3411,26/02/2019,1060092 - 0,"4,675.00",Revenue,CBRE CAPITAL ADVISORS LTD
Oxford City Council,Corporate Property,Reactive Maintenance & Minor Repairs,B1101,05/03/2019,1060096 - 0,606,Revenue,PUMPING  SOLUTIONS  (UK)  LTD
Oxford City Council,Corporate Property,Reactive Maintenance & Minor Repairs,B1101,19/02/2019,1060112 - 0,480,Revenue,ISIS SCAFFOLDING LTD
Oxford City Council,Corporate Property,Reactive Maintenance & Minor Repairs,B1101,26/02/2019,1060113 - 0,480,Revenue,ISIS SCAFFOLDING LTD
Oxford City Council,Corporate Property,Gas Appliances Annual Maintenance,B1206,19/02/2019,1060119 - 0,"9,279.93",Revenue,BARKER & EVANS LTD
Oxford City Council,Corporate Property,Refuse Collection,B1605,19/02/2019,1060141 - 0,"2,319.36",Revenue,OXFORD DIRECT SERVICES TRADING LTD
Oxford City Council,Corporate Property,Parks and Cemeteries - PM to Infrastructure,B2004,26/02/2019,1060178 - 1,"18,029.90",Revenue,OXFORD DIRECT SERVICES LTD
Oxford City Council,Corporate Property,Reactive Maintenance & Minor Repairs,B1101,19/02/2019,1060187 - 0,875,Revenue,D A MILES & SONS
Oxford City Council,Corporate Property,Reactive Maintenance & Minor Repairs,B1101,19/02/2019,1060188 - 0,"3,950.00",Revenue,D A MILES & SONS
Oxford City Council,Corporate Property,Reactive Maintenance & Minor Repairs,B1101,19/02/2019,1060193 - 0,"1,500.00",Revenue,D A MILES & SONS
Oxford City Council,Corporate Property,General Contracted Services,D3401,19/02/2019,1060205 - 0,"2,640.00",Revenue,IAN BRIDGE CONSULTANCY LIMITED
Oxford City Council,Corporate Property,General Contracted Services,D3401,19/02/2019,1060206 - 0,"1,595.00",Revenue,IAN BRIDGE CONSULTANCY LIMITED
Oxford City Council,Corporate Property,Water Systems Testing & Sanitary Repairs,B1208,26/02/2019,1060208 - 0,"1,714.00",Revenue,SMS ENVIRONMENTAL LIMITED
Oxford City Council,Corporate Property,Water Systems Testing & Sanitary Repairs,B1208,26/02/2019,1060209 - 0,"3,207.00",Revenue,SMS ENVIRONMENTAL LIMITED
Oxford City Council,Corporate Property,Water Systems Testing & Sanitary Repairs,B1208,26/02/2019,1060211 - 0,"1,797.00",Revenue,SMS ENVIRONMENTAL LIMITED
Oxford City Council,Corporate Property,Reactive Maintenance & Minor Repairs,B1101,05/03/2019,1060218 - 0,874,Revenue,SMITH OF DERBY LTD
Oxford City Council,Corporate Property,Reactive Maintenance & Minor Repairs,B1101,12/03/2019,1060242 - 0,500,Revenue,UNIVERSITY OF LINCOLN
Oxford City Council,Corporate Property,Licences (Non-Transport),D3804,19/02/2019,1060244 - 0,500,Revenue,SMS ENVIRONMENTAL LIMITED
Oxford City Council,Corporate Property,Consultants Fees,D3411,19/02/2019,1060262 - 0,"2,500.00",Revenue,VENABLES SHERROTT LOCKHART & PARTNERS LTD
Oxford City Council,Corporate Property,Consultants Fees,D3411,19/02/2019,1060264 - 0,"4,725.00",Revenue,MARRIOTTS
Oxford City Council,Corporate Property,Reactive Maintenance & Minor Repairs,B1101,26/02/2019,1060299 - 0,500,Revenue,CHRISTY LIGHTING LTD
Oxford City Council,Corporate Property,Counsel & External Legal Fees,D3417,26/02/2019,1060302 - 0,693,Revenue,VEALE WASBROUGH VIZARD
Oxford City Council,Corporate Property,Lift Maintenance / Servicing,B1203,26/02/2019,1060401 - 0,"1,752.75",Revenue,COTSWOLD LIFTS LTD
Oxford City Council,Corporate Property,Asbestos Work,B1106,26/02/2019,1060434 - 0,"8,450.00",Revenue,ASBESTOS CONSULTANTS EUROPE LTD
Oxford City Council,Corporate Property,Consultants Fees,D3411,26/02/2019,1060437 - 0,"1,666.67",Revenue,BOSSOMS BOATYARD LTD
Oxford City Council,Corporate Property,Reactive Maintenance & Minor Repairs,B1101,05/03/2019,1060444 - 0,450,Revenue,TRUTH LTD T/A KJC FELT ROOFING
Oxford City Council,Corporate Property,Reactive Maintenance & Minor Repairs,B1101,05/03/2019,1060445 - 0,"2,150.00",Revenue,TRUTH LTD T/A KJC FELT ROOFING
Oxford City Council,Corporate Property,Reactive Maintenance & Minor Repairs,B1101,05/03/2019,1060446 - 0,725,Revenue,TRUTH LTD T/A KJC FELT ROOFING
Oxford City Council,Corporate Property,Reactive Maintenance & Minor Repairs,B1101,12/03/2019,1060448 - 0,"1,500.00",Revenue,CRYSTAL LITE CHANDELIERS LTD
Oxford City Council,Corporate Property,Fire Alarms and Emergency Lighting,B1241,26/02/2019,1060453 - 0,"2,200.50",Revenue,PYROTEC SERVICES LTD
Oxford City Council,Corporate Property,Reactive Maintenance & Minor Repairs,B1101,05/03/2019,1060474 - 0,"2,950.00",Revenue,D A MILES & SONS
Oxford City Council,Corporate Property,Reactive Maintenance & Minor Repairs,B1101,05/03/2019,1060480 - 0,500,Revenue,TRUTH LTD T/A KJC FELT ROOFING
Oxford City Council,Corporate Property,Reactive Maintenance & Minor Repairs,B1101,05/03/2019,1060481 - 0,550,Revenue,TRUTH LTD T/A KJC FELT ROOFING
Oxford City Council,Corporate Property,Reactive Maintenance & Minor Repairs,B1101,05/03/2019,1060482 - 0,420,Revenue,TRUTH LTD T/A KJC FELT ROOFING
Oxford City Council,Corporate Property,Reactive Maintenance & Minor Repairs,B1101,05/03/2019,1060483 - 0,500,Revenue,TRUTH LTD T/A KJC FELT ROOFING
Oxford City Council,Corporate Property,General Contracted Services,D3401,26/02/2019,1060490 - 0,"2,000.00",Revenue,IAN BRIDGE CONSULTANCY LIMITED
Oxford City Council,Corporate Property,Consultants Fees,D3411,05/03/2019,1060497 - 0,510,Revenue,MARRIOTTS
Oxford City Council,Corporate Property,Reactive Maintenance & Minor Repairs,B1101,05/03/2019,1060502 - 0,"1,950.00",Revenue,D A MILES & SONS
Oxford City Council,Corporate Property,Reactive Maintenance & Minor Repairs,B1101,05/03/2019,1060563 - 0,484,Revenue,OXFORD REFRIGERATION LTD
Oxford City Council,Corporate Property,Temporary Bureau Staffing,A0108,19/03/2019,1060590 - 0,"1,875.00",Revenue,THE OYSTER PARTNERSHIP LTD
Oxford City Council,Corporate Property,Consultants Fees,D3411,05/03/2019,1060595 - 0,850,Revenue,PRICE & MYERS LLP
Oxford City Council,Corporate Property,Consultants Fees,D3411,05/03/2019,1060612 - 0,600,Revenue,MARRIOTTS
Oxford City Council,Corporate Property,Reactive Maintenance & Minor Repairs,B1101,05/03/2019,1060625 - 0,"1,950.00",Revenue,D A MILES & SONS
Oxford City Council,Corporate Property,Reactive Maintenance & Minor Repairs,B1101,05/03/2019,1060626 - 0,"2,450.00",Revenue,D A MILES & SONS
Oxford City Council,Corporate Property,Reactive Maintenance & Minor Repairs,B1101,05/03/2019,1060629 - 0,730,Revenue,WINDRUSH DOOR & WINDOW SERVICES LTD
Oxford City Council,Corporate Property,Service Charges,B1821,12/03/2019,1060682 - 1,"2,320.37",Revenue,AMAS LTD NONRENT A/C
Oxford City Council,Corporate Property,Rent,B1701,12/03/2019,1060691 - 1,"4,096.44",Revenue,AMAS LTD/RENT A/C
Oxford City Council,Corporate Property,Service Charges,B1821,12/03/2019,1060700 - 1,"11,861.72",Revenue,WORKMAN LLP
Oxford City Council,Corporate Property,Fire Alarms and Emergency Lighting,B1241,19/03/2019,1060711 - 0,"2,914.20",Revenue,ALERTER GROUP PLC
Oxford City Council,Corporate Property,Town Hall - External Planned Maintenance,B2002,12/03/2019,1060716 - 0,"2,957.22",Revenue,FERGAL CONTRACTING CO LTD
Oxford City Council,Corporate Property,Town Hall - External Planned Maintenance,B2002,12/03/2019,1060718 - 0,"1,185.64",Revenue,FERGAL CONTRACTING CO LTD
Oxford City Council,Corporate Property,Reactive Maintenance & Minor Repairs,B1101,05/03/2019,1060723 - 0,582,Revenue,OXFORD REFRIGERATION LTD
Oxford City Council,Corporate Property,Reactive Maintenance & Minor Repairs,B1101,12/03/2019,1060724 - 0,563.92,Revenue,OXFORD REFRIGERATION LTD
Oxford City Council,Corporate Property,General Contracted Services,D3401,12/03/2019,1060729 - 0,"2,805.00",Revenue,IAN BRIDGE CONSULTANCY LIMITED
Oxford City Council,Corporate Property,Consultants Fees,D3411,12/03/2019,1060800 - 0,"1,666.67",Revenue,BOSSOMS BOATYARD LTD
Oxford City Council,Corporate Property,Electrical Services (Inspections etc.),B1153,12/03/2019,1060805 - 0,"1,663.65",Revenue,SSE CONTRACTING LTD
Oxford City Council,Corporate Property,Temporary Bureau Staffing,A0108,19/03/2019,1060808 - 0,"1,875.00",Revenue,THE OYSTER PARTNERSHIP LTD
Oxford City Council,Corporate Property,Electrical Services (Inspections etc.),B1153,12/03/2019,1060827 - 0,"3,653.08",Revenue,SSE CONTRACTING LTD
Oxford City Council,Corporate Property,Building Services Internal Works,B1102,26/03/2019,1060832 - 0,"4,400.00",Revenue,TURNER & TOWNSEND PROJECT MANAGEMENT LTD
Oxford City Council,Corporate Property,General Contracted Services,D3401,26/03/2019,1060837 - 0,428.08,Revenue,"VPS, THE VACANT PROPERTY SPECIALIST"
Oxford City Council,Corporate Property,General Contracted Services,D3401,12/03/2019,1060843 - 0,"4,880.00",Revenue,IAN BRIDGE CONSULTANCY LIMITED
Oxford City Council,Corporate Property,General Contracted Services,D3401,12/03/2019,1060844 - 0,"30,277.98",Revenue,IAN BRIDGE CONSULTANCY LIMITED
Oxford City Council,Corporate Property,General Contracted Services,D3401,12/03/2019,1060849 - 0,"1,750.00",Revenue,IAN BRIDGE CONSULTANCY LIMITED
Oxford City Council,Corporate Property,Temporary Bureau Staffing,A0108,02/04/2019,1060908 - 0,"1,875.00",Revenue,THE OYSTER PARTNERSHIP LTD
Oxford City Council,Corporate Property,Temporary Bureau Staffing,A0108,19/03/2019,1060910 - 0,"1,875.00",Revenue,THE OYSTER PARTNERSHIP LTD
Oxford City Council,Corporate Property,Gas Appliances Annual Maintenance,B1206,12/03/2019,1060912 - 0,"10,781.56",Revenue,BARKER & EVANS LTD
Oxford City Council,Corporate Property,Reactive Maintenance & Minor Repairs,B1101,02/04/2019,1060915 - 0,700,Revenue,ISIS SCAFFOLDING LTD
Oxford City Council,Corporate Property,Reactive Maintenance & Minor Repairs,B1101,19/03/2019,1060916 - 0,650,Revenue,ISIS SCAFFOLDING LTD
Oxford City Council,Corporate Property,Reactive Maintenance & Minor Repairs,B1101,19/03/2019,1060918 - 0,"2,950.00",Revenue,D A MILES & SONS
Oxford City Council,Corporate Property,Reactive Maintenance & Minor Repairs,B1101,19/03/2019,1060919 - 0,550,Revenue,D A MILES & SONS
Oxford City Council,Corporate Property,Consultants Fees,D3411,26/03/2019,1060922 - 0,"1,791.00",Revenue,BIERCE SURVEYING LTD
Oxford City Council,Corporate Property,Reactive Maintenance & Minor Repairs,B1101,19/03/2019,1060929 - 0,"4,450.00",Revenue,TRUTH LTD T/A KJC FELT ROOFING
Oxford City Council,Corporate Property,Subscriptions,D3703,26/03/2019,1061021 - 1,"1,400.00",Revenue,BSI
Oxford City Council,Corporate Property,General Contracted Services,D3401,26/03/2019,1061062 - 0,"34,616.51",Revenue,IAN BRIDGE CONSULTANCY LIMITED
Oxford City Council,Corporate Property,Reactive Maintenance & Minor Repairs,B1101,09/04/2019,1061098 - 0,"1,504.00",Revenue,IDEAL FLOORING (OXFORD) LTD
Oxford City Council,Corporate Property,Reactive Maintenance & Minor Repairs,B1101,09/04/2019,1061099 - 0,"1,499.00",Revenue,IDEAL FLOORING (OXFORD) LTD
Oxford City Council,Corporate Property,Reactive Maintenance & Minor Repairs,B1101,09/04/2019,1061100 - 0,"1,991.00",Revenue,IDEAL FLOORING (OXFORD) LTD
Oxford City Council,Corporate Property,Refuse Collection,B1605,26/03/2019,1061121 - 0,"1,877.87",Revenue,OXFORD DIRECT SERVICES TRADING LTD
Oxford City Council,Corporate Property,Water Systems Testing & Sanitary Repairs,B1208,26/03/2019,1061168 - 0,"2,183.60",Revenue,SMS ENVIRONMENTAL LIMITED
Oxford City Council,Corporate Property,Temporary Bureau Staffing,A0108,09/04/2019,1061199 - 0,"1,875.00",Revenue,THE OYSTER PARTNERSHIP LTD
Oxford City Council,Corporate Property,Staff Advertising,A0702,09/04/2019,1061202 - 0,"1,004.00",Revenue,TMP (UK) LTD
Oxford City Council,Corporate Property,Reactive Maintenance & Minor Repairs,B1101,09/04/2019,1061218 - 0,780,Revenue,EXECUTIVE FIRE PROTECTION LTD
Oxford City Council,Corporate Property,Lift Maintenance / Servicing,B1203,26/03/2019,1061220 - 0,"7,590.75",Revenue,COTSWOLD LIFTS LTD
Oxford City Council,Corporate Property,Reactive Maintenance & Minor Repairs,B1101,26/03/2019,1061239 - 0,550,Revenue,TRUTH LTD T/A KJC FELT ROOFING
Oxford City Council,Corporate Property,Reactive Maintenance & Minor Repairs,B1101,26/03/2019,1061242 - 0,"1,950.00",Revenue,TRUTH LTD T/A KJC FELT ROOFING
Oxford City Council,Corporate Property,Consultants Fees,D3411,26/03/2019,1061260 - 0,"1,416.00",Revenue,KNIGHTS PROFESSIONAL SERVICES LTD
Oxford City Council,Corporate Property,Consultants Fees,D3411,02/04/2019,1061273 - 0,"1,835.00",Revenue,MARRIOTTS
Oxford City Council,Corporate Property,Fire Alarms and Emergency Lighting,B1241,26/03/2019,1061304 - 0,"7,037.50",Revenue,PYROTEC SERVICES LTD
Oxford City Council,Corporate Property,Consultants Fees,D3411,09/07/2019,1061312 - 0,"1,750.00",Revenue,BOSSOMS BOATYARD LTD
Oxford City Council,Corporate Property,Staff Advertising,A0702,16/04/2019,1061318 - 0,"1,950.00",Revenue,REED BUSINESS INFORMATION LTD
Oxford City Council,Corporate Property,Reactive Maintenance & Minor Repairs,B1101,26/03/2019,1061323 - 0,865,Revenue,WINDRUSH DOOR & WINDOW SERVICES LTD
Oxford City Council,Corporate Property,Consultants Fees,D3411,02/04/2019,1061341 - 0,"11,409.25",Revenue,VENABLES SHERROTT LOCKHART & PARTNERS LTD
Oxford City Council,Corporate Property,Temporary Bureau Staffing,A0108,16/04/2019,1061360 - 0,"1,875.00",Revenue,THE OYSTER PARTNERSHIP LTD
Oxford City Council,Corporate Property,General Contracted Services,D3401,09/04/2019,1061386 - 0,"5,356.25",Revenue,IAN BRIDGE CONSULTANCY LIMITED
Oxford City Council,Corporate Property,Staff Advertising,A0702,24/04/2019,1061415 - 0,700,Revenue,REDACTIVE PUBLISHING LIMITED
Oxford City Council,Corporate Property,General Contracted Services,D3401,09/04/2019,1061427 - 0,615.77,Revenue,IAN BRIDGE CONSULTANCY LIMITED
Oxford City Council,Corporate Property,Reactive Maintenance & Minor Repairs,B1101,02/04/2019,1061432 - 0,750,Revenue,TRUTH LTD T/A KJC FELT ROOFING
Oxford City Council,Corporate Property,Reactive Maintenance & Minor Repairs,B1101,02/04/2019,1061433 - 0,550,Revenue,TRUTH LTD T/A KJC FELT ROOFING
Oxford City Council,Corporate Property,Reactive Maintenance & Minor Repairs,B1101,24/04/2019,1061458 - 0,"36,307.65",Revenue,DUCTCLEAN (UK) LTD
Oxford City Council,Corporate Property,Temporary Bureau Staffing,A0108,24/04/2019,1061460 - 0,"1,725.00",Revenue,THE OYSTER PARTNERSHIP LTD
Oxford City Council,Corporate Property,Consultants Fees,D3411,16/04/2019,1061463 - 0,"6,550.00",Revenue,"JAMES MACKINTOSH ARCHITECTS LTD.,"
Oxford City Council,Corporate Property,General Contracted Services,D3401,09/04/2019,1061502 - 0,"4,880.00",Revenue,IAN BRIDGE CONSULTANCY LIMITED
Oxford City Council,Corporate Property,General Contracted Services,D3401,09/04/2019,1061503 - 1,"1,577.50",Revenue,IAN BRIDGE CONSULTANCY LIMITED
Oxford City Council,Corporate Property,General Contracted Services,D3401,09/04/2019,1061504 - 1,"13,003.36",Revenue,IAN BRIDGE CONSULTANCY LIMITED
Oxford City Council,Corporate Property,Temporary Bureau Staffing,A0108,24/04/2019,1061540 - 0,"1,544.17",Revenue,PARK AVENUE RECRUITMENT LTD
Oxford City Council,Corporate Property,Reactive Maintenance & Minor Repairs,B1101,16/04/2019,1061555 - 0,"2,156.25",Revenue,FERGAL CONTRACTING CO LTD
Oxford City Council,Corporate Property,Reactive Maintenance & Minor Repairs,B1101,09/04/2019,1061569 - 0,950,Revenue,ISIS SCAFFOLDING LTD
Oxford City Council,Corporate Property,Consultants Fees,D3411,16/04/2019,1061582 - 0,"1,735.00",Revenue,MARRIOTTS
Oxford City Council,Corporate Property,Consultants Fees,D3411,25/06/2019,1061583 - 0,"2,037.37",Revenue,FISHER GERMAN LLP
Oxford City Council,Corporate Property,Staff Advertising,A0702,16/04/2019,1061587 - 0,"1,130.00",Revenue,LEXISNEXIS BUTTERWORTHS
Oxford City Council,Corporate Property,Reactive Maintenance & Minor Repairs,B1101,09/04/2019,1061614 - 0,800,Revenue,TRUTH LTD T/A KJC FELT ROOFING
Oxford City Council,Corporate Property,Reactive Maintenance & Minor Repairs,B1101,09/04/2019,1061616 - 0,"1,632.91",Revenue,SSE CONTRACTING LTD
Oxford City Council,Corporate Property,Temporary Bureau Staffing,A0108,30/04/2019,1061631 - 0,"2,003.70",Revenue,THE OYSTER PARTNERSHIP LTD
Oxford City Council,Corporate Property,Reactive Maintenance & Minor Repairs,B1101,16/04/2019,1061681 - 0,"1,950.00",Revenue,TRUTH LTD T/A KJC FELT ROOFING
Oxford City Council,Corporate Property,Reactive Maintenance & Minor Repairs,B1101,16/04/2019,1061685 - 0,550,Revenue,TRUTH LTD T/A KJC FELT ROOFING
Oxford City Council,Corporate Property,Counsel & External Legal Fees,D3417,16/04/2019,1061688 - 0,850,Revenue,KNIGHTS PROFESSIONAL SERVICES LTD
Oxford City Council,Corporate Property,Building Services Internal Works,B1102,04/06/2019,1061695 - 0,"10,200.00",Revenue,SCHNEIDER ELECTRIC IT UK LTD
Oxford City Council,Corporate Property,Reactive Maintenance & Minor Repairs,B1101,30/04/2019,1061704 - 0,"1,045.00",Revenue,EXECUTIVE FIRE PROTECTION LTD
Oxford City Council,Corporate Property,Temporary Bureau Staffing,A0108,08/05/2019,1061755 - 0,"1,975.00",Revenue,THE OYSTER PARTNERSHIP LTD
Oxford City Council,Corporate Property,Reactive Maintenance & Minor Repairs,B1101,16/04/2019,1061764 - 0,650,Revenue,ISIS SCAFFOLDING LTD
Oxford City Council,Corporate Property,General Contracted Services,D3401,14/05/2019,1061801 - 0,"4,880.00",Revenue,IAN BRIDGE CONSULTANCY LIMITED
Oxford City Council,Corporate Property,Asbestos Work,B1106,24/04/2019,1061814 - 0,"10,200.00",Revenue,ASBESTOS CONSULTANTS EUROPE LTD
Oxford City Council,Corporate Property,Asbestos Work,B1106,30/04/2019,1061815 - 0,468,Revenue,ASBESTOS CONSULTANTS EUROPE LTD
Oxford City Council,Corporate Property,Asbestos Work,B1106,30/04/2019,1061844 - 0,695,Revenue,ASBESTOS CONSULTANTS EUROPE LTD
Oxford City Council,Corporate Property,Reactive Maintenance & Minor Repairs,B1101,24/04/2019,1061846 - 0,"10,387.20",Revenue,IP2426 LTD
Oxford City Council,Corporate Property,Temporary Bureau Staffing,A0108,08/05/2019,1061856 - 0,"3,734.17",Revenue,PARK AVENUE RECRUITMENT LTD
Oxford City Council,Corporate Property,Temporary Bureau Staffing,A0108,14/05/2019,1061865 - 0,"2,075.00",Revenue,THE OYSTER PARTNERSHIP LTD
Oxford City Council,Corporate Property,Gas Appliances Annual Maintenance,B1206,24/04/2019,1061878 - 0,"10,527.60",Revenue,BARKER & EVANS LTD
Oxford City Council,Corporate Property,Consultants Fees,D3411,14/05/2019,1061907 - 0,650,Revenue,INTERLOCKS SURVEYS LTD
Oxford City Council,Corporate Property,General Contracted Services,D3401,14/05/2019,1061908 - 1,"4,880.00",Revenue,IAN BRIDGE CONSULTANCY LIMITED
Oxford City Council,Corporate Property,Reactive Maintenance & Minor Repairs,B1101,30/04/2019,1061930 - 0,487.85,Revenue,SSE CONTRACTING LTD
Oxford City Council,Corporate Property,Consultants Fees,D3411,30/04/2019,1061932 - 0,"2,500.00",Revenue,CARTER JONAS
Oxford City Council,Corporate Property,Consultants Fees,D3411,21/05/2019,1061933 - 1,"2,500.00",Revenue,CARTER JONAS
Oxford City Council,Corporate Property,Consultants Fees,D3411,21/05/2019,1061934 - 1,"2,500.00",Revenue,CARTER JONAS
Oxford City Council,Corporate Property,Reactive Maintenance & Minor Repairs,B1101,30/04/2019,1061949 - 0,"3,445.00",Revenue,D A MILES & SONS
Oxford City Council,Corporate Property,Reactive Maintenance & Minor Repairs,B1101,30/04/2019,1061950 - 0,"4,395.00",Revenue,D A MILES & SONS
Oxford City Council,Corporate Property,Reactive Maintenance & Minor Repairs,B1101,30/04/2019,1061969 - 0,480,Revenue,AES CONTROL SYSTEMS
Oxford City Council,Corporate Property,Reactive Maintenance & Minor Repairs,B1101,21/05/2019,1061993 - 0,"18,769.35",Revenue,DUCTCLEAN (UK) LTD
Oxford City Council,Corporate Property,Temporary Bureau Staffing,A0108,18/06/2019,1061994 - 0,"1,721.60",Revenue,THE OYSTER PARTNERSHIP LTD
Oxford City Council,Corporate Property,Reactive Maintenance & Minor Repairs,B1101,08/05/2019,1061996 - 0,458.72,Revenue,GREENFLOW
Oxford City Council,Corporate Property,Reactive Maintenance & Minor Repairs,B1101,08/05/2019,1061997 - 0,"1,671.80",Revenue,GREENFLOW
Oxford City Council,Corporate Property,Parks and Cemeteries - PM to Infrastructure,B2004,18/06/2019,1062000 - 1,"3,608.98",Revenue,OXFORD DIRECT SERVICES LTD
Oxford City Council,Corporate Property,Lift Maintenance / Servicing,B1203,08/05/2019,1062022 - 0,"8,676.30",Revenue,COTSWOLD LIFTS LTD
Oxford City Council,Corporate Property,Building Services Internal Works,B1102,08/05/2019,1062024 - 0,"2,163.00",Revenue,SMS ENVIRONMENTAL LIMITED
Oxford City Council,Corporate Property,Reactive Maintenance & Minor Repairs,B1101,29/05/2019,1062033 - 0,880,Revenue,PUMPING  SOLUTIONS  (UK)  LTD
Oxford City Council,Corporate Property,Fire Alarms and Emergency Lighting,B1241,08/05/2019,1062036 - 0,"7,326.05",Revenue,PYROTEC SERVICES LTD
Oxford City Council,Corporate Property,General Contracted Services,D3401,14/05/2019,1062057 - 0,"4,880.00",Revenue,IAN BRIDGE CONSULTANCY LIMITED
Oxford City Council,Corporate Property,Reactive Maintenance & Minor Repairs,B1101,21/05/2019,1062060 - 0,"2,650.00",Revenue,DUCTCLEAN (UK) LTD
Oxford City Council,Corporate Property,Reactive Maintenance & Minor Repairs,B1101,21/05/2019,1062062 - 0,"3,000.00",Revenue,DUCTCLEAN (UK) LTD
Oxford City Council,Corporate Property,Asbestos Work,B1106,29/05/2019,1062063 - 0,"2,632.00",Revenue,ASBESTOS CONSULTANTS EUROPE LTD
Oxford City Council,Corporate Property,Temporary Bureau Staffing,A0108,14/05/2019,1062064 - 0,"1,853.33",Revenue,PARK AVENUE RECRUITMENT LTD
Oxford City Council,Corporate Property,Temporary Bureau Staffing,A0108,21/05/2019,1062065 - 0,"1,846.67",Revenue,PARK AVENUE RECRUITMENT LTD
Oxford City Council,Corporate Property,Building Services Internal Works,B1102,08/05/2019,1062074 - 0,"1,137.00",Revenue,SMS ENVIRONMENTAL LIMITED
Oxford City Council,Corporate Property,Building Services Internal Works,B1102,08/05/2019,1062076 - 0,"1,481.00",Revenue,SMS ENVIRONMENTAL LIMITED
Oxford City Council,Corporate Property,Gas Appliances Annual Maintenance,B1206,08/05/2019,1062080 - 0,"7,355.28",Revenue,BARKER & EVANS LTD
Oxford City Council,Corporate Property,General Contracted Services,D3401,14/05/2019,1062101 - 0,"4,500.00",Revenue,PSP CONSTRUCTION CONSULTANTS LIMITED
Oxford City Council,Corporate Property,Reactive Maintenance & Minor Repairs,B1101,08/05/2019,1062116 - 0,625,Revenue,WINDRUSH DOOR & WINDOW SERVICES LTD
Oxford City Council,Corporate Property,Parks and Cemeteries - PM to Infrastructure,B2004,14/05/2019,1062123 - 1,"1,313.09",Revenue,OXFORD DIRECT SERVICES LTD
Oxford City Council,Corporate Property,Service Charges,B1821,14/05/2019,1062126 - 1,"1,161.07",Revenue,AMAS LTD NONRENT A/C
Oxford City Council,Corporate Property,General Contracted Services,D3401,29/05/2019,1062149 - 0,"3,062.00",Revenue,ACT ASSOCIATES LIMITED
Oxford City Council,Corporate Property,Counsel & External Legal Fees,D3417,14/05/2019,1062158 - 0,"23,000.00",Revenue,VEALE WASBROUGH VIZARD
Oxford City Council,Corporate Property,Reactive Maintenance & Minor Repairs,B1101,14/05/2019,1062177 - 0,"2,406.25",Revenue,FERGAL CONTRACTING CO LTD
Oxford City Council,Corporate Property,General Contracted Services,D3401,21/05/2019,1062235 - 0,"27,708.58",Revenue,IAN BRIDGE CONSULTANCY LIMITED
Oxford City Council,Corporate Property,General Contracted Services,D3401,21/05/2019,1062236 - 0,"4,620.00",Revenue,IAN BRIDGE CONSULTANCY LIMITED
Oxford City Council,Corporate Property,General Contracted Services,D3401,21/05/2019,1062237 - 0,"4,880.00",Revenue,IAN BRIDGE CONSULTANCY LIMITED
Oxford City Council,Corporate Property,Temporary Bureau Staffing,A0108,04/06/2019,1062252 - 0,"2,000.00",Revenue,THE OYSTER PARTNERSHIP LTD
Oxford City Council,Corporate Property,Reactive Maintenance & Minor Repairs,B1101,11/06/2019,1062298 - 0,895,Revenue,ALLCOTT ASSOCIATES LLP
Oxford City Council,Corporate Property,Consultants Fees,D3411,21/05/2019,1062331 - 0,"1,750.00",Revenue,BOSSOMS BOATYARD LTD
Oxford City Council,Corporate Property,Consultants Fees,D3411,11/06/2019,1062337 - 0,"2,000.00",Revenue,DAVIS COFFER LYONS
Oxford City Council,Corporate Property,Reactive Maintenance & Minor Repairs,B1101,17/05/2019,1062346 - 0,"2,490.00",Revenue,HEATON DESIGN & ENGINEERING LTD
Oxford City Council,Corporate Property,Temporary Bureau Staffing,A0108,11/06/2019,1062352 - 0,"3,710.83",Revenue,PARK AVENUE RECRUITMENT LTD
Oxford City Council,Corporate Property,Temporary Bureau Staffing,A0108,11/06/2019,1062395 - 0,"1,700.00",Revenue,THE OYSTER PARTNERSHIP LTD
Oxford City Council,Corporate Property,Charges to Oxford Direct Services,K6664,11/06/2019,1062399 - 1,"56,500.00",Revenue,OXFORD DIRECT SERVICES LTD
Oxford City Council,Corporate Property,Charges to Oxford Direct Services,K6664,11/06/2019,1062407 - 1,"56,500.00",Revenue,OXFORD DIRECT SERVICES LTD
Oxford City Council,Corporate Property,Temporary Bureau Staffing,A0108,11/06/2019,1062420 - 0,"1,855.83",Revenue,PARK AVENUE RECRUITMENT LTD
Oxford City Council,Corporate Property,Reactive Maintenance & Minor Repairs,B1101,29/05/2019,1062440 - 0,600,Revenue,TRUTH LTD T/A KJC FELT ROOFING
Oxford City Council,Corporate Property,Reactive Maintenance & Minor Repairs,B1101,29/05/2019,1062441 - 0,420,Revenue,TRUTH LTD T/A KJC FELT ROOFING
Oxford City Council,Corporate Property,Reactive Maintenance & Minor Repairs,B1101,29/05/2019,1062445 - 0,"3,750.00",Revenue,TRUTH LTD T/A KJC FELT ROOFING
Oxford City Council,Corporate Property,Reactive Maintenance & Minor Repairs,B1101,29/05/2019,1062446 - 0,"1,190.00",Revenue,OXFORD REFRIGERATION LTD
Oxford City Council,Corporate Property,Fire Alarms and Emergency Lighting,B1241,29/05/2019,1062450 - 0,"3,411.35",Revenue,PYROTEC SERVICES LTD
Oxford City Council,Corporate Property,General Contracted Services,D3401,29/05/2019,1062467 - 0,582.35,Revenue,"VPS, THE VACANT PROPERTY SPECIALIST"
Oxford City Council,Corporate Property,Consultants Fees,D3411,04/06/2019,1062479 - 0,"1,890.00",Revenue,MARRIOTTS
Oxford City Council,Corporate Property,Goods For Resale,D3011,18/06/2019,1062483 - 0,566,Revenue,NABMA
Oxford City Council,Corporate Property,Reactive Maintenance & Minor Repairs,B1101,18/06/2019,1062486 - 0,643.25,Revenue,PUMPING  SOLUTIONS  (UK)  LTD
Oxford City Council,Corporate Property,General Contracted Services,D3401,04/06/2019,1062497 - 0,"4,880.00",Revenue,IAN BRIDGE CONSULTANCY LIMITED
Oxford City Council,Corporate Property,General Contracted Services,D3401,29/05/2019,1062507 - 0,428.08,Revenue,"VPS, THE VACANT PROPERTY SPECIALIST"
Oxford City Council,Corporate Property,Lift Maintenance / Servicing,B1203,29/05/2019,1062511 - 0,440,Revenue,COTSWOLD LIFTS LTD
Oxford City Council,Corporate Property,Consultants Fees,D3411,04/06/2019,1062579 - 0,"1,750.00",Revenue,BOSSOMS BOATYARD LTD
Oxford City Council,Corporate Property,Temporary Bureau Staffing,A0108,04/06/2019,1062581 - 0,"1,700.00",Revenue,THE OYSTER PARTNERSHIP LTD
Oxford City Council,Corporate Property,Temporary Bureau Staffing,A0108,18/06/2019,1062588 - 0,"1,861.67",Revenue,PARK AVENUE RECRUITMENT LTD
Oxford City Council,Corporate Property,Reactive Maintenance & Minor Repairs,B1101,07/06/2019,1062602 - 0,"2,250.00",Revenue,HEATON DESIGN & ENGINEERING LTD
Oxford City Council,Corporate Property,Rent,B1701,11/06/2019,1062608 - 1,"1,000.00",Revenue,MATTHEWS & GOODMAN LLP
Oxford City Council,Corporate Property,Service Charges,B1821,11/06/2019,1062621 - 1,"3,481.44",Revenue,AMAS LTD NONRENT A/C
Oxford City Council,Corporate Property,Temporary Bureau Staffing,A0108,25/06/2019,1062658 - 0,"1,880.00",Revenue,PARK AVENUE RECRUITMENT LTD
Oxford City Council,Corporate Property,Consultants Fees,D3411,18/06/2019,1062659 - 0,"3,060.00",Revenue,M TECH COMUNICATIONS BRISTOL LTD
Oxford City Council,Corporate Property,General Contracted Services,D3401,11/06/2019,1062663 - 0,500,Revenue,PSP CONSTRUCTION CONSULTANTS LIMITED
Oxford City Council,Corporate Property,Asbestos Work,B1106,25/06/2019,1062711 - 0,"4,270.00",Revenue,DUCTCLEAN (UK) LTD
Oxford City Council,Corporate Property,Consultants Fees,D3411,11/06/2019,1062714 - 0,597,Revenue,BIERCE SURVEYING LTD
Oxford City Council,Corporate Property,Temporary Bureau Staffing,A0108,02/07/2019,1062739 - 0,"1,700.00",Revenue,THE OYSTER PARTNERSHIP LTD
Oxford City Council,Corporate Property,Reactive Maintenance & Minor Repairs,B1101,18/06/2019,1062742 - 0,"1,270.00",Revenue,BARKER & EVANS LTD
Oxford City Council,Corporate Property,Temporary Bureau Staffing,A0108,02/07/2019,1062755 - 0,"1,860.83",Revenue,PARK AVENUE RECRUITMENT LTD
Oxford City Council,Corporate Property,General Contracted Services,D3401,06/09/2019,1062766 - 0,"3,090.56",Revenue,IAN BRIDGE CONSULTANCY LIMITED
Oxford City Council,Corporate Property,General Contracted Services,D3401,18/06/2019,1062767 - 0,"18,719.57",Revenue,IAN BRIDGE CONSULTANCY LIMITED
Oxford City Council,Corporate Property,General Contracted Services,D3401,18/06/2019,1062768 - 0,"4,490.00",Revenue,IAN BRIDGE CONSULTANCY LIMITED
Oxford City Council,Corporate Property,Equipment Hire Charges,D3006,02/07/2019,1062777 - 0,862,Revenue,CROFT BUILDING & CONSERVATION LTD
Oxford City Council,Corporate Property,Reactive Maintenance & Minor Repairs,B1101,18/06/2019,1062779 - 0,540,Revenue,BOSSOMS BOATYARD LTD
Oxford City Council,Corporate Property,Reactive Maintenance & Minor Repairs,B1101,18/06/2019,1062782 - 0,"3,086.92",Revenue,ADT FIRE & SECURITY
Oxford City Council,Corporate Property,Reactive Maintenance & Minor Repairs,B1101,25/06/2019,1062804 - 0,"13,117.77",Revenue,THAMES WATER UTILITIES LTD
Oxford City Council,Corporate Property,Reactive Maintenance & Minor Repairs,B1101,18/06/2019,1062816 - 0,953.34,Revenue,STOCKSIGNS
Oxford City Council,Corporate Property,Service Charges,B1821,25/06/2019,1062823 - 1,"1,860.47",Revenue,WORKMAN LLP
Oxford City Council,Corporate Property,Service Charges,B1821,25/06/2019,1062824 - 1,"1,860.47",Revenue,WORKMAN LLP
Oxford City Council,Corporate Property,Temporary Bureau Staffing,A0108,25/06/2019,1062852 - 0,"7,222.50",Revenue,PP RECRUITMENT T/A PRINCIPLE PEOPLE
Oxford City Council,Corporate Property,Reactive Maintenance & Minor Repairs,B1101,25/06/2019,1062855 - 0,998.77,Revenue,SOUTHERN ELECTRIC POWER DISTRIBUTION PLC
Oxford City Council,Corporate Property,Building Services Internal Works,B1102,02/07/2019,1062884 - 0,523.81,Revenue,OXFORD DIRECT SERVICES LTD - (SERVITOR ONLY)
Oxford City Council,Corporate Property,Asbestos Work,B1106,25/06/2019,1062909 - 0,"1,340.00",Revenue,DUCTCLEAN (UK) LTD
Oxford City Council,Corporate Property,Asbestos Work,B1106,25/06/2019,1062910 - 0,"2,632.00",Revenue,DUCTCLEAN (UK) LTD
Oxford City Council,Corporate Property,Reactive Maintenance & Minor Repairs,B1101,25/06/2019,1062916 - 0,420,Revenue,TRUTH LTD T/A KJC FELT ROOFING
Oxford City Council,Corporate Property,Reactive Maintenance & Minor Repairs,B1101,25/06/2019,1062917 - 0,500,Revenue,TRUTH LTD T/A KJC FELT ROOFING
Oxford City Council,Corporate Property,Reactive Maintenance & Minor Repairs,B1101,25/06/2019,1062918 - 0,"2,950.00",Revenue,TRUTH LTD T/A KJC FELT ROOFING
Oxford City Council,Corporate Property,Reactive Maintenance & Minor Repairs,B1101,25/06/2019,1062919 - 0,450,Revenue,TRUTH LTD T/A KJC FELT ROOFING
Oxford City Council,Corporate Property,Community Centres - Planned Maintenance and H&S,B2003,25/06/2019,1062920 - 0,"1,950.00",Revenue,TRUTH LTD T/A KJC FELT ROOFING
Oxford City Council,Corporate Property,Temporary Bureau Staffing,A0108,16/07/2019,1062928 - 0,"1,875.00",Revenue,THE OYSTER PARTNERSHIP LTD
Oxford City Council,Corporate Property,Reactive Maintenance & Minor Repairs,B1101,02/07/2019,1062953 - 0,995,Revenue,ALLCOTT ASSOCIATES LLP
Oxford City Council,Corporate Property,Reactive Maintenance & Minor Repairs,B1101,02/07/2019,1062963 - 0,960,Revenue,TRUTH LTD T/A KJC FELT ROOFING
Oxford City Council,Corporate Property,Reactive Maintenance & Minor Repairs,B1101,02/07/2019,1062965 - 0,500,Revenue,TRUTH LTD T/A KJC FELT ROOFING
Oxford City Council,Corporate Property,Lift Maintenance / Servicing,B1203,02/07/2019,1062970 - 1,"18,585.28",Revenue,COTSWOLD LIFTS LTD
Oxford City Council,Corporate Property,Reactive Maintenance & Minor Repairs,B1101,02/07/2019,1062972 - 0,750,Revenue,TRUTH LTD T/A KJC FELT ROOFING
Oxford City Council,Corporate Property,Temporary Bureau Staffing,A0108,09/07/2019,1062977 - 0,"1,859.17",Revenue,PARK AVENUE RECRUITMENT LTD
Oxford City Council,Corporate Property,Fire Alarms and Emergency Lighting,B1241,02/07/2019,1062982 - 0,"6,224.20",Revenue,PYROTEC SERVICES LTD
Oxford City Council,Corporate Property,Reactive Maintenance & Minor Repairs,B1101,02/07/2019,1062989 - 0,"1,949.40",Revenue,GEORGE HENRY & CO RELAY LTD
Oxford City Council,Corporate Property,Reactive Maintenance & Minor Repairs,B1101,02/07/2019,1062990 - 0,698,Revenue,WINDRUSH DOOR & WINDOW SERVICES LTD
Oxford City Council,Corporate Property,Temporary Bureau Staffing,A0108,23/07/2019,1062994 - 0,"2,000.00",Revenue,THE OYSTER PARTNERSHIP LTD
Oxford City Council,Corporate Property,Reactive Maintenance & Minor Repairs,B1101,02/07/2019,1062998 - 0,"1,650.00",Revenue,TRUTH LTD T/A KJC FELT ROOFING
Oxford City Council,Corporate Property,Reactive Maintenance & Minor Repairs,B1101,02/07/2019,1062999 - 0,450,Revenue,TRUTH LTD T/A KJC FELT ROOFING
Oxford City Council,Corporate Property,Rent,B1701,23/07/2019,1063005 - 1,"4,700.00",Revenue,OXFORDSHIRE COUNTY COUNCIL
Oxford City Council,Corporate Property,General Contracted Services,D3401,02/07/2019,1063016 - 0,"1,040.00",Revenue,IAN BRIDGE CONSULTANCY LIMITED
Oxford City Council,Corporate Property,General Contracted Services,D3401,02/07/2019,1063017 - 0,"2,000.00",Revenue,IAN BRIDGE CONSULTANCY LIMITED
Oxford City Council,Corporate Property,General Contracted Services,D3401,02/07/2019,1063055 - 0,428.08,Revenue,"VPS, THE VACANT PROPERTY SPECIALIST"
Oxford City Council,Corporate Property,Counsel & External Legal Fees,D3417,02/07/2019,1063056 - 0,"1,973.00",Revenue,VEALE WASBROUGH VIZARD
Oxford City Council,Corporate Property,General Contracted Services,D3401,02/07/2019,1063075 - 0,"8,692.88",Revenue,IAN BRIDGE CONSULTANCY LIMITED
Oxford City Council,Corporate Property,Service Charges,B1821,09/07/2019,1063096 - 1,"1,860.47",Revenue,WORKMAN LLP
Oxford City Council,Corporate Property,Temporary Bureau Staffing,A0108,23/07/2019,1063110 - 0,"1,903.80",Revenue,THE OYSTER PARTNERSHIP LTD
Oxford City Council,Corporate Property,Asbestos Work,B1106,30/07/2019,1063120 - 0,"1,390.00",Revenue,ASBESTOS CONSULTANTS EUROPE LTD
Oxford City Council,Corporate Property,Asbestos Work,B1106,02/07/2019,1063121 - 0,"1,200.00",Revenue,ASBESTOS CONSULTANTS EUROPE LTD
Oxford City Council,Corporate Property,Consultants Fees,D3411,02/07/2019,1063131 - 0,"1,750.00",Revenue,BOSSOMS BOATYARD LTD
Oxford City Council,Corporate Property,Community Centres - Planned Maintenance and H&S,B2003,09/07/2019,1063148 - 0,"3,050.00",Revenue,TRUTH LTD T/A KJC FELT ROOFING
Oxford City Council,Corporate Property,Temporary Bureau Staffing,A0108,23/07/2019,1063184 - 0,"3,827.50",Revenue,PARK AVENUE RECRUITMENT LTD
Oxford City Council,Corporate Property,Reactive Maintenance & Minor Repairs,B1101,09/07/2019,1063204 - 0,"3,495.00",Revenue,D A MILES & SONS
Oxford City Council,Corporate Property,Reactive Maintenance & Minor Repairs,B1101,09/07/2019,1063248 - 0,460,Revenue,ISIS SCAFFOLDING LTD
Oxford City Council,Corporate Property,Reactive Maintenance & Minor Repairs,B1101,09/07/2019,1063249 - 0,560,Revenue,ISIS SCAFFOLDING LTD
Oxford City Council,Corporate Property,Reactive Maintenance & Minor Repairs,B1101,30/07/2019,1063250 - 0,460,Revenue,ISIS SCAFFOLDING LTD
Oxford City Council,Corporate Property,Temporary Bureau Staffing,A0108,03/09/2019,1063293 - 0,1,Revenue,THE OYSTER PARTNERSHIP LTD
Oxford City Council,Corporate Property,Temporary Bureau Staffing,A0108,03/09/2019,1063293 - 2,"1,874.00",Revenue,THE OYSTER PARTNERSHIP LTD
Oxford City Council,Corporate Property,Water Systems Testing & Sanitary Repairs,B1208,16/07/2019,1063300 - 0,"1,659.00",Revenue,SMS ENVIRONMENTAL LIMITED
Oxford City Council,Corporate Property,Water Systems Testing & Sanitary Repairs,B1208,16/07/2019,1063305 - 0,"1,272.69",Revenue,SMS ENVIRONMENTAL LIMITED
Oxford City Council,Corporate Property,Water Systems Testing & Sanitary Repairs,B1208,16/07/2019,1063307 - 0,"4,317.97",Revenue,SMS ENVIRONMENTAL LIMITED
Oxford City Council,Corporate Property,Water Systems Testing & Sanitary Repairs,B1208,23/07/2019,1063308 - 0,"4,664.23",Revenue,SMS ENVIRONMENTAL LIMITED
Oxford City Council,Corporate Property,Reactive Maintenance & Minor Repairs,B1101,16/07/2019,1063315 - 0,"2,341.75",Revenue,BOSSOMS BOATYARD LTD
Oxford City Council,Corporate Property,Reactive Maintenance & Minor Repairs,B1101,30/07/2019,1063336 - 0,870.68,Revenue,DJ DOORS & ELECTRICAL SERVICES LTD
Oxford City Council,Corporate Property,Water Systems Testing & Sanitary Repairs,B1208,16/07/2019,1063338 - 0,"1,745.86",Revenue,SMS ENVIRONMENTAL LIMITED
Oxford City Council,Corporate Property,Water Systems Testing & Sanitary Repairs,B1208,16/07/2019,1063340 - 0,"3,703.00",Revenue,SMS ENVIRONMENTAL LIMITED
Oxford City Council,Corporate Property,Reactive Maintenance & Minor Repairs,B1101,16/07/2019,1063341 - 0,998.77,Revenue,SOUTHERN ELECTRIC POWER DISTRIBUTION PLC
Oxford City Council,Corporate Property,Reactive Maintenance & Minor Repairs,B1101,16/07/2019,1063342 - 0,"3,245.00",Revenue,D A MILES & SONS
Oxford City Council,Corporate Property,Electrical Services (Inspections etc.),B1153,16/07/2019,1063350 - 0,"1,509.50",Revenue,SSE CONTRACTING LTD
Oxford City Council,Corporate Property,Reactive Maintenance & Minor Repairs,B1101,16/07/2019,1063354 - 0,450,Revenue,
Oxford City Council,Corporate Property,Fire Alarms and Emergency Lighting,B1241,06/08/2019,1063367 - 0,"2,369.50",Revenue,EXECUTIVE ALARMS LTD
Oxford City Council,Corporate Property,Commercial Portfolio - Planned Maintenance,B2000,16/07/2019,1063371 - 0,"16,942.02",Revenue,FERGAL CONTRACTING CO LTD
Oxford City Council,Corporate Property,Reactive Maintenance & Minor Repairs,B1101,16/07/2019,1063413 - 0,"2,147.50",Revenue,BOSSOMS BOATYARD LTD
Oxford City Council,Corporate Property,Reactive Maintenance & Minor Repairs,B1101,23/07/2019,1063417 - 0,450,Revenue,TRUTH LTD T/A KJC FELT ROOFING
Oxford City Council,Corporate Property,Reactive Maintenance & Minor Repairs,B1101,23/07/2019,1063418 - 0,660,Revenue,TRUTH LTD T/A KJC FELT ROOFING
Oxford City Council,Corporate Property,Reactive Maintenance & Minor Repairs,B1101,23/07/2019,1063442 - 0,824,Revenue,PYROTEC SERVICES LTD
Oxford City Council,Corporate Property,Temporary Bureau Staffing,A0108,23/07/2019,1063458 - 0,"1,480.00",Revenue,THE OYSTER PARTNERSHIP LTD
Oxford City Council,Corporate Property,Gas Appliances Annual Maintenance,B1206,23/07/2019,1063500 - 0,"8,830.00",Revenue,BARKER & EVANS LTD
Oxford City Council,Corporate Property,Reactive Maintenance & Minor Repairs,B1101,23/07/2019,1063503 - 0,"1,315.00",Revenue,BARKER & EVANS LTD
Oxford City Council,Corporate Property,General Contracted Services,D3401,30/07/2019,1063529 - 0,"2,762.47",Revenue,FUSION LIFESTYLE
Oxford City Council,Corporate Property,Temporary Bureau Staffing,A0108,03/09/2019,1063534 - 0,"1,875.00",Revenue,THE OYSTER PARTNERSHIP LTD
Oxford City Council,Corporate Property,Temporary Bureau Staffing,A0108,06/08/2019,1063535 - 0,"1,184.00",Revenue,THE OYSTER PARTNERSHIP LTD
Oxford City Council,Corporate Property,Reactive Maintenance & Minor Repairs,B1101,23/07/2019,1063538 - 0,"1,391.70",Revenue,BARKER & EVANS LTD
Oxford City Council,Corporate Property,Reactive Maintenance & Minor Repairs,B1101,28/08/2019,1063557 - 0,680,Revenue,EXECUTIVE FIRE PROTECTION LTD
Oxford City Council,Corporate Property,Temporary Bureau Staffing,A0108,13/08/2019,1063618 - 0,"1,480.00",Revenue,THE OYSTER PARTNERSHIP LTD
Oxford City Council,Corporate Property,Temporary Bureau Staffing,A0108,13/08/2019,1063619 - 0,"1,886.80",Revenue,THE OYSTER PARTNERSHIP LTD
Oxford City Council,Corporate Property,Temporary Bureau Staffing,A0108,13/08/2019,1063620 - 0,"1,184.00",Revenue,THE OYSTER PARTNERSHIP LTD
Oxford City Council,Corporate Property,Reactive Maintenance & Minor Repairs,B1101,23/07/2019,1063622 - 0,"1,744.00",Revenue,BARKER & EVANS LTD
Oxford City Council,Corporate Property,Consultants Fees,D3411,30/07/2019,1063634 - 0,950,Revenue,INTERLOCKS SURVEYS LTD
Oxford City Council,Corporate Property,Reactive Maintenance & Minor Repairs,B1101,30/07/2019,1063650 - 0,"1,495.00",Revenue,D A MILES & SONS
Oxford City Council,Corporate Property,Asbestos Work,B1106,30/07/2019,1063657 - 0,"1,800.00",Revenue,ASBESTOS CONSULTANTS EUROPE LTD
Oxford City Council,Corporate Property,Consultants Fees,D3411,13/08/2019,1063663 - 0,"2,000.00",Revenue,FISHER GERMAN LLP
Oxford City Council,Corporate Property,Temporary Bureau Staffing,A0108,13/08/2019,1063711 - 0,"1,861.67",Revenue,PARK AVENUE RECRUITMENT LTD
Oxford City Council,Corporate Property,Temporary Bureau Staffing,A0108,06/08/2019,1063712 - 0,"1,871.67",Revenue,PARK AVENUE RECRUITMENT LTD
Oxford City Council,Corporate Property,Temporary Bureau Staffing,A0108,30/07/2019,1063713 - 0,"1,853.33",Revenue,PARK AVENUE RECRUITMENT LTD
Oxford City Council,Corporate Property,Fire Alarms and Emergency Lighting,B1241,30/07/2019,1063745 - 0,"2,229.00",Revenue,PYROTEC SERVICES LTD
Oxford City Council,Corporate Property,Reactive Maintenance & Minor Repairs,B1101,13/08/2019,1063747 - 0,441,Revenue,PUMPING  SOLUTIONS  (UK)  LTD
Oxford City Council,Corporate Property,Reactive Maintenance & Minor Repairs,B1101,13/08/2019,1063747 - 1,386,Revenue,PUMPING  SOLUTIONS  (UK)  LTD
Oxford City Council,Corporate Property,Reactive Maintenance & Minor Repairs,B1101,28/08/2019,1063771 - 1,"1,513.01",Revenue,SSE CONTRACTING LTD
Oxford City Council,Corporate Property,Temporary Bureau Staffing,A0108,20/08/2019,1063772 - 0,"1,480.00",Revenue,THE OYSTER PARTNERSHIP LTD
Oxford City Council,Corporate Property,Temporary Bureau Staffing,A0108,20/08/2019,1063773 - 0,"1,875.00",Revenue,THE OYSTER PARTNERSHIP LTD
Oxford City Council,Corporate Property,Temporary Bureau Staffing,A0108,20/08/2019,1063774 - 0,"1,184.00",Revenue,THE OYSTER PARTNERSHIP LTD
Oxford City Council,Corporate Property,Consultants Fees,D3411,30/07/2019,1063778 - 0,"1,750.00",Revenue,BOSSOMS BOATYARD LTD
Oxford City Council,Corporate Property,Reactive Maintenance & Minor Repairs,B1101,30/07/2019,1063780 - 0,541,Revenue,PYROTEC SERVICES LTD
Oxford City Council,Corporate Property,Reactive Maintenance & Minor Repairs,B1101,28/08/2019,1063793 - 0,"4,395.00",Revenue,D A MILES & SONS
Oxford City Council,Corporate Property,Gas Appliances Annual Maintenance,B1206,06/08/2019,1063794 - 0,"16,397.16",Revenue,BARKER & EVANS LTD
Oxford City Council,Corporate Property,General Contracted Services,D3401,13/08/2019,1063808 - 0,"7,320.00",Revenue,IAN BRIDGE CONSULTANCY LIMITED
Oxford City Council,Corporate Property,Reactive Maintenance & Minor Repairs,B1101,06/08/2019,1063819 - 0,548.36,Revenue,BARKER & EVANS LTD
Oxford City Council,Corporate Property,Consultants Fees,D3411,10/09/2019,1063823 - 1,"6,354.17",Revenue,GREEN & PARTNERS
Oxford City Council,Corporate Property,Counsel & External Legal Fees,D3417,06/08/2019,1063842 - 0,"4,861.57",Revenue,VEALE WASBROUGH VIZARD
Oxford City Council,Corporate Property,Reactive Maintenance & Minor Repairs,B1101,28/08/2019,1063850 - 0,"1,932.00",Revenue,PYROTEC SERVICES LTD
Oxford City Council,Corporate Property,Lift Maintenance / Servicing,B1203,13/08/2019,1063865 - 0,450,Revenue,M TECH COMUNICATIONS BRISTOL LTD
Oxford City Council,Corporate Property,Temporary Bureau Staffing,A0108,28/08/2019,1063877 - 0,"1,480.00",Revenue,THE OYSTER PARTNERSHIP LTD
Oxford City Council,Corporate Property,Temporary Bureau Staffing,A0108,03/09/2019,1063879 - 1,"1,879.50",Revenue,THE OYSTER PARTNERSHIP LTD
Oxford City Council,Corporate Property,Temporary Bureau Staffing,A0108,28/08/2019,1063882 - 0,"1,184.00",Revenue,THE OYSTER PARTNERSHIP LTD
Oxford City Council,Corporate Property,Electrical Services (Inspections etc.),B1153,06/08/2019,1063892 - 0,998.77,Revenue,SOUTHERN ELECTRIC POWER DISTRIBUTION PLC
Oxford City Council,Corporate Property,Reactive Maintenance & Minor Repairs,B1101,06/08/2019,1063900 - 0,480,Revenue,TRUTH LTD T/A KJC FELT ROOFING
Oxford City Council,Corporate Property,Reactive Maintenance & Minor Repairs,B1101,06/08/2019,1063903 - 0,950,Revenue,TRUTH LTD T/A KJC FELT ROOFING
Oxford City Council,Corporate Property,Reactive Maintenance & Minor Repairs,B1101,06/08/2019,1063904 - 0,560,Revenue,TRUTH LTD T/A KJC FELT ROOFING
Oxford City Council,Corporate Property,Temporary Bureau Staffing,A0108,03/09/2019,1063919 - 0,"3,709.16",Revenue,PARK AVENUE RECRUITMENT LTD
Oxford City Council,Corporate Property,Gas Appliances Annual Maintenance,B1206,13/08/2019,1063933 - 0,"1,137.46",Revenue,UK GAS CONNECTION LTD
Oxford City Council,Corporate Property,Reactive Maintenance & Minor Repairs,B1101,28/08/2019,1063966 - 0,"1,500.00",Revenue,D A MILES & SONS
Oxford City Council,Corporate Property,Water Systems Testing & Sanitary Repairs,B1208,20/08/2019,1063975 - 0,"1,347.88",Revenue,SMS ENVIRONMENTAL LIMITED
Oxford City Council,Corporate Property,Water Systems Testing & Sanitary Repairs,B1208,20/08/2019,1063976 - 0,"9,719.09",Revenue,SMS ENVIRONMENTAL LIMITED
Oxford City Council,Corporate Property,Reactive Maintenance & Minor Repairs,B1101,13/08/2019,1063983 - 0,680,Revenue,PSP CONSTRUCTION CONSULTANTS LIMITED
Oxford City Council,Corporate Property,Consultants Fees,D3411,20/08/2019,1063984 - 0,"2,190.00",Revenue,MARRIOTTS
Oxford City Council,Corporate Property,Consultants Fees,D3411,13/08/2019,1063985 - 0,"5,422.50",Revenue,MARRIOTTS
Oxford City Council,Corporate Property,Consultants Fees,D3411,13/08/2019,1063995 - 0,"1,200.00",Revenue,RIDGE & PARTNERS LLP
Oxford City Council,Corporate Property,Commercial Portfolio - Planned Maintenance,B2000,13/08/2019,1064023 - 0,"60,176.19",Revenue,FERGAL CONTRACTING CO LTD
Oxford City Council,Corporate Property,Reactive Maintenance & Minor Repairs,B1101,13/08/2019,1064040 - 0,"2,015.00",Revenue,OXFORD REFRIGERATION LTD
Oxford City Council,Corporate Property,Asbestos Work,B1106,28/08/2019,1064073 - 0,795,Revenue,ASBESTOS CONSULTANTS EUROPE LTD
Oxford City Council,Corporate Property,Commercial Portfolio - Planned Maintenance,B2000,03/09/2019,1064077 - 0,"1,180.00",Revenue,INTERLOCKS SURVEYS LTD
Oxford City Council,Corporate Property,Asbestos Work,B1106,28/08/2019,1064091 - 0,800,Revenue,ASBESTOS CONSULTANTS EUROPE LTD
Oxford City Council,Corporate Property,Asbestos Work,B1106,28/08/2019,1064093 - 0,"1,100.00",Revenue,ASBESTOS CONSULTANTS EUROPE LTD
Oxford City Council,Corporate Property,Asbestos Work,B1106,03/09/2019,1064208 - 0,"12,700.00",Revenue,MARK ONE CONSULTANTS LIMITED
Oxford City Council,Corporate Property,Service Charges,B1821,03/09/2019,1064225 - 1,"10,180.00",Revenue,WORKMAN LLP
Oxford City Council,Corporate Property,General Contracted Services,D3401,28/08/2019,1064231 - 0,438.95,Revenue,FUSION LIFESTYLE
Oxford City Council,Corporate Property,Temporary Bureau Staffing,A0108,10/09/2019,1064246 - 0,"1,480.00",Revenue,THE OYSTER PARTNERSHIP LTD
Oxford City Council,Corporate Property,Temporary Bureau Staffing,A0108,10/09/2019,1064251 - 0,"1,104.00",Revenue,THE OYSTER PARTNERSHIP LTD
Oxford City Council,Corporate Property,Temporary Bureau Staffing,A0108,10/09/2019,1064252 - 1,"1,875.00",Revenue,THE OYSTER PARTNERSHIP LTD
Oxford City Council,Corporate Property,Software Purchase,D3511,03/09/2019,1064256 - 0,"2,655.00",Revenue,CADPOINT LTD
Oxford City Council,Corporate Property,General Contracted Services,D3401,28/08/2019,1064262 - 0,"3,278.00",Revenue,OXFORD DIRECT SERVICES LTD
Oxford City Council,Corporate Property,Temporary Bureau Staffing,A0108,03/09/2019,1064270 - 0,"1,861.67",Revenue,PARK AVENUE RECRUITMENT LTD
Oxford City Council,Corporate Property,Temporary Bureau Staffing,A0108,10/09/2019,1064271 - 0,"1,875.00",Revenue,PARK AVENUE RECRUITMENT LTD
Oxford City Council,Corporate Property,Asbestos Work,B1106,17/09/2019,1064334 - 0,"6,489.00",Revenue,DUCTCLEAN (UK) LTD
Oxford City Council,Corporate Property,Temporary Bureau Staffing,A0108,17/09/2019,1064336 - 0,"1,480.00",Revenue,THE OYSTER PARTNERSHIP LTD
Oxford City Council,Corporate Property,Temporary Bureau Staffing,A0108,17/09/2019,1064337 - 1,"1,875.00",Revenue,THE OYSTER PARTNERSHIP LTD
Oxford City Council,Corporate Property,Temporary Bureau Staffing,A0108,17/09/2019,1064338 - 0,"1,184.00",Revenue,THE OYSTER PARTNERSHIP LTD
Oxford City Council,Corporate Property,Building Services Internal Works,B1102,03/09/2019,1064347 - 0,540,Revenue,OXFORD DIRECT SERVICES LTD
Oxford City Council,Corporate Property,Reactive Maintenance & Minor Repairs,B1101,17/09/2019,1064357 - 0,"1,680.00",Revenue,PUMPING  SOLUTIONS  (UK)  LTD
Oxford City Council,Corporate Property,Consultants Fees,D3411,03/09/2019,1064361 - 0,"1,750.00",Revenue,BOSSOMS BOATYARD LTD
Oxford City Council,Corporate Property,Temporary Bureau Staffing,A0108,17/09/2019,1064364 - 0,"1,867.50",Revenue,PARK AVENUE RECRUITMENT LTD
Oxford City Council,Corporate Property,Water Systems Testing & Sanitary Repairs,B1208,03/09/2019,1064396 - 0,"1,752.61",Revenue,SMS ENVIRONMENTAL LIMITED
Oxford City Council,Corporate Property,Water Systems Testing & Sanitary Repairs,B1208,03/09/2019,1064397 - 0,"6,460.87",Revenue,SMS ENVIRONMENTAL LIMITED
Oxford City Council,Corporate Property,Reactive Maintenance & Minor Repairs,B1101,10/09/2019,1064400 - 0,449.65,Revenue,WINDRUSH DOOR & WINDOW SERVICES LTD
Oxford City Council,Corporate Property,Temporary Bureau Staffing,A0108,24/09/2019,1064433 - 0,"1,360.00",Revenue,THE OYSTER PARTNERSHIP LTD
Oxford City Council,Corporate Property,Reactive Maintenance & Minor Repairs,B1101,03/09/2019,1064435 - 0,599.65,Revenue,CHRISTY LIGHTING LTD
Oxford City Council,Corporate Property,Temporary Bureau Staffing,A0108,24/09/2019,1064439 - 1,"1,875.00",Revenue,THE OYSTER PARTNERSHIP LTD
Oxford City Council,Corporate Property,Temporary Bureau Staffing,A0108,24/09/2019,1064440 - 0,"1,630.00",Revenue,THE OYSTER PARTNERSHIP LTD
Oxford City Council,Corporate Property,Lift Maintenance / Servicing,B1203,03/09/2019,1064469 - 2,440,Revenue,COTSWOLD LIFTS LTD
Oxford City Council,Corporate Property,Fire Alarms and Emergency Lighting,B1241,03/09/2019,1064470 - 0,"12,174.50",Revenue,PYROTEC SERVICES LTD
Oxford City Council,Corporate Property,Asbestos Work,B1106,24/09/2019,1064511 - 0,"18,927.00",Revenue,ASBESTOS CONSULTANTS EUROPE LTD
Oxford City Council,Corporate Property,Consultants Fees,D3411,10/09/2019,1064518 - 0,970,Revenue,BOSSOMS BOATYARD LTD
Oxford City Council,Corporate Property,Service Charges,B1821,17/09/2019,1064530 - 1,"3,481.44",Revenue,AMAS LTD NONRENT A/C
Oxford City Council,Corporate Property,Commercial Portfolio - Planned Maintenance,B2000,10/09/2019,1064547 - 0,831.06,Revenue,FERGAL CONTRACTING CO LTD
Oxford City Council,Corporate Property,Commercial Portfolio - Planned Maintenance,B2000,10/09/2019,1064549 - 0,"10,603.70",Revenue,FERGAL CONTRACTING CO LTD
Oxford City Council,Corporate Property,Reactive Maintenance & Minor Repairs,B1101,10/09/2019,1064556 - 0,"2,850.00",Revenue,D A MILES & SONS
Oxford City Council,Corporate Property,General Contracted Services,D3401,17/09/2019,1064561 - 0,"10,480.00",Revenue,IAN BRIDGE CONSULTANCY LIMITED
Oxford City Council,Corporate Property,Temporary Bureau Staffing,A0108,24/09/2019,1064569 - 0,"1,855.00",Revenue,PARK AVENUE RECRUITMENT LTD
Oxford City Council,Corporate Property,Consultants Fees,D3411,17/09/2019,1064581 - 0,"15,000.00",Revenue,RIDGE & PARTNERS LLP
Oxford City Council,Corporate Property,Consultants Fees,D3411,10/09/2019,1064582 - 0,"1,843.00",Revenue,ROSPA
Oxford City Council,Corporate Property,General Contracted Services,D3401,10/09/2019,1064603 - 0,"4,875.00",Revenue,IAN BRIDGE CONSULTANCY LIMITED
Oxford City Council,Corporate Property,Lift Maintenance / Servicing,B1203,24/09/2019,1064625 - 2,"20,405.90",Revenue,COTSWOLD LIFTS LTD
Oxford City Council,Corporate Property,Town Hall - External Planned Maintenance,B2002,17/09/2019,1064629 - 0,"8,300.00",Revenue,TURNER & TOWNSEND PROJECT MANAGEMENT LTD
Oxford City Council,Corporate Property,Service Charges,B1821,17/09/2019,1064631 - 1,"10,852.83",Revenue,WORKMAN LLP
Oxford City Council,Corporate Property,Consultants Fees,D3411,17/09/2019,1064648 - 0,"2,150.00",Revenue,INTERLOCKS SURVEYS LTD
Oxford City Council,Corporate Property,Advertising & Publicity,D3802,17/09/2019,1064657 - 0,"1,166.30",Revenue,KINGDOM SIGNS (ARTISAN LITHO LTD T/A)
Oxford City Council,Corporate Property,General Contracted Services,D3401,24/09/2019,1064670 - 0,"2,195.00",Revenue,IAN BRIDGE CONSULTANCY LIMITED
Oxford City Council,Corporate Property,Temporary Bureau Staffing,A0108,17/09/2019,1064674 - 0,"1,480.00",Revenue,THE OYSTER PARTNERSHIP LTD
Oxford City Council,Corporate Property,Temporary Bureau Staffing,A0108,08/10/2019,1064676 - 1,"1,875.00",Revenue,THE OYSTER PARTNERSHIP LTD
Oxford City Council,Corporate Property,Temporary Bureau Staffing,A0108,01/10/2019,1064691 - 0,"1,855.00",Revenue,PARK AVENUE RECRUITMENT LTD
Oxford City Council,Corporate Property,Temporary Bureau Staffing,A0108,24/09/2019,1064692 - 0,"1,184.00",Revenue,THE OYSTER PARTNERSHIP LTD
Oxford City Council,Corporate Property,Temporary Bureau Staffing,A0108,01/10/2019,1064694 - 0,"1,380.00",Revenue,THE OYSTER PARTNERSHIP LTD
Oxford City Council,Corporate Property,Temporary Bureau Staffing,A0108,08/10/2019,1064696 - 1,"1,754.55",Revenue,THE OYSTER PARTNERSHIP LTD
Oxford City Council,Corporate Property,Temporary Bureau Staffing,A0108,01/10/2019,1064697 - 0,"1,248.00",Revenue,THE OYSTER PARTNERSHIP LTD
Oxford City Council,Corporate Property,Fire Alarms and Emergency Lighting,B1241,17/09/2019,1064726 - 0,"9,176.00",Revenue,PYROTEC SERVICES LTD
Oxford City Council,Corporate Property,Consultants Fees,D3411,17/09/2019,1064729 - 0,617.5,Revenue,BOSSOMS BOATYARD LTD
Oxford City Council,Corporate Property,Reactive Maintenance & Minor Repairs,B1101,24/09/2019,1064797 - 0,"3,122.97",Revenue,SSE CONTRACTING LTD
Oxford City Council,Corporate Property,Asbestos Work,B1106,01/10/2019,1064803 - 0,"1,000.00",Revenue,ASBESTOS CONSULTANTS EUROPE LTD
Oxford City Council,Corporate Property,Reactive Maintenance & Minor Repairs,B1101,08/10/2019,1064813 - 0,"1,078.00",Revenue,PUMPING  SOLUTIONS  (UK)  LTD
Oxford City Council,Corporate Property,Temporary Bureau Staffing,A0108,22/10/2019,1064820 - 0,"1,875.00",Revenue,PARK AVENUE RECRUITMENT LTD
Oxford City Council,Corporate Property,Temporary Bureau Staffing,A0108,15/10/2019,1064833 - 1,"1,540.00",Revenue,THE OYSTER PARTNERSHIP LTD
Oxford City Council,Corporate Property,Temporary Bureau Staffing,A0108,15/10/2019,1064841 - 1,"1,941.80",Revenue,THE OYSTER PARTNERSHIP LTD
Oxford City Council,Corporate Property,Temporary Bureau Staffing,A0108,15/10/2019,1064842 - 0,"1,184.00",Revenue,THE OYSTER PARTNERSHIP LTD
Oxford City Council,Corporate Property,Temporary Bureau Staffing,A0108,15/10/2019,1064850 - 0,"1,570.00",Revenue,THE OYSTER PARTNERSHIP LTD
Oxford City Council,Corporate Property,Temporary Bureau Staffing,A0108,15/10/2019,1064853 - 0,"1,066.56",Revenue,THE OYSTER PARTNERSHIP LTD
Oxford City Council,Corporate Property,Temporary Bureau Staffing,A0108,22/10/2019,1064854 - 0,"1,950.00",Revenue,THE OYSTER PARTNERSHIP LTD
Oxford City Council,Corporate Property,Reactive Maintenance & Minor Repairs,B1101,08/10/2019,1064861 - 1,"17,795.40",Revenue,FERGAL CONTRACTING CO LTD
Oxford City Council,Corporate Property,Consultants Fees,D3411,01/10/2019,1064867 - 0,"1,750.00",Revenue,BOSSOMS BOATYARD LTD
Oxford City Council,Corporate Property,Consultants Fees,D3411,15/10/2019,1064902 - 0,"1,965.00",Revenue,MARRIOTTS
Oxford City Council,Corporate Property,Service Charges,B1821,08/10/2019,1064921 - 1,"1,156.04",Revenue,WORKMAN LLP
Oxford City Council,Corporate Property,Reactive Maintenance & Minor Repairs,B1101,22/10/2019,1064966 - 0,"1,394.36",Revenue,CROFT BUILDING & CONSERVATION LTD
Oxford City Council,Corporate Property,General Contracted Services,D3401,08/10/2019,1064987 - 0,"7,840.00",Revenue,IAN BRIDGE CONSULTANCY LIMITED
Oxford City Council,Corporate Property,Temporary Bureau Staffing,A0108,22/10/2019,1064992 - 0,"1,780.00",Revenue,THE OYSTER PARTNERSHIP LTD
Oxford City Council,Corporate Property,Temporary Bureau Staffing,A0108,22/10/2019,1064993 - 0,"1,875.00",Revenue,THE OYSTER PARTNERSHIP LTD
Oxford City Council,Corporate Property,Temporary Bureau Staffing,A0108,22/10/2019,1064994 - 0,"1,184.00",Revenue,THE OYSTER PARTNERSHIP LTD
Oxford City Council,Corporate Property,Asbestos Work,B1106,22/10/2019,1064996 - 0,750,Revenue,DUCTCLEAN (UK) LTD
Oxford City Council,Corporate Property,Building Services Internal Works,B1102,08/10/2019,1065000 - 0,647,Revenue,SAFESITE LTD
Oxford City Council,Corporate Property,Temporary Bureau Staffing,A0108,15/10/2019,1065029 - 0,"2,230.00",Revenue,PARK AVENUE RECRUITMENT LTD
Oxford City Council,Corporate Property,Temporary Bureau Staffing,A0108,22/10/2019,1065030 - 1,"1,515.00",Revenue,PARK AVENUE RECRUITMENT LTD
Oxford City Council,Corporate Property,Reactive Maintenance & Minor Repairs,B1101,08/10/2019,1065050 - 0,575,Revenue,HTSL ( HIGHTWIRE TESING SERVICES LTD)
Oxford City Council,Corporate Property,Reactive Maintenance & Minor Repairs,B1101,08/10/2019,1065106 - 0,450,Revenue,TRUTH LTD T/A KJC FELT ROOFING
Oxford City Council,Corporate Property,Rent,B1701,08/10/2019,1065122 - 1,"2,854.28",Revenue,ENVIRONMENT AGENCY
Oxford City Council,Corporate Property,Reactive Maintenance & Minor Repairs,B1101,29/10/2019,1065126 - 0,845,Revenue,EXECUTIVE FIRE PROTECTION LTD
Oxford City Council,Corporate Property,Consultants Fees,D3411,08/10/2019,1065144 - 0,"8,500.00",Revenue,RIDGE & PARTNERS LLP
Oxford City Council,Corporate Property,Counsel & External Legal Fees,D3417,08/10/2019,1065162 - 0,"19,618.50",Revenue,VEALE WASBROUGH VIZARD
Oxford City Council,Corporate Property,Temporary Bureau Staffing,A0108,12/11/2019,1065185 - 0,"1,915.83",Revenue,PARK AVENUE RECRUITMENT LTD
Oxford City Council,Corporate Property,Temporary Bureau Staffing,A0108,05/11/2019,1065186 - 1,"1,875.00",Revenue,THE OYSTER PARTNERSHIP LTD
Oxford City Council,Corporate Property,Temporary Bureau Staffing,A0108,29/10/2019,1065187 - 0,"1,104.00",Revenue,THE OYSTER PARTNERSHIP LTD
Oxford City Council,Corporate Property,Reactive Maintenance & Minor Repairs,B1101,29/10/2019,1065193 - 0,708,Revenue,PRICE & MYERS LLP
Oxford City Council,Corporate Property,Fire Alarms and Emergency Lighting,B1241,29/10/2019,1065200 - 1,"2,939.48",Revenue,ADT FIRE & SECURITY
Oxford City Council,Corporate Property,Reactive Maintenance & Minor Repairs,B1101,22/10/2019,1065209 - 0,"4,975.00",Revenue,EXECUTIVE FIRE PROTECTION LTD
Oxford City Council,Corporate Property,Reactive Maintenance & Minor Repairs,B1101,15/10/2019,1065223 - 0,"1,451.00",Revenue,BARKER & EVANS LTD
Oxford City Council,Corporate Property,Town Hall - External Planned Maintenance,B2002,22/10/2019,1065236 - 0,"34,305.58",Revenue,FERGAL CONTRACTING CO LTD
Oxford City Council,Corporate Property,Temporary Bureau Staffing,A0108,05/11/2019,1065242 - 0,544,Revenue,THE OYSTER PARTNERSHIP LTD
Oxford City Council,Corporate Property,Commercial Portfolio - Planned Maintenance,B2000,15/10/2019,1065246 - 0,"7,254.00",Revenue,FERGAL CONTRACTING CO LTD
Oxford City Council,Corporate Property,Reactive Maintenance & Minor Repairs,B1101,15/10/2019,1065260 - 0,475,Revenue,TRUTH LTD T/A KJC FELT ROOFING
Oxford City Council,Corporate Property,Reactive Maintenance & Minor Repairs,B1101,15/10/2019,1065264 - 0,750,Revenue,TRUTH LTD T/A KJC FELT ROOFING
Oxford City Council,Corporate Property,Reactive Maintenance & Minor Repairs,B1101,15/10/2019,1065265 - 0,500,Revenue,TRUTH LTD T/A KJC FELT ROOFING
Oxford City Council,Corporate Property,Reactive Maintenance & Minor Repairs,B1101,15/10/2019,1065266 - 0,"4,880.00",Revenue,BARKER & EVANS LTD
Oxford City Council,Corporate Property,Temporary Bureau Staffing,A0108,22/10/2019,1065268 - 0,"1,480.00",Revenue,THE OYSTER PARTNERSHIP LTD
Oxford City Council,Corporate Property,Temporary Bureau Staffing,A0108,05/11/2019,1065291 - 1,"1,875.00",Revenue,THE OYSTER PARTNERSHIP LTD
Oxford City Council,Corporate Property,Reactive Maintenance & Minor Repairs,B1101,15/10/2019,1065294 - 0,950,Revenue,TRUTH LTD T/A KJC FELT ROOFING
Oxford City Council,Corporate Property,Asbestos Work,B1106,05/11/2019,1065352 - 0,"15,299.00",Revenue,DUCTCLEAN (UK) LTD
Oxford City Council,Corporate Property,Commercial Portfolio - Planned Maintenance,B2000,22/10/2019,1065354 - 0,"2,896.30",Revenue,FERGAL CONTRACTING CO LTD
Oxford City Council,Corporate Property,Temporary Bureau Staffing,A0108,29/10/2019,1065387 - 0,"1,480.00",Revenue,THE OYSTER PARTNERSHIP LTD
Oxford City Council,Corporate Property,Consultants Fees,D3411,29/10/2019,1065405 - 0,"8,095.00",Revenue,COLLIERS INTERNATIONAL PROPERTY CONSULTANT
Oxford City Council,Corporate Property,Reactive Maintenance & Minor Repairs,B1101,17/12/2019,1065416 - 0,"10,200.00",Revenue,SCHNEIDER ELECTRIC IT UK LTD
Oxford City Council,Corporate Property,Consultants Fees,D3411,22/10/2019,1065420 - 0,"11,379.20",Revenue,PINSENT MASONS LLP
Oxford City Council,Corporate Property,Reactive Maintenance & Minor Repairs,B1101,29/10/2019,1065452 - 0,420,Revenue,TRUTH LTD T/A KJC FELT ROOFING
Oxford City Council,Corporate Property,Reactive Maintenance & Minor Repairs,B1101,29/10/2019,1065453 - 0,450,Revenue,TRUTH LTD T/A KJC FELT ROOFING
Oxford City Council,Corporate Property,Reactive Maintenance & Minor Repairs,B1101,29/10/2019,1065455 - 0,550,Revenue,TRUTH LTD T/A KJC FELT ROOFING
Oxford City Council,Corporate Property,Reactive Maintenance & Minor Repairs,B1101,29/10/2019,1065456 - 0,500,Revenue,TRUTH LTD T/A KJC FELT ROOFING
Oxford City Council,Corporate Property,Reactive Maintenance & Minor Repairs,B1101,29/10/2019,1065459 - 0,450,Revenue,TRUTH LTD T/A KJC FELT ROOFING
Oxford City Council,Corporate Property,Reactive Maintenance & Minor Repairs,B1101,29/10/2019,1065463 - 0,"1,950.00",Revenue,IAN BRIDGE CONSULTANCY LIMITED
Oxford City Council,Corporate Property,Temporary Bureau Staffing,A0108,12/11/2019,1065467 - 0,"1,184.00",Revenue,THE OYSTER PARTNERSHIP LTD
Oxford City Council,Corporate Property,Lift Maintenance / Servicing,B1203,29/10/2019,1065481 - 1,603.75,Revenue,COTSWOLD LIFTS LTD
Oxford City Council,Corporate Property,Water Systems Testing & Sanitary Repairs,B1208,29/10/2019,1065504 - 0,"1,299.86",Revenue,SMS ENVIRONMENTAL LIMITED
Oxford City Council,Corporate Property,Water Systems Testing & Sanitary Repairs,B1208,29/10/2019,1065510 - 0,"2,379.02",Revenue,SMS ENVIRONMENTAL LIMITED
Oxford City Council,Corporate Property,Water Systems Testing & Sanitary Repairs,B1208,29/10/2019,1065512 - 0,"4,852.68",Revenue,SMS ENVIRONMENTAL LIMITED
Oxford City Council,Corporate Property,Water Systems Testing & Sanitary Repairs,B1208,29/10/2019,1065513 - 0,"1,097.80",Revenue,SMS ENVIRONMENTAL LIMITED
Oxford City Council,Corporate Property,Water Systems Testing & Sanitary Repairs,B1208,29/10/2019,1065515 - 0,"7,272.54",Revenue,SMS ENVIRONMENTAL LIMITED
Oxford City Council,Corporate Property,Reactive Maintenance & Minor Repairs,B1101,29/10/2019,1065521 - 0,750,Revenue,TRUTH LTD T/A KJC FELT ROOFING
Oxford City Council,Corporate Property,Reactive Maintenance & Minor Repairs,B1101,12/11/2019,1065525 - 0,631.5,Revenue,IDEAL FLOORING (OXFORD) LTD
Oxford City Council,Corporate Property,Temporary Bureau Staffing,A0108,12/11/2019,1065533 - 0,"1,870.83",Revenue,PARK AVENUE RECRUITMENT LTD
Oxford City Council,Corporate Property,Consultants Fees,D3411,29/10/2019,1065542 - 0,"1,750.00",Revenue,BOSSOMS BOATYARD LTD
Oxford City Council,Corporate Property,Reactive Maintenance & Minor Repairs,B1101,29/10/2019,1065543 - 0,985,Revenue,WINDRUSH DOOR & WINDOW SERVICES LTD
Oxford City Council,Corporate Property,Reactive Maintenance & Minor Repairs,B1101,29/10/2019,1065546 - 0,800,Revenue,PYROTEC SERVICES LTD
Oxford City Council,Corporate Property,Asbestos Work,B1106,29/10/2019,1065552 - 0,"7,963.00",Revenue,ASBESTOS CONSULTANTS EUROPE LTD
Oxford City Council,Corporate Property,Temporary Bureau Staffing,A0108,19/11/2019,1065567 - 0,"1,184.00",Revenue,THE OYSTER PARTNERSHIP LTD
Oxford City Council,Corporate Property,Reactive Maintenance & Minor Repairs,B1101,12/11/2019,1065579 - 0,900,Revenue,ISIS SCAFFOLDING LTD
Oxford City Council,Corporate Property,Fire Alarms and Emergency Lighting,B1241,29/10/2019,1065593 - 0,"18,601.50",Revenue,PYROTEC SERVICES LTD
Oxford City Council,Corporate Property,Reactive Maintenance & Minor Repairs,B1101,12/11/2019,1065617 - 0,680,Revenue,EXECUTIVE FIRE PROTECTION LTD
Oxford City Council,Corporate Property,Reactive Maintenance & Minor Repairs,B1101,19/11/2019,1065694 - 0,730,Revenue,EXECUTIVE FIRE PROTECTION LTD
Oxford City Council,Corporate Property,Consultants Fees,D3411,19/11/2019,1065697 - 0,"3,000.00",Revenue,INTERLOCKS SURVEYS LTD
Oxford City Council,Corporate Property,Temporary Bureau Staffing,A0108,19/11/2019,1065704 - 0,"1,875.83",Revenue,PARK AVENUE RECRUITMENT LTD
Oxford City Council,Corporate Property,Consultants Fees,D3411,12/11/2019,1065713 - 0,"20,000.00",Revenue,JONES LANG LASALLE LTD
Oxford City Council,Corporate Property,Rent,B1701,24/12/2019,1065730 - 1,"3,481.44",Revenue,AMAS LTD/RENT A/C
Oxford City Council,Corporate Property,Building Services Internal Works,B1102,12/11/2019,1065743 - 0,"4,150.00",Revenue,D A MILES & SONS
Oxford City Council,Corporate Property,Reactive Maintenance & Minor Repairs,B1101,12/11/2019,1065744 - 0,450,Revenue,D A MILES & SONS
Oxford City Council,Corporate Property,Environmental Open Space Improvements,B1003,26/11/2019,1065758 - 0,441,Revenue,PUMPING  SOLUTIONS  (UK)  LTD
Oxford City Council,Corporate Property,Temporary Bureau Staffing,A0108,26/11/2019,1065759 - 0,675,Revenue,THE OYSTER PARTNERSHIP LTD
Oxford City Council,Corporate Property,Temporary Bureau Staffing,A0108,26/11/2019,1065760 - 0,480,Revenue,THE OYSTER PARTNERSHIP LTD
Oxford City Council,Corporate Property,Temporary Bureau Staffing,A0108,30/10/2019,1065762 - 0,"1,203.80",Revenue,THE OYSTER PARTNERSHIP LTD
Oxford City Council,Corporate Property,Temporary Bureau Staffing,A0108,26/11/2019,1065763 - 0,480,Revenue,THE OYSTER PARTNERSHIP LTD
Oxford City Council,Corporate Property,Consultants Fees,D3411,05/11/2019,1065767 - 0,960,Revenue,MARRIOTTS
Oxford City Council,Corporate Property,Water Systems Testing & Sanitary Repairs,B1208,26/11/2019,1065768 - 0,"2,091.00",Revenue,SMS ENVIRONMENTAL LIMITED
Oxford City Council,Corporate Property,Consultants Fees,D3411,03/12/2019,1065817 - 1,500,Revenue,DAVIS COFFER LYONS
Oxford City Council,Corporate Property,General Contracted Services,D3401,12/11/2019,1065824 - 0,"7,840.00",Revenue,IAN BRIDGE CONSULTANCY LIMITED
Oxford City Council,Corporate Property,Reactive Maintenance & Minor Repairs,B1101,12/11/2019,1065832 - 0,"1,105.00",Revenue,PSP CONSTRUCTION CONSULTANTS LIMITED
Oxford City Council,Corporate Property,Consultants Fees,D3411,12/11/2019,1065840 - 1,"8,500.00",Revenue,RIDGE & PARTNERS LLP
Oxford City Council,Corporate Property,Town Hall - External Planned Maintenance,B2002,19/11/2019,1065875 - 0,"106,752.24",Revenue,FERGAL CONTRACTING CO LTD
Oxford City Council,Corporate Property,Temporary Bureau Staffing,A0108,03/12/2019,1065879 - 0,"1,184.00",Revenue,THE OYSTER PARTNERSHIP LTD
Oxford City Council,Corporate Property,Asbestos Work,B1106,26/11/2019,1065890 - 0,"11,727.00",Revenue,ASBESTOS CONSULTANTS EUROPE LTD
Oxford City Council,Corporate Property,Commercial Portfolio - Planned Maintenance,B2000,12/11/2019,1065895 - 0,"4,526.00",Revenue,FERGAL CONTRACTING CO LTD
Oxford City Council,Corporate Property,Commercial Portfolio - Planned Maintenance,B2000,19/11/2019,1065900 - 1,"22,736.98",Revenue,OXFORD DIRECT SERVICES LTD
Oxford City Council,Corporate Property,Commercial Portfolio - Planned Maintenance,B2000,19/11/2019,1065901 - 0,"42,218.32",Revenue,OXFORD DIRECT SERVICES LTD
Oxford City Council,Corporate Property,Consultants Fees,D3411,19/11/2019,1065925 - 0,796,Revenue,BIERCE SURVEYING LTD
Oxford City Council,Corporate Property,Subscriptions,D3703,19/11/2019,1065933 - 0,"1,995.00",Revenue,NBS  ENTERPRISES LIMITED
Oxford City Council,Corporate Property,Reactive Maintenance & Minor Repairs,B1101,19/11/2019,1065952 - 0,735,Revenue,PYROTEC SERVICES LTD
Oxford City Council,Corporate Property,Consultants Fees,D3411,19/11/2019,1065957 - 1,"1,835.00",Revenue,MARRIOTTS
Oxford City Council,Corporate Property,Reactive Maintenance & Minor Repairs,B1101,19/11/2019,1065982 - 0,750,Revenue,TRUTH LTD T/A KJC FELT ROOFING
Oxford City Council,Corporate Property,Reactive Maintenance & Minor Repairs,B1101,19/11/2019,1065983 - 0,450,Revenue,TRUTH LTD T/A KJC FELT ROOFING
Oxford City Council,Corporate Property,Reactive Maintenance & Minor Repairs,B1101,26/11/2019,1066052 - 0,"1,550.00",Revenue,D A MILES & SONS
Oxford City Council,Corporate Property,Temporary Bureau Staffing,A0108,10/12/2019,1066069 - 0,"1,184.00",Revenue,THE OYSTER PARTNERSHIP LTD
Oxford City Council,Corporate Property,Temporary Bureau Staffing,A0108,17/12/2019,1066175 - 0,"1,184.00",Revenue,THE OYSTER PARTNERSHIP LTD
Oxford City Council,Corporate Property,Water Systems Testing & Sanitary Repairs,B1208,26/11/2019,1066192 - 0,"1,599.15",Revenue,SMS ENVIRONMENTAL LIMITED
Oxford City Council,Corporate Property,Water Systems Testing & Sanitary Repairs,B1208,26/11/2019,1066195 - 0,"1,589.58",Revenue,SMS ENVIRONMENTAL LIMITED
Oxford City Council,Corporate Property,Water Systems Testing & Sanitary Repairs,B1208,26/11/2019,1066197 - 0,"3,038.96",Revenue,SMS ENVIRONMENTAL LIMITED
Oxford City Council,Corporate Property,General Contracted Services,D3401,03/12/2019,1066200 - 1,"1,697.90",Revenue,FUSION LIFESTYLE
Oxford City Council,Corporate Property,Temporary Bureau Staffing,A0108,10/12/2019,1066208 - 0,"1,874.17",Revenue,PARK AVENUE RECRUITMENT LTD
Oxford City Council,Corporate Property,Temporary Bureau Staffing,A0108,03/12/2019,1066231 - 0,"1,863.33",Revenue,PARK AVENUE RECRUITMENT LTD
Oxford City Council,Corporate Property,Reactive Maintenance & Minor Repairs,B1101,03/12/2019,1066259 - 0,"4,395.00",Revenue,D A MILES & SONS
Oxford City Council,Corporate Property,Reactive Maintenance & Minor Repairs,B1101,03/12/2019,1066260 - 0,"3,595.00",Revenue,D A MILES & SONS
